{"text_format":"1","workbook":"xlsx","n_sheets":15,"sheets":["1 - ANAGRAFICA","2 - INFORMAZIONI GENERALI SM","3 - INFORMAZIONI PUNTEGGI","4 - QUADRO LOCALIZZAZIONE","5_1.1 - QUADRO INTERVENTI 1.1","5_1.2 - QUADRO INTERVENTI 1.2","5_2 - QUADRO INTERVENTI AZ 2","5_3 - QUADRO INTERVENTI AZ 3","6 - RIEPILOGO DI SPESA","7 - RIEPILOGHI E PUNTEGGIO","8 - ELENCO SPECIE AUTOCTONE","9 - DICHIARAZIONI","10 LIMITAZIONI MACCHINE ATTREZ","11 COMBINAZIONI E PUNTEGGI","classificazione imprese AZ_1"],"not_rendered":{"charts":0,"images":7,"macros":1,"external_links":1,"defined_names":186,"comments":0,"pivot_tables":0},"unopened":[],"bounds":{"document_bytes":16777216,"sheet_cells":100000,"rows_first":2000,"rows_last":500,"rows_between":2000,"halvings":0,"cell_chars":16384,"cell_head_chars":4096},"cells_cut":0,"cells_raw":0,"read":"whole","date_system":"1900"}

{"sheet":"1 - ANAGRAFICA","index":0,"n_rows":20,"n_cols":32,"rows_kept":20,"cut":false,"hidden":false,"merged":[[16,19,16,20],[20,0,20,4],[19,0,19,4],[19,7,19,11],[19,15,19,19],[18,0,18,2],[18,15,18,18],[16,16,16,17],[18,8,18,11],[16,2,16,3],[16,9,16,10],[16,5,16,6],[16,12,16,13],[17,2,17,3],[11,8,11,10],[11,11,11,13],[11,16,11,18],[0,21,4,25],[6,0,6,20],[7,2,7,3],[9,15,9,19],[9,10,9,13],[5,17,5,20],[5,0,5,16],[14,11,14,13],[15,11,15,13],[7,10,7,14],[7,4,7,8],[13,13,13,17],[9,3,9,7],[14,8,14,10],[14,15,14,17],[15,15,15,17],[13,1,13,3],[13,4,13,6],[13,8,13,10],[9,0,9,2],[15,8,15,10],[11,1,11,3],[11,4,11,6]]}
[null,null,null,null,null,null,null,null,null,null,null,null,null,null,null,null,null,null,null,null,null,"CLICCA SUL LOGO DEL PSR PUGLIA PER RAGGIUNGERE IL SITO UFFICIALE SEZIONE SM 8.6 BANDO 2019",null,null,null,null,null,null,null,null,null,"CAT. A"]
[null,null,null,null,null,null,null,null,null,null,null,null,null,null,null,null,null,null,null,null,null,null,null,null,null,null,null,null,null,null,null,"CAT. B"]
[null,null,null,null,null,null,null,null,null,null,null,null,null,null,null,null,null,null,null,null,null,null,null,null,null,null,null,null,null,null,null,"CAT. C"]
[null,null,null,null,null,null,null,null,null,null,null,null,null,null,null,null,null,null,null,null,null,null,null,null,null,null,null,null,null,null,null,"CAT. D"]
[]
["FORMULARIO DEGLI INTERVENTI",null,null,null,null,null,null,null,null,null,null,null,null,null,null,null,null,"ALLEGATO A  alla D.A.G. n. 372 del  31/10/2019"]
[" Avviso Pubblico Sottomisura 8.6 - Investimenti tesi ad accrescere la resilienza ed il pregio ambientale degli ecosistemi forestali - D.A.G. n. 316 del 30/09/2019, D.A.G. n. 348 del 21/10/2019"]
["CODICE UNIVOCO",null,"Denominazione richiedente",null,null,null,null,null,null,"CUAA"]
[]
["SEDE LEGALE",null,null,null,null,null,null,null,null,"TEL.",null,null,null,null,"PEC"]
[]
[null,"Ambito Territoriale",null,null,null,null,null,null,"Modalità di partecipazione all'Avviso Pubblico",null,null,null,null,null,null,null,{"$f":"IF(OR(L12=\"Partecipazione in forma aggregata da 2 a 5 beneficiari\",L12=\"Partecipazione in forma aggregata più di 5 beneficiari\"),\"Accordo Collettivo\",\"-\")","v":"-"},null,null,null,{"$f":"IF(AND(Q12=\"Accordo collettivo\",T12=\"\"),\"← indicare se si aderisce o meno ad accordo collettivo\",\"\")","v":""}]
[]
[null,"Qualifica Richiedente",null,null,null,null,null,null,"Impresa boschiva iscritta all'Albo Regionale",null,null,null,null,{"$f":"IF(L14=\"SI\",\"Numero di iscrizione all'Albo Regionale\",\"-\")","v":"-"},null,null,null,null,null,null,{"$f":"IF(AND(N14=\"Numero di iscrizione all'Albo Regionale\",T14=\"\"),\"← indicare numero di iscrizione all'Albo\",IF(AND(T14<>\"\",L14=\"NO\"),\"←INDICAZIONE CATEGORIA NON PERTINENTE\",\"\"))","v":""}]
[null,null,null,null,null,null,null,null,{"$f":"IF(AND(L14=\"SI\",E17=0,E18=0,L17=0,S17=0),\"PROVINCIA sede legale/operativa\",\"-\")","v":"-"},null,null,null,null,null,{"$f":"IF(AND(L15<>\"\",L14=\"SI\",OR(E17>0,E18>0,L17>0,S17>0)),\"←INDICAZIONE NON PERTINENTE\",\"\")","v":""},{"$f":"IF(L14=\"SI\",\"Categoria\",\"-\")","v":"-"},null,null,null,null,{"$f":"IF(AND(P15=\"Categoria\",T15=\"\"),\"← indicare categoria dell'impresa boschiva\",IF(AND(T15<>\"\",L14=\"NO\"),\"←INDICAZIONE CATEGORIA NON PERTINENTE\",\"\"))","v":""},null,null,null,null,null,null,null,null,null,null,{"$f":"IF(AND(L14=\"SI\",T15=\"\"),1,0)","v":0}]
[null,null,null,null,null,null,null,null,{"$f":"IF(AND(L14=\"SI\",E17=0,E18=0,L17=0,S17=0),\"COMUNE sede legale/operativa\",\"-\")","v":"-"},null,null,null,null,null,{"$f":"IF(AND(L16<>\"\",L14=\"SI\",OR(E17>0,E18>0,L17>0,S17>0)),\"←INDICAZIONE NON PERTINENTE\",\"\")","v":""},null,null,null,null,null,null,null,null,null,null,null,null,null,null,null,null,{"$f":"IF(AND(L14=\"SI\",L15=\"\",I15<>\"-\"),1,0)","v":0}]
["AZIONE_1",null,"SUPERFICIE BOSCATA CONDOTTA m2 Intervento 1.1",null,null,{"$f":"IF(OR(AND(E17<>0,B17<>\"SI\",L14<>\"SI\"),AND(B17=\"SI\",E17=\"\",L14<>\"SI\")),\"INDICARE AZIONE E SUPERFICIE\",\"\")","v":""},null,"AZIONE_2",null,"SUPERFICIE m2",null,null,{"$f":"IF(OR(AND(L17<>0,I17<>\"SI\"),AND(I17=\"SI\",L17=0)),\"INDICARE AZIONE E SUPERFICIE\",\"\")","v":""},null,"AZIONE_3",null,"SUPERFICIE m2",null,null,{"$f":"IF(OR(AND(S17<>0,P17<>\"SI\"),AND(P17=\"SI\",S17=0)),\"INDICARE AZIONE E SUPERFICIE\",\"\")","v":""},null,null,null,null,null,null,null,null,null,null,null,{"$f":"IF(AND(L14=\"SI\",L16=\"\",I16<>\"-\"),1,0)","v":0}]
[null,null,"SUPERFICIE m2 Intervento 1.2"]
[]
["LUOGO E DATA",null,null,null,null,null,null,"FIRMA DEL RICHIEDENTE",null,null,null,null,null,null,null,"FIRMA E TIMBRO DEL TECNICO"]

{"sheet":"2 - INFORMAZIONI GENERALI SM","index":1,"n_rows":30,"n_cols":6,"rows_kept":30,"cut":false,"hidden":false,"merged":[[25,0,25,3],[27,0,27,1],[30,0,30,1],[19,0,19,3],[20,0,20,3],[21,0,21,3],[22,0,22,3],[23,0,23,3],[14,0,14,3],[15,0,15,3],[16,0,16,3],[17,0,17,3],[18,0,18,3],[10,0,10,3],[1,4,7,4],[9,0,9,2],[0,1,0,2],[1,3,4,3],[5,3,6,3],[1,0,4,0],[5,0,6,0],[7,0,8,0],[7,3,8,3],[2,2,3,2],[2,1,3,1]]}
["Azioni","Interventi",null,"Localizzazione e limiti"]
["1 - Investimenti nella trasformazione e commercializzazione dei prodotti forestali","1.1 Adeguamento innovativo delle dotazioni tecniche di macchine ed attrezzature",{"$f":"IF(C3=\"SI\",\"SI\",IF(C3=\"\",\"\",\"NO\"))","v":""},"L’azione e gli interventi si applicano su tutto il territorio regionale. In caso di Ditte che non posseggono superfici boscate ma che forniscono servizi di gestione per altre proprietà forestali, le stesse dovranno essere iscritte all’Albo regionale delle imprese boschive, di cui alla L.R. n° 4/2009, alla data di rilascio della DdS per la partecipazione al Bando per l’azione 1 intervento 1.1. Per le stesse ai fini dell'intervento 1.1., relativamente al macrocriterio Ambiti Territoriali, il punteggio (Aree Montane e Aree Collinari) viene attribuito in base alla sede legale e/o operativa della stessa impresa boschiva candidata. Per le Ditte proprietarie di superfici forestali che partecipano all'intervento 1.1, l’obbligo di essere iscritte all’Albo delle imprese boschive deve essere soddisfatto prima della chiusura del programma di investimento (domanda di pagamento del saldo). Per gli interventi della tipologia 1.2, gli stessi dovranno essere ubicati all'interno del territorio regionale su superfici legittimamente condotte dal soggetto candidato.",{"$f":"IF(C13=0,\"ATTENZIONE - ATTIVARE ALMENO UN INTERVENTO\",IF(OR(C2=\"\",C5=\"\",C6=\"\",C7=\"\",C8=\"\",C9=\"\"),\"ATTENZIONE COMPILARE TUTTI I CAMPI ROSSI\",IF(AND(C2<>\"SI\",'5_1.1 - QUADRO INTERVENTI 1.1'!H114>0),\"ATTENZIONE QUADRO 5_1.1 RIPORTA DATI NON VALIDI\",IF(AND('2 - INFORMAZIONI GENERALI SM'!C6<>\"SI\",'2 - INFORMAZIONI GENERALI SM'!C7<>\"SI\",'5_2 - QUADRO INTERVENTI AZ 2'!J74>0),\"ATTENZIONE QUADRO 5_2 RIPORTA DATI NON VALIDI\",IF(AND('5_3 - QUADRO INTERVENTI AZ 3'!G12>0,'2 - INFORMAZIONI GENERALI SM'!C8<>\"SI\"),\"ATTENZIONE QUADRO 5_3 RIPORTA DATI NON VALIDI\",IF(AND('2 - INFORMAZIONI GENERALI SM'!C5<>\"SI\",'5_1.2 - QUADRO INTERVENTI 1.2'!H21>0),\"ATTENZIONE QUADRO 5_1.2 RIPORTA DATI NON VALIDI\",\"\"))))))","v":"ATTENZIONE - ATTIVARE ALMENO UN INTERVENTO"},{"$f":"IF(OR(C2=\"SI\",C5=\"SI\"),1,0)","v":0}]
[null,"acquisto macchine/attrezzature che riducono le emissioni - 6 punti\ne/o\nacquisto macchine/attrezzature che migliorano le condizioni di sicurezza dei lavoratori - 6 punti"]
[]
[null,"1.2 Realizzazione, ammodernamento, adeguamento di vivai forestali"]
["2 – Investimenti e pratiche forestali sostenibili finalizzate ad accrescere il valore economico delle foreste","2.1 Interventi selvicolturali con finalità produttive",null,"L’azione e gli interventi si applicano su tutto il territorio regionale, limitatamente alle zone boscate, e nello specifico esclusivamente ai boschi con finalità produttiva  e secondo le indicazioni delle Linee Guida.  ",null,{"$f":"IF(OR(C6=\"SI\",C7=\"SI\"),1,0)","v":0}]
[null,"2.2 Interventi selvicolturali per il recupero e la valorizzazione produttiva dei boschi abbandonati, invecchiati e/o degradati "]
["3 – Elaborazione di Piani di Gestione Forestale e loro strumenti equivalenti","3.1 Elaborazione dei Piani di Gestione Forestale e loro strumenti equivalenti",null,"La Sottomisura 8.6 sostiene la redazione di PGF o strumenti equivalenti ex-novo, non sono ammissibili adeguamenti di PGF o strumenti equivalenti vigenti. L’azione e gli interventi si applicano su tutto il territorio regionale, limitatamente alle zone boscate, e nello specifico esclusivamente ai boschi con finalità produttiva  e secondo le indicazioni delle Linee Guida. L’intera superficie oggetto di Pianificazione Forestale (PGF) deve comprendere, secondo quanto previsto dalle Linee Guida (D.A.G. n.207/2018), i boschi, le aree assimilabili al bosco, le formazioni arbustive in evoluzione naturale, i pascoli e le superfici improduttive.",null,{"$f":"IF(C8=\"SI\",1,0)","v":0}]
[null,"Superficie interessata al di sotto di 50 Ha (attribuzione di 15 punti)",null,null,{"$f":"IF(AND(C9=\"SI\",OR(C8=\"\",C8=\"NO\")),\"ATTENZIONE RICHIESTO PUNTEGGIO PER PGF SENZA AVER ATTIVATO L'AZIONE 3.1\",\"\")","v":""}]
["PER LE DOTAZIONI TECNICHE DI MACCHINARI ED ATTREZZATURE FINANZIABILI CON  L'AZIONE 1 SI RIPORTANO LE LIMITAZIONE, COSI' COME DEFINITE DALLE LINEE GUIDA, AL SEGUENTE LINK. ",null,null,"VAI AL QUADRO 10"]
[]
[null,"TOTALE AZIONI ATTIVATE",{"$f":"SUM(F2,F6,F8)","v":0}]
[null,"TOTALE INTERVENTI ATTIVATI",{"$f":"COUNTIF(C2,\"SI\")+COUNTIF(C5,\"SI\")+COUNTIF(C6:C8,\"SI\")","v":0}]
[]
["Il sottoscritto:"]
[]
["(Denominazione Richiedente)"]
["in qualità di titolare/legale rappresentante della DdS n.______________________________________a valere sul PSR Puglia 2014 - 2020 Sottomisura 8.6"]
["E"]
["Il tecnico incaricato:"]
[]
["(Cognome e Nome)"]
["DICHIARANO"]
["Di prendere atto delle suddette informazioni generali di sottomisura previste dall'Avviso Pubblico di cui alla DAG n. 316/2019 e ss.mm.ii."]
[]
["Fatto a                , il"]
["Firma titolare/Legale Rappresentante"]
[]
[]
["Firma del tecnico e Timbro Professionale dell'Ordine di Appartenenza"]

{"sheet":"3 - INFORMAZIONI PUNTEGGI","index":2,"n_rows":41,"n_cols":2,"rows_kept":41,"cut":false,"hidden":false,"merged":[[1,1,4,1],[6,1,9,1],[10,1,14,1],[15,1,16,1],[18,1,21,1],[44,1,44,2],[46,1,48,2],[24,0,24,1],[25,0,25,1],[26,0,26,1],[27,0,27,1],[33,0,33,1],[32,0,32,1],[30,0,30,1],[28,0,28,1],[29,0,29,1],[31,0,31,1],[43,1,43,2]]}
["Principio/requisito","Criterio di applicazione (cfr. par.16 bando)"]
["Principio 1 - Localizzazione dell'intervento*","Applicabile per gli interventi 1.1 in base alla sede dell’impresa boschiva candidata, che non conduce superfici boscate.\nNel caso in cui un’impresa boschiva abbia più sedi (legale ed operativa), almeno una di queste deve ricadere nell’area (collinare o montana) per la quale viene richiesto il punteggio.                                                                                                                                                      Applicabile per gli interventi 1.1 e 1.2 realizzati da aziende candidate in possesso di superfici boscate, in base alla localizzazione delle superfici boscate condotte, rilevabili dalla domanda di sostegno e dal Fascicolo Aziendale.\nApplicabile per gli interventi 2.1 - 2.2 - 3.1 in base alla localizzazione degli interventi, ossia all’ubicazione delle superfici boscate condotte, rilevabili dalla domanda di sostegno e dal Fascicolo Aziendale. Nei casi in cui la localizzazione secondo i suddetti criteri non ricada in area collinare o montana il punteggio per il requisito in oggetto è pari a zero."]
["Localizzazione dell'intervento in Aree Collinari - 12,5 punti"]
["Localizzazione dell'intervento in Aree Montane - 25 punti"]
["*Sulla base della ripartizione del territorio nazionale per zone altimetriche (montagna, pianura, collina) definita nell'ambito del sistema circoscrizionale statistico ISTAT, istituito nel 1958"]
[]
["Principio 2 - Tipologia dell'intervento","Applicabile per gli interventi 1.1. \nAi fini della auto-attribuzione del punteggio è necessario che il possesso di entrambi i requisiti per le macchine/impianti/attrezzature interessate sia indicato nei preventivi da allegare alla domanda di sostegno. In assenza di tali indicazioni all'interno dei preventivi, l’auto-attribuzione del punteggio non potrà essere riconosciuta. \nLimitatamente al requisito della riduzione delle emissione nocive, lo stesso si intende già posseduto nel caso di attrezzature che non siano motorizzate, per le quali il punteggio (6 punti) è attribuibile tal quale. \nAi fini dell'attribuzione del punteggio pieno previsto per i singoli requisiti è necessario che la spesa per macchine/impianti/attrezzature oggetto di fornitura, rappresenti almeno l'80% della spesa dell'intero progetto, altrimenti il punteggio massimo attribuibile viene determinato in maniera ponderata del costo dell’intervento 1.1 rispetto al costo totale del progetto.\nIl valore di 12 punti rappresenta un massimale conseguibile qualora l’importo dell’intervento 1.1 rappresenti almeno l’80% del costo dell’intero progetto e tutte le macchine/impianti/attrezzature oggetto di fornitura garantiscano contemporaneamente entrambi i requisiti di riduzione delle emissioni nocive e miglioramento delle condizioni di sicurezza dei lavoratori."]
["Maggior contenuto dell'innovazione"]
["Innovazione per l'acquisto di impianti/macchine/attrezzature che riducono le emissioni nocive - 6 punti"]
["Innovazione per l'acquisto di impianti/macchine/attrezzature che migliorano le condizioni di sicurezza dei lavoratori - 6 punti"]
["Maggiore estensione delle superfici forestali interessate dagli interventi nelle disponibilità dei beneficiari","Applicabile per gli interventi 1.1 e 1.2 realizzati da aziende candidate in possesso di superfici boscate, in base all'estensione delle superfici boscate condotte, rilevabili dalla domanda di sostegno e dal Fascicolo Aziendale. Applicabile per gli interventi 2.1 - 2.2 - 3.1 in base alla localizzazione degli interventi, ossia all’ubicazione delle superfici boscate condotte, rilevabili dalla domanda di sostegno e dal Fascicolo Aziendale. Nei casi in cui si candidi un'impresa boschiva senza superfici boscate condotte il punteggio per il requisito in oggetto è pari a zero."]
["Superficie forestale interessata da ≥ 10 a ≤ 20 Ha - 9 punti"]
["Superficie forestale interessata da > 20 a ≤ 30 Ha - 12 punti"]
["Superficie forestale interessata da > 30 a ≤ 40 Ha - 15 punti"]
["Superficie forestale interessata maggiore di 40 Ha - 18 punti"]
["Piano di Gestione Forestale","Applicabile per gli interventi  3.1 in base all’estensione delle aziende forestali candidate, rilevabili dalla domanda di sostegno e dal Fascicolo Aziendale. Il punteggio è attribuito pienamente in ogni caso purchè il progetto contenga i costi per la redazione del PGF, indipendentemente dal montante della spesa per l'intervento 3.1.\nL’intera superficie dell'azienda forestale candidata, oggetto di Pianificazione Forestale (PGF) deve comprendere, secondo quanto previsto dalle Linee Guida (D.A.G. n. 348/2019), i boschi, le aree assimilabili al bosco, le formazioni arbustive in evoluzione naturale, i pascoli e le superfici improduttive."]
["Aziende forestali singole o associate al di sotto di 50 Ha che presentano un Piano di Gestione Forestale - 15 punti"]
[]
["Qualifica del beneficiario","Questo requisito è applicabile al singolo candidato che si aggrega con altri attraverso la sottoscrizione di un Accordo Collettivo, per tutti gli interventi 1.1-1.2-2.1-2.2-3.1.\nIl punteggio è attribuibile ai candidati che abbiano superato i controlli di ammissibilità, anche se non finanziabili.\nNel caso in cui uno o più candidati facenti parte dell’Accordo Collettivo non superino i controlli di ammissibilità (domanda/e non ammissibile/i in base alle regole del bando), il punteggio verrà rideterminato in base al numero dei candidati ammissibili. Nei casi in cui si il candidato non sia associato ad altri candidati, il punteggio per il requisito in oggetto è pari a zero.\n"]
["a) grado di aggregazione tra più beneficiari"]
["Aggregazione più di 5 beneficiari - 20 punti"]
["Aggregazione da 2 a 5 beneficiari - 15 punti"]
["b) Imprenditore Agricolo Professionale (IAP) come definito dal D. Lvo 99/2004 - 10 punti","Questo requisito è applicabile tal quale al candidato singolo, per gli interventi 1.1-1.2-2.1-2.2-3.1, anche in caso di partecipazione aggregata ed è cumulabile con l’eventuale requisito di aggregazione. Nei casi in cui si il candidato non sia in possesso della qualifica IAP, il punteggio per il requisito in oggetto è pari a zero."]
["PER CONSULTARE LE DIVERSE COMBINAZIONI DI PUNTEGGI POSSIBILI, CLICCARE IL LINK QUI AL LATO. ","VAI AL QUADRO 11"]
["Il sottoscritto:"]
[]
["(Denominazione Richiedente)"]
["in qualità di titolare/legale rappresentante della DdS n.______________________________________a valere sul PSR Puglia 2014 - 2020 Sottomisura 8.6"]
["E"]
["Il tecnico incaricato:"]
[]
["(Cognome e Nome)"]
["DICHIARANO"]
["Di prendere atto ed accettare i suddetti criteri di attribuzione dei punteggi previsti dai Criteri di Selezione dell'Avviso Pubblico di cui alla DAG n. 316 del 30/09/2019 e ss.mm.ii."]
[]
["Fatto a       , il           "]
[]
["Firma titolare/Legale Rappresentante"]
[]
[]
["Firma del tecnico e Timbro Professionale dell'Ordine di Appartenenza"]

{"sheet":"4 - QUADRO LOCALIZZAZIONE","index":3,"n_rows":102,"n_cols":37,"rows_kept":102,"cut":false,"hidden":false,"merged":[]}
[null,"N. Pr.","Provincia","Comune","Fg","Sezione o\nAllegato","Superficie Boscata condotta e/o sup. di Intervento\nm2","Superficie Intervento\nHa","Superficie massima del foglio condotta e/o interessata da almeno un intervento\nm2","Controllo","Superficie massima del foglio di mappa condotta e/o interessata da almeno un intervento\nHa","Tipologia Azione/intervento\n(Int.1.1-1.2, Az. 2 - 3)","Punteggio Ambito Territoriale","Controllo Campi Editati","Fogli Doppi",null,null,null,null,null,null,null,null,null,null,null,null,null,null,null,null,null,null,null,"Intervento_1.1","MODA","MEDIA"]
[null,"CONTROLLO CAMPI INSERITI ",{"$f":"COUNTA(C$3:C102)","v":0},{"$f":"COUNTA(D$3:D102)","v":0},{"$f":"COUNTA(E$3:E102)","v":0},null,{"$f":"COUNTA(G$3:G102)","v":0},null,{"$f":"COUNTA(I$3:I102)","v":0},null,null,{"$f":"COUNTA(L$3:L102)","v":0},"Aree Montane pt. 25\nAree collinari pt. 12,5\nAree di Pianura pt. 0",null,null,"CODICE CONTROLLO","codice univ p.lla",null,"media(valore massimo)","calcolo valora",null,"BARI","Acquaviva delle Fonti","Andria","Brindisi","Accadia","Acquarica del Capo","Avetrana","AREE COLLINARI","AREE MONTAGNA","PUNTEGGIO AREA COLLINARE","PUNTEGGIO AREA MONTAGNA",{"$f":"AVERAGE(C2:E2,G2:I2,L2)","v":0},null,null,{"$f":"MODE(C2:E2,G2,I2,L2)","v":0},{"$f":"AVERAGE(C2:E2,G2,I2,L2)","v":0}]
[{"$f":"'1 - ANAGRAFICA'!$B$8","v":0},1,null,null,null,null,null,{"$f":"G3/10000","v":0},null,{"$f":"IF(I3<G3,\"Superficie massima < della superficie del singolo intervento\",IF(I3<>S3,\"Superficie massima interventi per foglio di mappa, non uguale sul foglio\",IF(I3>R3,\"Somma delle superfici dei singoli interventi < della superficie massima d'itervento per la p.lla\",\"\")))","v":""},{"$f":"I3/10000","v":0},null,{"$f":"IF(AE3=1,12.5,IF(AF3=1,25,0))","v":0},{"$f":"COUNTA(C3:E3,G3,I3,L3)","v":0},{"$f":"IF(C3&D3&E3&F3&L3<>\"\",C3&D3&E3&F3&L3,0)","v":0},{"$f":"C3&D3&E3&F3","v":""},{"$f":"C3&D3&E3&F3","v":""},{"$f":"IF(P3<>\"\",SUMIF(P:P,Q3,G:G),0)","v":0},{"$f":"IF(P3<>\"\",SUMIF(P:P,Q3,I:I),0)/(COUNTIF(P:P,Q3))","v":0},{"$f":"IF(P3<>\"\",SUMIF(P:P,Q3,I:I),0)/(COUNTIF(P:P,Q3)*COUNTIF(P:P,Q3))","v":0},{"$f":"M3*I3/(COUNTIF(Q:Q,Q3))","v":0},"BAT","Adelfia","Barletta","Carovigno","Alberona","Alessano","Carosino","Acquaviva delle Fonti","Accadia",{"$f":"COUNTIF($AC$3:$AC$71,$D3)","v":0},{"$f":"COUNTIF($AD$3:$AD$10,$D3)","v":0},{"$f":"MODE(C2:E2,G2:I2,L2)","v":0}]
[{"$f":"'1 - ANAGRAFICA'!$B$8","v":0},2,null,null,null,null,null,0,null,"",{"$f":"I4/10000","v":0},null,{"$f":"IF(AE4=1,12.5,IF(AF4=1,25,0))","v":0},0,{"$f":"IF(C4&D4&E4&F4&L4<>\"\",C4&D4&E4&F4&L4,0)","v":0},"",{"$f":"C4&D4&E4&F4","v":""},{"$f":"IF(P4<>\"\",SUMIF(P:P,Q4,G:G),0)","v":0},{"$f":"IF(P4<>\"\",SUMIF(P:P,Q4,I:I),0)/(COUNTIF(P:P,Q4))","v":0},{"$f":"IF(P4<>\"\",SUMIF(P:P,Q4,I:I),0)/(COUNTIF(P:P,Q4)*COUNTIF(P:P,Q4))","v":0},{"$f":"M4*I4/(COUNTIF(Q:Q,Q4))","v":0},"BRINDISI","Alberobello","Bisceglie","Ceglie Messapica","Anzano di Puglia","Alezio","Castellaneta","Alberobello","Anzano di Puglia",0,0]
[{"$f":"'1 - ANAGRAFICA'!$B$8","v":0},3,null,null,null,null,null,0,null,"",0,null,0,0,0,"","",0,0,0,0,"FOGGIA","Altamura","Canosa di Puglia","Cellino San Marco","Apricena","Alliste","Crispiano","Alberona","Celle di San Vito",0,0,null,null,null,"Intervento_1.1"]
[{"$f":"'1 - ANAGRAFICA'!$B$8","v":0},4,null,null,null,null,null,0,null,"",0,null,0,0,0,"","",0,0,0,0,"LECCE","Bari","Margherita di Savoia","Cisternino","Ascoli Satriano","Andrano","Faggiano","Altamura","Faeto",0,0,null,null,null,"Intervento_1.2"]
[{"$f":"'1 - ANAGRAFICA'!$B$8","v":0},5,null,null,null,null,null,0,null,"",0,null,0,0,0,"","",0,0,0,0,"TARANTO","Binetto","Minervino Murge","Erchie","Biccari","Aradeo","Fragagnano","Andria","Monteleone di Puglia",0,0,null,null,null,"AZIONE_2"]
[{"$f":"'1 - ANAGRAFICA'!$B$8","v":0},6,null,null,null,null,null,0,null,"",0,null,0,0,0,"","",0,0,0,0,null,"Bitetto","San Ferdinando di Puglia","Fasano","Bovino","Arnesano","Ginosa","Ascoli Satriano","Orsara di Puglia",0,0,null,null,null,"AZIONE_3"]
[{"$f":"'1 - ANAGRAFICA'!$B$8","v":0},7,null,null,null,null,null,0,null,"",0,null,0,0,0,"","",0,0,0,0,null,"Bitonto","Spinazzola","Francavilla Fontana","Cagnano Varano","Bagnolo del Salento","Grottaglie","Biccari","Panni",0,0]
[{"$f":"'1 - ANAGRAFICA'!$B$8","v":0},8,null,null,null,null,null,0,null,"",0,null,0,0,0,"","",0,0,0,0,null,"Bitritto","Trani","Latiano","Candela","Botrugno","Laterza","Bitonto","Roseto Valfortore",0,0]
[{"$f":"'1 - ANAGRAFICA'!$B$8","v":0},9,null,null,null,null,null,0,null,"",0,null,0,0,0,"","",0,0,0,0,null,"Capurso","Trinitapoli","Mesagne","Carapelle","Calimera","Leporano","Bovino",null,0,0]
[{"$f":"'1 - ANAGRAFICA'!$B$8","v":0},10,null,null,null,null,null,0,null,"",0,null,0,0,0,"","",0,0,0,0,null,"Casamassima",null,"Oria","Carlantino","Campi Salentina","Lizzano","Cagnano Varano",null,0,0]
[{"$f":"'1 - ANAGRAFICA'!$B$8","v":0},11,null,null,null,null,null,0,null,"",0,null,0,0,0,"","",0,0,0,0,null,"Cassano delle Murge",null,"Ostuni","Carpino","Cannole","Manduria","Candela",null,0,0]
[{"$f":"'1 - ANAGRAFICA'!$B$8","v":0},12,null,null,null,null,null,0,null,"",0,null,0,0,0,"","",0,0,0,0,null,"Castellana Grotte",null,"San Donaci","Casalnuovo Monterotaro","Caprarica di Lecce","Martina Franca","Canosa di Puglia",null,0,0]
[{"$f":"'1 - ANAGRAFICA'!$B$8","v":0},13,null,null,null,null,null,0,null,"",0,null,0,0,0,"","",0,0,0,0,null,"Cellamare",null,"San Michele Salentino","Casalvecchio di Puglia","Carmiano","Maruggio","Carlantino",null,0,0]
[{"$f":"'1 - ANAGRAFICA'!$B$8","v":0},14,null,null,null,null,null,0,null,"",0,null,0,0,0,"","",0,0,0,0,null,"Conversano",null,"San Pancrazio Salentino","Castelluccio dei Sauri","Carpignano Salentino","Massafra","Carpino",null,0,0]
[{"$f":"'1 - ANAGRAFICA'!$B$8","v":0},15,null,null,null,null,null,0,null,"",0,null,0,0,0,"","",0,0,0,0,null,"Corato",null,"San Pietro Vernotico","Castelluccio Valmaggiore","Casarano","Monteiasi","Casalnuovo Monterotaro",null,0,0]
[{"$f":"'1 - ANAGRAFICA'!$B$8","v":0},16,null,null,null,null,null,0,null,"",0,null,0,0,0,"","",0,0,0,0,null,"Gioia del Colle",null,"San Vito dei Normanni","Castelnuovo della Daunia","Castri di Lecce","Montemesola","Casalvecchio di Puglia",null,0,0]
[{"$f":"'1 - ANAGRAFICA'!$B$8","v":0},17,null,null,null,null,null,0,null,"",0,null,0,0,0,"","",0,0,0,0,null,"Giovinazzo",null,"Torchiarolo","Celenza Valfortore","Castrignano de' Greci","Monteparano","Casamassima",null,0,0]
[{"$f":"'1 - ANAGRAFICA'!$B$8","v":0},18,null,null,null,null,null,0,null,"",0,null,0,0,0,"","",0,0,0,0,null,"Gravina in Puglia",null,"Torre Santa Susanna","Celle di San Vito","Castrignano del Capo","Mottola","Cassano delle Murge",null,0,0]
[{"$f":"'1 - ANAGRAFICA'!$B$8","v":0},19,null,null,null,null,null,0,null,"",0,null,0,0,0,"","",0,0,0,0,null,"Grumo Appula",null,"Villa Castelli","Cerignola","Castro","Palagianello","Castellana Grotte",null,0,0]
[{"$f":"'1 - ANAGRAFICA'!$B$8","v":0},20,null,null,null,null,null,0,null,"",0,null,0,0,0,"","",0,0,0,0,null,"Locorotondo",null,null,"Chieuti","Cavallino","Palagiano","Castellaneta ",null,0,0]
[{"$f":"'1 - ANAGRAFICA'!$B$8","v":0},21,null,null,null,null,null,0,null,"",0,null,0,0,0,"","",0,0,0,0,null,"Modugno",null,null,"Deliceto","Collepasso","Pulsano","Castelluccio dei Sauri",null,0,0]
[{"$f":"'1 - ANAGRAFICA'!$B$8","v":0},22,null,null,null,null,null,0,null,"",0,null,0,0,0,"","",0,0,0,0,null,"Mola di Bari",null,null,"Faeto","Copertino","Roccaforzata","Castelluccio Valmaggiore",null,0,0]
[{"$f":"'1 - ANAGRAFICA'!$B$8","v":0},23,null,null,null,null,null,0,null,"",0,null,0,0,0,"","",0,0,0,0,null,"Molfetta",null,null,"Foggia","Corigliano d'Otranto","San Giorgio Ionico","Castelnuovo della Daunia",null,0,0]
[{"$f":"'1 - ANAGRAFICA'!$B$8","v":0},24,null,null,null,null,null,0,null,"",0,null,0,0,0,"","",0,0,0,0,null,"Monopoli",null,null,"Ischitella","Corsano","San Marzano di San Giuseppe","Ceglie Messapica",null,0,0]
[{"$f":"'1 - ANAGRAFICA'!$B$8","v":0},25,null,null,null,null,null,0,null,"",0,null,0,0,0,"","",0,0,0,0,null,"Noci",null,null,"Isole Tremiti","Cursi","Sava","Celenza Valfortore",null,0,0]
[{"$f":"'1 - ANAGRAFICA'!$B$8","v":0},26,null,null,null,null,null,0,null,"",0,null,0,0,0,"","",0,0,0,0,null,"Noicàttaro",null,null,"Lesina","Cutrofiano","Statte","Cisternino",null,0,0]
[{"$f":"'1 - ANAGRAFICA'!$B$8","v":0},27,null,null,null,null,null,0,null,"",0,null,0,0,0,"","",0,0,0,0,null,"Palo del Colle",null,null,"Lucera","Diso","Taranto","Conversano",null,0,0]
[{"$f":"'1 - ANAGRAFICA'!$B$8","v":0},28,null,null,null,null,null,0,null,"",0,null,0,0,0,"","",0,0,0,0,null,"Poggiorsini",null,null,"Manfredonia","Gagliano del Capo","Torricella","Corato",null,0,0]
[{"$f":"'1 - ANAGRAFICA'!$B$8","v":0},29,null,null,null,null,null,0,null,"",0,null,0,0,0,"","",0,0,0,0,null,"Polignano a Mare",null,null,"Mattinata","Galatina",null,"Deliceto",null,0,0]
[{"$f":"'1 - ANAGRAFICA'!$B$8","v":0},30,null,null,null,null,null,0,null,"",0,null,0,0,0,"","",0,0,0,0,null,"Putignano",null,null,"Monte Sant'Angelo","Galatone",null,"Fasano",null,0,0]
[{"$f":"'1 - ANAGRAFICA'!$B$8","v":0},31,null,null,null,null,null,0,null,"",0,null,0,0,0,"","",0,0,0,0,null,"Rutigliano",null,null,"Monteleone di Puglia","Gallipoli",null,"Ginosa",null,0,0]
[{"$f":"'1 - ANAGRAFICA'!$B$8","v":0},32,null,null,null,null,null,0,null,"",0,null,0,0,0,"","",0,0,0,0,null,"Ruvo di Puglia",null,null,"Motta Montecorvino","Giuggianello",null,"Gioia del Colle",null,0,0]
[{"$f":"'1 - ANAGRAFICA'!$B$8","v":0},33,null,null,null,null,null,{"$f":"G35/10000","v":0},null,{"$f":"IF(I35<G35,\"Superficie massima < della superficie del singolo intervento\",IF(I35<>S35,\"Superficie massima interventi per foglio di mappa, non uguale sul foglio\",IF(I35>R35,\"Somma delle superfici dei singoli interventi < della superficie massima d'itervento per la p.lla\",\"\")))","v":""},0,null,0,{"$f":"COUNTA(C35:E35,G35,I35,L35)","v":0},0,{"$f":"C35&D35&E35&F35","v":""},"",0,0,0,0,null,"Sammichele di Bari",null,null,"Ordona","Giurdignano",null,"Gravina in Puglia",null,{"$f":"COUNTIF($AC$3:$AC$71,$D35)","v":0},{"$f":"COUNTIF($AD$3:$AD$10,$D35)","v":0}]
[{"$f":"'1 - ANAGRAFICA'!$B$8","v":0},34,null,null,null,null,null,0,null,"",0,null,0,0,0,"","",0,0,0,0,null,"Sannicandro di Bari",null,null,"Orsara di Puglia","Guagnano",null,"Grumo Appula",null,0,0]
[{"$f":"'1 - ANAGRAFICA'!$B$8","v":0},35,null,null,null,null,null,0,null,"",0,null,0,0,0,"","",0,0,0,0,null,"Santeramo in Colle",null,null,"Orta Nova","Lecce",null,"Ischitella",null,0,0]
[{"$f":"'1 - ANAGRAFICA'!$B$8","v":0},36,null,null,null,null,null,0,null,"",0,null,0,0,0,"","",0,0,0,0,null,"Terlizzi",null,null,"Panni","Lequile",null,"Laterza",null,0,0]
[{"$f":"'1 - ANAGRAFICA'!$B$8","v":0},37,null,null,null,null,null,0,null,"",0,null,0,0,0,"","",0,0,0,0,null,"Toritto",null,null,"Peschici","Leverano",null,"Locorotondo",null,0,0]
[{"$f":"'1 - ANAGRAFICA'!$B$8","v":0},38,null,null,null,null,null,0,null,"",0,null,0,0,0,"","",0,0,0,0,null,"Triggiano",null,null,"Pietramontecorvino","Lizzanello",null,"Martina Franca",null,0,0]
[{"$f":"'1 - ANAGRAFICA'!$B$8","v":0},39,null,null,null,null,null,0,null,"",0,null,0,0,0,"","",0,0,0,0,null,"Turi",null,null,"Poggio Imperiale","Maglie",null,"Mattinata",null,0,0]
[{"$f":"'1 - ANAGRAFICA'!$B$8","v":0},40,null,null,null,null,null,0,null,"",0,null,0,0,0,"","",0,0,0,0,null,"Valenzano",null,null,"Rignano Garganico","Martano",null,"Minervino Murge",null,0,0]
[{"$f":"'1 - ANAGRAFICA'!$B$8","v":0},41,null,null,null,null,null,0,null,"",0,null,0,0,0,"","",0,0,0,0,null,null,null,null,"Rocchetta Sant'Antonio","Martignano",null,"Monte Sant'Angelo",null,0,0]
[{"$f":"'1 - ANAGRAFICA'!$B$8","v":0},42,null,null,null,null,null,0,null,"",0,null,0,0,0,"","",0,0,0,0,null,null,null,null,"Rodi Garganico","Matino",null,"Motta Montecorvino",null,0,0]
[{"$f":"'1 - ANAGRAFICA'!$B$8","v":0},43,null,null,null,null,null,0,null,"",0,null,0,0,0,"","",0,0,0,0,null,null,null,null,"Roseto Valfortore","Melendugno",null,"Mottola",null,0,0]
[{"$f":"'1 - ANAGRAFICA'!$B$8","v":0},44,null,null,null,null,null,0,null,"",0,null,0,0,0,"","",0,0,0,0,null,null,null,null,"San Giovanni Rotondo","Melissano",null,"Noci",null,0,0]
[{"$f":"'1 - ANAGRAFICA'!$B$8","v":0},45,null,null,null,null,null,0,null,"",0,null,0,0,0,"","",0,0,0,0,null,null,null,null,"San Marco in Lamis","Melpignano",null,"Ostuni",null,0,0]
[{"$f":"'1 - ANAGRAFICA'!$B$8","v":0},46,null,null,null,null,null,0,null,"",0,null,0,0,0,"","",0,0,0,0,null,null,null,null,"San Marco la Catola","Miggiano",null,"Palo del Colle",null,0,0]
[{"$f":"'1 - ANAGRAFICA'!$B$8","v":0},47,null,null,null,null,null,0,null,"",0,null,0,0,0,"","",0,0,0,0,null,null,null,null,"San Nicandro Garganico","Minervino di Lecce",null,"Peschici",null,0,0]
[{"$f":"'1 - ANAGRAFICA'!$B$8","v":0},48,null,null,null,null,null,0,null,"",0,null,0,0,0,"","",0,0,0,0,null,null,null,null,"San Paolo di Civitate","Monteroni di Lecce",null,"Pietramontecorvino",null,0,0]
[{"$f":"'1 - ANAGRAFICA'!$B$8","v":0},49,null,null,null,null,null,0,null,"",0,null,0,0,0,"","",0,0,0,0,null,null,null,null,"San Severo","Montesano Salentino",null,"Putignano",null,0,0]
[{"$f":"'1 - ANAGRAFICA'!$B$8","v":0},50,null,null,null,null,null,0,null,"",0,null,0,0,0,"","",0,0,0,0,null,null,null,null,"Sant'Agata di Puglia","Morciano di Leuca",null,"Rignano Garganico",null,0,0]
[{"$f":"'1 - ANAGRAFICA'!$B$8","v":0},51,null,null,null,null,null,0,null,"",0,null,0,0,0,"","",0,0,0,0,null,null,null,null,"Serracapriola","Muro Leccese",null,"Rocchetta Sant'Antonio",null,0,0]
[{"$f":"'1 - ANAGRAFICA'!$B$8","v":0},52,null,null,null,null,null,0,null,"",0,null,0,0,0,"","",0,0,0,0,null,null,null,null,"Stornara","Nardò",null,"Rodi Garganico",null,0,0]
[{"$f":"'1 - ANAGRAFICA'!$B$8","v":0},53,null,null,null,null,null,0,null,"",0,null,0,0,0,"","",0,0,0,0,null,null,null,null,"Stornarella","Neviano",null,"Ruvo di Puglia",null,0,0]
[{"$f":"'1 - ANAGRAFICA'!$B$8","v":0},54,null,null,null,null,null,0,null,"",0,null,0,0,0,"","",0,0,0,0,null,null,null,null,"Torremaggiore","Nociglia",null,"Sammichele di Bari",null,0,0]
[{"$f":"'1 - ANAGRAFICA'!$B$8","v":0},55,null,null,null,null,null,0,null,"",0,null,0,0,0,"","",0,0,0,0,null,null,null,null,"Troia","Novoli",null,"San Giovanni Rotondo",null,0,0]
[{"$f":"'1 - ANAGRAFICA'!$B$8","v":0},56,null,null,null,null,null,0,null,"",0,null,0,0,0,"","",0,0,0,0,null,null,null,null,"Vico del Gargano","Ortelle",null,"San Marco in Lamis",null,0,0]
[{"$f":"'1 - ANAGRAFICA'!$B$8","v":0},57,null,null,null,null,null,0,null,"",0,null,0,0,0,"","",0,0,0,0,null,null,null,null,"Vieste","Otranto",null,"San Marco la Catola",null,0,0]
[{"$f":"'1 - ANAGRAFICA'!$B$8","v":0},58,null,null,null,null,null,0,null,"",0,null,0,0,0,"","",0,0,0,0,null,null,null,null,"Volturara Appula","Palmariggi",null,"Sannicandro di Bari",null,0,0]
[{"$f":"'1 - ANAGRAFICA'!$B$8","v":0},59,null,null,null,null,null,0,null,"",0,null,0,0,0,"","",0,0,0,0,null,null,null,null,"Volturino","Parabita",null,"Sant'Agata di Puglia",null,0,0]
[{"$f":"'1 - ANAGRAFICA'!$B$8","v":0},60,null,null,null,null,null,0,null,"",0,null,0,0,0,"","",0,0,0,0,null,null,null,null,"Zapponeta","Patù",null,"Santeramo in Colle",null,0,0]
[{"$f":"'1 - ANAGRAFICA'!$B$8","v":0},61,null,null,null,null,null,0,null,"",0,null,0,0,0,"","",0,0,0,0,null,null,null,null,null,"Poggiardo",null,"Spinazzola",null,0,0]
[{"$f":"'1 - ANAGRAFICA'!$B$8","v":0},62,null,null,null,null,null,0,null,"",0,null,0,0,0,"","",0,0,0,0,null,null,null,null,null,"Porto Cesareo",null,"Terlizzi",null,0,0]
[{"$f":"'1 - ANAGRAFICA'!$B$8","v":0},63,null,null,null,null,null,0,null,"",0,null,0,0,0,"","",0,0,0,0,null,null,null,null,null,"Presicce",null,"Toritto",null,0,0]
[{"$f":"'1 - ANAGRAFICA'!$B$8","v":0},64,null,null,null,null,null,0,null,"",0,null,0,0,0,"","",0,0,0,0,null,null,null,null,null,"Racale",null,"Turi",null,0,0]
[{"$f":"'1 - ANAGRAFICA'!$B$8","v":0},65,null,null,null,null,null,{"$f":"G67/10000","v":0},null,{"$f":"IF(I67<G67,\"Superficie massima < della superficie del singolo intervento\",IF(I67<>S67,\"Superficie massima interventi per foglio di mappa, non uguale sul foglio\",IF(I67>R67,\"Somma delle superfici dei singoli interventi < della superficie massima d'itervento per la p.lla\",\"\")))","v":""},0,null,0,{"$f":"COUNTA(C67:E67,G67,I67,L67)","v":0},0,{"$f":"C67&D67&E67&F67","v":""},"",0,0,0,0,null,null,null,null,null,"Ruffano",null,"Vico del Gargano",null,{"$f":"COUNTIF($AC$3:$AC$71,$D67)","v":0},{"$f":"COUNTIF($AD$3:$AD$10,$D67)","v":0}]
[{"$f":"'1 - ANAGRAFICA'!$B$8","v":0},66,null,null,null,null,null,0,null,"",{"$f":"I68/10000","v":0},null,{"$f":"IF(AE68=1,12.5,IF(AF68=1,25,0))","v":0},0,{"$f":"IF(C68&D68&E68&F68&L68<>\"\",C68&D68&E68&F68&L68,0)","v":0},"",{"$f":"C68&D68&E68&F68","v":""},{"$f":"IF(P68<>\"\",SUMIF(P:P,Q68,G:G),0)","v":0},{"$f":"IF(P68<>\"\",SUMIF(P:P,Q68,I:I),0)/(COUNTIF(P:P,Q68))","v":0},{"$f":"IF(P68<>\"\",SUMIF(P:P,Q68,I:I),0)/(COUNTIF(P:P,Q68)*COUNTIF(P:P,Q68))","v":0},{"$f":"M68*I68/(COUNTIF(Q:Q,Q68))","v":0},null,null,null,null,null,"Salice Salentino",null,"Vieste",null,0,0]
[{"$f":"'1 - ANAGRAFICA'!$B$8","v":0},67,null,null,null,null,null,0,null,"",0,null,0,0,0,"","",0,0,0,0,null,null,null,null,null,"Salve",null,"Villa Castelli",null,0,0]
[{"$f":"'1 - ANAGRAFICA'!$B$8","v":0},68,null,null,null,null,null,0,null,"",0,null,0,0,0,"","",0,0,0,0,null,null,null,null,null,"San Cassiano",null,"Volturara Appula",null,0,0]
[{"$f":"'1 - ANAGRAFICA'!$B$8","v":0},69,null,null,null,null,null,0,null,"",0,null,0,0,0,"","",0,0,0,0,null,null,null,null,null,"San Cesario di Lecce",null,"Volturino",null,0,0]
[{"$f":"'1 - ANAGRAFICA'!$B$8","v":0},70,null,null,null,null,null,0,null,"",0,null,0,0,0,"","",0,0,0,0,null,null,null,null,null,"San Donato di Lecce",null,null,null,0,0]
[{"$f":"'1 - ANAGRAFICA'!$B$8","v":0},71,null,null,null,null,null,0,null,"",0,null,0,0,0,"","",0,0,0,0,null,null,null,null,null,"San Pietro in Lama",null,null,null,0,0]
[{"$f":"'1 - ANAGRAFICA'!$B$8","v":0},72,null,null,null,null,null,0,null,"",0,null,0,0,0,"","",0,0,0,0,null,null,null,null,null,"Sanarica",null,null,null,0,0]
[{"$f":"'1 - ANAGRAFICA'!$B$8","v":0},73,null,null,null,null,null,0,null,"",0,null,0,0,0,"","",0,0,0,0,null,null,null,null,null,"Sannicola",null,null,null,0,0]
[{"$f":"'1 - ANAGRAFICA'!$B$8","v":0},74,null,null,null,null,null,0,null,"",0,null,0,0,0,"","",0,0,0,0,null,null,null,null,null,"Santa Cesarea Terme",null,null,null,0,0]
[{"$f":"'1 - ANAGRAFICA'!$B$8","v":0},75,null,null,null,null,null,0,null,"",0,null,0,0,0,"","",0,0,0,0,null,null,null,null,null,"Scorrano",null,null,null,0,0]
[{"$f":"'1 - ANAGRAFICA'!$B$8","v":0},76,null,null,null,null,null,0,null,"",0,null,0,0,0,"","",0,0,0,0,null,null,null,null,null,"Seclì",null,null,null,0,0]
[{"$f":"'1 - ANAGRAFICA'!$B$8","v":0},77,null,null,null,null,null,0,null,"",0,null,0,0,0,"","",0,0,0,0,null,null,null,null,null,"Sogliano Cavour",null,null,null,0,0]
[{"$f":"'1 - ANAGRAFICA'!$B$8","v":0},78,null,null,null,null,null,0,null,"",0,null,0,0,0,"","",0,0,0,0,null,null,null,null,null,"Soleto",null,null,null,0,0]
[{"$f":"'1 - ANAGRAFICA'!$B$8","v":0},79,null,null,null,null,null,0,null,"",0,null,0,0,0,"","",0,0,0,0,null,null,null,null,null,"Specchia",null,null,null,0,0]
[{"$f":"'1 - ANAGRAFICA'!$B$8","v":0},80,null,null,null,null,null,0,null,"",0,null,0,0,0,"","",0,0,0,0,null,null,null,null,null,"Spongano",null,null,null,0,0]
[{"$f":"'1 - ANAGRAFICA'!$B$8","v":0},81,null,null,null,null,null,0,null,"",0,null,0,0,0,"","",0,0,0,0,null,null,null,null,null,"Squinzano",null,null,null,0,0]
[{"$f":"'1 - ANAGRAFICA'!$B$8","v":0},82,null,null,null,null,null,0,null,"",0,null,0,0,0,"","",0,0,0,0,null,null,null,null,null,"Sternatia",null,null,null,0,0]
[{"$f":"'1 - ANAGRAFICA'!$B$8","v":0},83,null,null,null,null,null,0,null,"",0,null,0,0,0,"","",0,0,0,0,null,null,null,null,null,"Supersano",null,null,null,0,0]
[{"$f":"'1 - ANAGRAFICA'!$B$8","v":0},84,null,null,null,null,null,0,null,"",0,null,0,0,0,"","",0,0,0,0,null,null,null,null,null,"Surano",null,null,null,0,0]
[{"$f":"'1 - ANAGRAFICA'!$B$8","v":0},85,null,null,null,null,null,0,null,"",0,null,0,0,0,"","",0,0,0,0,null,null,null,null,null,"Surbo",null,null,null,0,0]
[{"$f":"'1 - ANAGRAFICA'!$B$8","v":0},86,null,null,null,null,null,0,null,"",0,null,0,0,0,"","",0,0,0,0,null,null,null,null,null,"Taurisano",null,null,null,0,0]
[{"$f":"'1 - ANAGRAFICA'!$B$8","v":0},87,null,null,null,null,null,0,null,"",0,null,0,0,0,"","",0,0,0,0,null,null,null,null,null,"Taviano",null,null,null,0,0]
[{"$f":"'1 - ANAGRAFICA'!$B$8","v":0},88,null,null,null,null,null,0,null,"",0,null,0,0,0,"","",0,0,0,0,null,null,null,null,null,"Tiggiano",null,null,null,0,0]
[{"$f":"'1 - ANAGRAFICA'!$B$8","v":0},89,null,null,null,null,null,0,null,"",0,null,0,0,0,"","",0,0,0,0,null,null,null,null,null,"Trepuzzi",null,null,null,0,0]
[{"$f":"'1 - ANAGRAFICA'!$B$8","v":0},90,null,null,null,null,null,0,null,"",0,null,0,0,0,"","",0,0,0,0,null,null,null,null,null,"Tricase",null,null,null,0,0]
[{"$f":"'1 - ANAGRAFICA'!$B$8","v":0},91,null,null,null,null,null,0,null,"",0,null,0,0,0,"","",0,0,0,0,null,null,null,null,null,"Tuglie",null,null,null,0,0]
[{"$f":"'1 - ANAGRAFICA'!$B$8","v":0},92,null,null,null,null,null,0,null,"",0,null,0,0,0,"","",0,0,0,0,null,null,null,null,null,"Ugento",null,null,null,0,0]
[{"$f":"'1 - ANAGRAFICA'!$B$8","v":0},93,null,null,null,null,null,0,null,"",0,null,0,0,0,"","",0,0,0,0,null,null,null,null,null,"Uggiano La Chiesa",null,null,null,0,0]
[{"$f":"'1 - ANAGRAFICA'!$B$8","v":0},94,null,null,null,null,null,0,null,"",0,null,0,0,0,"","",0,0,0,0,null,null,null,null,null,"Veglie",null,null,null,0,0]
[{"$f":"'1 - ANAGRAFICA'!$B$8","v":0},95,null,null,null,null,null,0,null,"",0,null,0,0,0,"","",0,0,0,0,null,null,null,null,null,"Vernole",null,null,null,0,0]
[{"$f":"'1 - ANAGRAFICA'!$B$8","v":0},96,null,null,null,null,null,0,null,"",0,null,0,0,0,"","",0,0,0,0,null,null,null,null,null,"Zollino",null,null,null,0,0]
[{"$f":"'1 - ANAGRAFICA'!$B$8","v":0},97,null,null,null,null,null,{"$f":"G99/10000","v":0},null,{"$f":"IF(I99<G99,\"Superficie massima < della superficie del singolo intervento\",IF(I99<>S99,\"Superficie massima interventi per foglio di mappa, non uguale sul foglio\",IF(I99>R99,\"Somma delle superfici dei singoli interventi < della superficie massima d'itervento per la p.lla\",\"\")))","v":""},0,null,0,0,0,"","",0,0,0,0,null,null,null,null,null,null,null,null,null,0,0]
[{"$f":"'1 - ANAGRAFICA'!$B$8","v":0},98,null,null,null,null,null,{"$f":"G100/10000","v":0},null,"",0,null,0,0,0,"","",0,0,0,0,null,null,null,null,null,null,null,null,null,0,0]
[{"$f":"'1 - ANAGRAFICA'!$B$8","v":0},99,null,null,null,null,null,{"$f":"G101/10000","v":0},null,"",0,null,0,0,0,"","",0,0,0,0,null,null,null,null,null,null,null,null,null,0,0]
[{"$f":"'1 - ANAGRAFICA'!$B$8","v":0},100,null,null,null,null,null,{"$f":"G102/10000","v":0},null,"",0,null,0,0,0,"","",0,0,0,0,null,null,null,null,null,null,null,null,null,0,0]

{"sheet":"5_1.1 - QUADRO INTERVENTI 1.1","index":4,"n_rows":136,"n_cols":15,"rows_kept":136,"cut":false,"hidden":false,"merged":[[35,10,35,11],[36,10,36,11],[55,10,55,11],[54,10,54,11],[135,3,135,5],[133,3,133,5],[132,3,132,5],[130,3,130,5],[123,3,123,5],[57,10,57,11],[58,10,58,11],[59,10,59,11],[60,10,60,11],[71,1,71,4],[70,10,70,11],[71,10,71,11],[0,1,0,9],[113,1,113,4],[112,1,112,4],[111,1,111,4],[23,10,23,11],[22,10,22,11],[25,10,25,11],[24,10,24,11],[60,1,60,4],[34,1,34,4],[54,1,54,4],[36,1,36,4],[37,4,53,4],[55,1,55,4],[35,1,35,4],[34,10,34,11],[1,2,1,3],[25,1,25,4],[26,4,33,4],[22,1,22,4],[23,1,23,4],[24,1,24,4],[2,4,21,4],[61,4,69,4],[57,1,57,4],[58,1,58,4],[70,1,70,4],[59,1,59,4],[115,2,115,3],[113,5,113,6],[112,5,112,6],[110,5,110,6],[72,10,72,11],[81,10,81,11],[82,10,82,11],[96,10,96,11],[104,1,104,4],[72,1,72,4],[73,4,80,4],[82,1,82,4],[96,1,96,4],[83,4,95,4],[97,4,103,4],[81,1,81,4],[114,1,114,9],[108,8,113,9],[104,8,107,9],[107,10,107,11],[105,1,105,4],[106,1,106,4],[104,10,104,11],[105,10,105,11],[106,10,106,11],[107,1,107,4],[108,1,108,7],[109,5,109,6],[111,5,111,6],[122,3,122,8],[125,3,125,8],[124,3,124,8],[127,3,128,8],[117,3,117,8],[119,3,119,8],[118,3,118,8],[120,3,120,8],[121,3,121,8],[72,5,72,6],[72,8,72,9],[60,5,60,6],[60,8,60,9],[82,5,82,6],[82,8,82,9]]}
[null,"INVESTIMENTO RICHIESTO  AZIONE 1 - INTERVENTO 1.1"]
[null,"N. prog","Descrizione della voce di costo secondo quanto previsto dal paragrafo 3.2.1.1 delle Linee Guida per la progettazione e realizzazione degli interventi della sottomisura 8.6 (tabella 4) ",null,"Campo di applicazione e limitazioni definite dalle tabelle 3 e 4 delle Linee Guida (DAG n. 348/2019)","Unità di misura","Quantità","Costo preventivato totale per le quantità indicate (euro)","Riduzione delle emissioni nocive","Miglioramento delle condizioni di sicurezza dei lavoratori"]
[null,1,"A preventivo",{"$f":"IF(AND('classificazione imprese AZ_1'!$A$9=\"SI\",'classificazione imprese AZ_1'!$A$5=\"NO\",'classificazione imprese AZ_1'!$B$7=0),\"\",\"Motoseghe\")","v":"Motoseghe"},"Fattispecie X\nAttrezzature per gestione bosco, utilizzazioni forestali e biomasse legnose - Imprese della Classe D, ed aziende forestali con superfici boscate da 0,2 a 25 ha, con limite di spesa fino a 25.000,00 Euro. Possono, inoltre, richiedere l'acquisto delle macchine/attrezzature dal n.1 al n.20: le Imprese della Classe C e le aziende forestali con superfici boscate da 25 a 50 ha, con limite di spesa fino a 75.000,00 Euro;  le aziende forestali con superfici boscate > 50 Ha e fino ai 100 ha, con limite di spesa fino a 75.000,00 Euro, le aziende forestali con superfici boscate > 100 Ha e le Imprese delle Classi A e B  con limite di spesa fino a 100.000,00",{"$f":"IF(K3=\"ATTENZIONE - SPESA NON AMMISSIBILE PER LA CATEGORIA DI IMPRESA\",\"ALLARME\",IF(AND(H3>0,OR(I3=\"\",J3=\"\")),\"COMPILARE COLONNE I E J\",\"numero\"))","v":"numero"},null,null,null,null,{"$f":"IF(AND(D3=\"\",H3<>\"\"),\"ATTENZIONE - SPESA NON AMMISSIBILE PER LA CATEGORIA DI IMPRESA\",\"\")","v":""},null,null,{"$f":"IF(H3=\"\",0,IF(AND(I3=\"SI\",J3=\"SI\"),1,IF(OR(I3=\"SI\",J3=\"SI\"),0.5,0)))","v":0},{"$f":"H3*N3","v":0}]
[null,2,"A preventivo",{"$f":"IF(AND('classificazione imprese AZ_1'!$A$9=\"SI\",'classificazione imprese AZ_1'!$A$5=\"NO\",'classificazione imprese AZ_1'!$B$7=0),\"\",\"Decespugliatori, anche a spalla o spalleggiati\")","v":"Decespugliatori, anche a spalla o spalleggiati"},null,{"$f":"IF(K4=\"ATTENZIONE - SPESA NON AMMISSIBILE PER LA CATEGORIA DI IMPRESA\",\"ALLARME\",IF(AND(H4>0,OR(I4=\"\",J4=\"\")),\"COMPILARE COLONNE I E J\",\"numero\"))","v":"numero"},null,null,null,null,"",null,null,{"$f":"IF(H4=\"\",0,IF(AND(I4=\"SI\",J4=\"SI\"),1,IF(OR(I4=\"SI\",J4=\"SI\"),0.5,0)))","v":0},{"$f":"H4*N4","v":0}]
[null,3,"A preventivo",{"$f":"IF(AND('classificazione imprese AZ_1'!$A$9=\"SI\",'classificazione imprese AZ_1'!$A$5=\"NO\",'classificazione imprese AZ_1'!$B$7=0),\"\",\"Decespugliatori portati\")","v":"Decespugliatori portati"},null,"numero",null,null,null,null,"",null,null,0,0]
[null,4,"A preventivo",{"$f":"IF(AND('classificazione imprese AZ_1'!$A$9=\"SI\",'classificazione imprese AZ_1'!$A$5=\"NO\",'classificazione imprese AZ_1'!$B$7=0),\"\",\"Aste potatrici\")","v":"Aste potatrici"},null,"numero",null,null,null,null,"",null,null,0,0]
[null,5,"A preventivo",{"$f":"IF(AND('classificazione imprese AZ_1'!$A$9=\"SI\",'classificazione imprese AZ_1'!$A$5=\"NO\",'classificazione imprese AZ_1'!$B$7=0),\"\",\"Giratronchi\")","v":"Giratronchi"},null,"numero",null,null,null,null,"",null,null,0,0]
[null,6,"A preventivo",{"$f":"IF(AND('classificazione imprese AZ_1'!$A$9=\"SI\",'classificazione imprese AZ_1'!$A$5=\"NO\",'classificazione imprese AZ_1'!$B$7=0),\"\",\"Slittini\")","v":"Slittini"},null,"numero",null,null,null,null,"",null,null,0,0]
[null,7,"A preventivo",{"$f":"IF(AND('classificazione imprese AZ_1'!$A$9=\"SI\",'classificazione imprese AZ_1'!$A$5=\"NO\",'classificazione imprese AZ_1'!$B$7=0),\"\",\"Tirfor\")","v":"Tirfor"},null,"numero",null,null,null,null,"",null,null,0,0]
[null,8,"A preventivo",{"$f":"IF(AND('classificazione imprese AZ_1'!$A$9=\"SI\",'classificazione imprese AZ_1'!$A$5=\"NO\",'classificazione imprese AZ_1'!$B$7=0),\"\",\"Soffiatori\")","v":"Soffiatori"},null,"numero",null,null,null,null,"",null,null,0,0]
[null,9,"A preventivo",{"$f":"IF(AND('classificazione imprese AZ_1'!$A$9=\"SI\",'classificazione imprese AZ_1'!$A$5=\"NO\",'classificazione imprese AZ_1'!$B$7=0),\"\",\"Altre attrezzature minute\")","v":"Altre attrezzature minute"},null,"numero",null,null,null,null,"",null,null,0,0]
[null,10,"A preventivo",{"$f":"IF(AND('classificazione imprese AZ_1'!$A$9=\"SI\",'classificazione imprese AZ_1'!$A$5=\"NO\",'classificazione imprese AZ_1'!$B$7=0),\"\",\"Verricelli\")","v":"Verricelli"},null,"numero",null,null,null,null,"",null,null,0,0]
[null,11,"A preventivo",{"$f":"IF(AND('classificazione imprese AZ_1'!$A$9=\"SI\",'classificazione imprese AZ_1'!$A$5=\"NO\",'classificazione imprese AZ_1'!$B$7=0),\"\",\"Canalette\")","v":"Canalette"},null,"numero",null,null,null,null,"",null,null,0,0]
[null,12,"A preventivo",{"$f":"IF(AND('classificazione imprese AZ_1'!$A$9=\"SI\",'classificazione imprese AZ_1'!$A$5=\"NO\",'classificazione imprese AZ_1'!$B$7=0),\"\",\"Motocarriola\")","v":"Motocarriola"},null,"numero",null,null,null,null,"",null,null,0,0]
[null,13,"A preventivo",{"$f":"IF(AND('classificazione imprese AZ_1'!$A$9=\"SI\",'classificazione imprese AZ_1'!$A$5=\"NO\",'classificazione imprese AZ_1'!$B$7=0),\"\",\"Rimorchi trazionati\")","v":"Rimorchi trazionati"},null,"numero",null,null,null,null,"",null,null,0,0]
[null,14,"A preventivo",{"$f":"IF(AND('classificazione imprese AZ_1'!$A$9=\"SI\",'classificazione imprese AZ_1'!$A$5=\"NO\",'classificazione imprese AZ_1'!$B$7=0),\"\",\"Mulo meccanico\")","v":"Mulo meccanico"},null,"numero",null,null,null,null,"",null,null,0,0]
[null,15,"A preventivo",{"$f":"IF(AND('classificazione imprese AZ_1'!$A$9=\"SI\",'classificazione imprese AZ_1'!$A$5=\"NO\",'classificazione imprese AZ_1'!$B$7=0),\"\",\"Gabbie affastellatrici\")","v":"Gabbie affastellatrici"},null,"numero",null,null,null,null,"",null,null,0,0]
[null,16,"A preventivo",{"$f":"IF(AND('classificazione imprese AZ_1'!$A$9=\"SI\",'classificazione imprese AZ_1'!$A$5=\"NO\",'classificazione imprese AZ_1'!$B$7=0),\"\",\"Pese calibrate\")","v":"Pese calibrate"},null,"numero",null,null,null,null,"",null,null,0,0]
[null,17,"A preventivo",{"$f":"IF(AND('classificazione imprese AZ_1'!$A$9=\"SI\",'classificazione imprese AZ_1'!$A$5=\"NO\",'classificazione imprese AZ_1'!$B$7=0),\"\",\"Forche o pinze carica tronchi\")","v":"Forche o pinze carica tronchi"},null,"numero",null,null,null,null,"",null,null,0,0]
[null,18,"A preventivo",{"$f":"IF(AND('classificazione imprese AZ_1'!$A$9=\"SI\",'classificazione imprese AZ_1'!$A$5=\"NO\",'classificazione imprese AZ_1'!$B$7=0),\"\",\"Gru caricatrici forestali\")","v":"Gru caricatrici forestali"},null,"numero",null,null,null,null,"",null,null,0,0]
[null,19,"A preventivo",{"$f":"IF(AND('classificazione imprese AZ_1'!$A$9=\"SI\",'classificazione imprese AZ_1'!$A$5=\"NO\",'classificazione imprese AZ_1'!$B$7=0),\"\",\"Semoventi idonei ai lavori forestali, con potenza fino a 20 KW (Motoagricole)\")","v":"Semoventi idonei ai lavori forestali, con potenza fino a 20 KW (Motoagricole)"},null,"numero",null,null,null,null,"",null,null,0,0]
[null,20,"A preventivo",{"$f":"IF(AND('classificazione imprese AZ_1'!$A$9=\"SI\",'classificazione imprese AZ_1'!$A$5=\"NO\",'classificazione imprese AZ_1'!$B$7=0),\"\",\"Attrezzature per trasporto legna con muli da soma (Basto, finimenti, ecc.)\")","v":"Attrezzature per trasporto legna con muli da soma (Basto, finimenti, ecc.)"},null,"numero",null,null,null,null,"",null,null,0,0]
[null,"Subtotale Classe D e aziende forestali con superficie boscata da 0,2 a 25 Ha max Euro 25.000",null,null,null,null,null,{"$f":"IF('classificazione imprese AZ_1'!$D$6=\"X\",SUM('5_1.1 - QUADRO INTERVENTI 1.1'!H3:H22),\"\")","v":""},null,null,{"$f":"IF(H23=\"\",\"\",IF(H23>25000,\"Attenzione superato il limite finanziabile di 25.000 euro, l'eccedenza a tale limite sarà a carico del beneficiario\",\"\"))","v":""},null,{"$f":"IF(H23=\"\",0,H23)","v":0}]
[null,"Subtotale Classe C e aziende forestali con superficie boscata > 25 e fino a 50 ha max Euro 75.000",null,null,null,null,null,{"$f":"IF('classificazione imprese AZ_1'!D6=\"Y\",SUM('5_1.1 - QUADRO INTERVENTI 1.1'!H3:H22),\"\")","v":""},null,null,{"$f":"IF(H24=\"\",\"\",IF(H24>75000,\"Attenzione superato il limite finanziabile di 75.000 euro, l'eccedenza a tale limite sarà a carico del beneficiario\",\"\"))","v":""},null,{"$f":"IF(H24=\"\",0,H24)","v":0}]
[null,"Subtotale aziende forestali con superficie boscata > 50 e fino a 100 ha max Euro 75.000",null,null,null,null,null,{"$f":"IF('classificazione imprese AZ_1'!D6=\"Z1\",SUM('5_1.1 - QUADRO INTERVENTI 1.1'!H3:H22),\"\")","v":""},null,null,{"$f":"IF(H25=\"\",\"\",IF(H25>75000,\"Attenzione superato il limite finanziabile di 75.000 euro, l'eccedenza a tale limite sarà a carico del beneficiario\",\"\"))","v":""},null,0]
[null,"Subtotale Classi A e B e aziende forestali con superficie boscata > 100 ha max Euro 100.000",null,null,null,null,null,{"$f":"IF('classificazione imprese AZ_1'!D6=\"Z\",SUM('5_1.1 - QUADRO INTERVENTI 1.1'!H3:H22),\"\")","v":""},null,null,{"$f":"IF(H26=\"\",\"\",IF(H26>100000,\"Attenzione superato il limite finanziabile di 100.000 euro, l'eccedenza a tale limite sarà a carico del beneficiario\",\"\"))","v":""},null,0]
[null,21,"A preventivo",{"$f":"IF(OR('classificazione imprese AZ_1'!D6=\"Z\",'classificazione imprese AZ_1'!D6=\"Y\",'classificazione imprese AZ_1'!D6=\"Z1\"),\"Trattore con gabbie\",\"\")","v":""},"Fattispecie Y\nAttrezzature per gestione bosco, utilizzazioni forestali e biomasse legnose - Imprese della Classe C, ed aziende forestali con superfici boscate > 25 ha e fino a 50 ha, con limite di spesa fino a 75.000,00 Euro. Possono, inoltre, richiedere l'acquisto delle macchine/attrezzature dal n.21 al n.28 le aziende forestali con superfici boscate > 50 Ha e fino ai 100 ha, con limite di spesa fino a 75.000,00 Euro e le aziende forestali con superfici boscate > 100 Ha, o le Imprese delle Classi A e B  con limite di spesa fino a 100.000,00 Euro . Non possono richiedere l'acquisto delle macchine/attrezzature dal n.21 al n.28 Imprese della Classe D, ed aziende forestali con superfici boscate da 0,2 a 25 ha.",{"$f":"IF(K27=\"ATTENZIONE - SPESA NON AMMISSIBILE PER LA CATEGORIA DI IMPRESA\",\"ALLARME\",IF(AND(H27>0,OR(I27=\"\",J27=\"\")),\"COMPILARE COLONNE I E J\",\"numero\"))","v":"numero"},null,null,null,null,{"$f":"IF(AND(D27=\"\",H27<>\"\"),\"ATTENZIONE - SPESA NON AMMISSIBILE PER LA CATEGORIA DI IMPRESA\",\"\")","v":""},null,null,0,{"$f":"H27*N27","v":0}]
[null,22,"A preventivo",{"$f":"IF(OR('classificazione imprese AZ_1'!D6=\"Z\",'classificazione imprese AZ_1'!D6=\"Y\",'classificazione imprese AZ_1'!D6=\"Z1\"),\"Teleferiche con stazione motrice mobile ma senza motore indipendente o mini-gru a cavo anche di tipo tradizionale, purchè con lunghezza della fune portante non superiore a 500 m\",\"\")","v":""},null,"numero",null,null,null,null,{"$f":"IF(AND(D28=\"\",H28<>\"\"),\"ATTENZIONE - SPESA NON AMMISSIBILE PER LA CATEGORIA DI IMPRESA\",\"\")","v":""},null,null,0,{"$f":"H28*N28","v":0}]
[null,23,"A preventivo",{"$f":"IF(OR('classificazione imprese AZ_1'!D6=\"Z\",'classificazione imprese AZ_1'!D6=\"Y\",'classificazione imprese AZ_1'!D6=\"Z1\"),\"Trasporter (trattore con cassone)\",\"\")","v":""},null,"numero",null,null,null,null,"",null,null,0,0]
[null,24,"A preventivo",{"$f":"IF(OR('classificazione imprese AZ_1'!D6=\"Z\",'classificazione imprese AZ_1'!D6=\"Y\",'classificazione imprese AZ_1'!D6=\"Z1\"),\"Trattori forestali gommati di potenza compresa fra i 35 e i 125 Kw\",\"\")","v":""},null,"numero",null,null,null,null,"",null,null,0,0]
[null,25,"A preventivo",{"$f":"IF(OR('classificazione imprese AZ_1'!D6=\"Z\",'classificazione imprese AZ_1'!D6=\"Y\",'classificazione imprese AZ_1'!D6=\"Z1\"),\"Trattrici agricole gommate adattate ai lavori forestali e di potenza compresa fra i 35 e i 125 kW\",\"\")","v":""},null,"numero",null,null,null,null,"",null,null,0,0]
[null,26,"A preventivo",{"$f":"IF(OR('classificazione imprese AZ_1'!D6=\"Z\",'classificazione imprese AZ_1'!D6=\"Y\",'classificazione imprese AZ_1'!D6=\"Z1\"),\"Escavatori retroportati\",\"\")","v":""},null,"numero",null,null,null,null,"",null,null,0,0]
[null,27,"A preventivo",{"$f":"IF(OR('classificazione imprese AZ_1'!D6=\"Z\",'classificazione imprese AZ_1'!D6=\"Y\",'classificazione imprese AZ_1'!D6=\"Z1\"),\"Mezzi semoventi idonei ai lavori forestali, con potenza compresa tra 11 e 30 kW\",\"\")","v":""},null,"numero",null,null,null,null,"",null,null,0,0]
[null,28,"A preventivo",{"$f":"IF(OR('classificazione imprese AZ_1'!D6=\"Z\",'classificazione imprese AZ_1'!D6=\"Y\",'classificazione imprese AZ_1'!D6=\"Z1\"),\"Mezzi promiscui (tipo Pick up) a trazione integrale, max 3-5 posti a sedere, con cassone attrezzato per il trasporto della minuteria\",\"\")","v":""},null,"numero",null,null,null,null,"",null,null,0,0]
[null,"Subtotale Classe C e aziende forestali con superficie boscata > 25 e fino a 50 ha max Euro 75.000",null,null,null,null,null,{"$f":"IF('classificazione imprese AZ_1'!$D$6=\"Y\",SUM('5_1.1 - QUADRO INTERVENTI 1.1'!H27:H34),\"\")","v":""},null,null,{"$f":"IF(H35=\"\",\"\",IF(H35>75000,\"Attenzione superato il limite finanziabile di 75.000 euro, l'eccedenza a tale limite sarà a carico del beneficiario\",\"\"))","v":""},null,{"$f":"IF(H35=\"\",0,H35)","v":0}]
[null,"Subtotale aziende forestali con superficie boscata > 50 e fino a 100 ha max Euro 75.000",null,null,null,null,null,{"$f":"IF('classificazione imprese AZ_1'!$D$6=\"z1\",SUM('5_1.1 - QUADRO INTERVENTI 1.1'!H27:H34),\"\")","v":""},null,null,{"$f":"IF(H36=\"\",\"\",IF(H36>75000,\"Attenzione superato il limite finanziabile di 75.000 euro, l'eccedenza a tale limite sarà a carico del beneficiario\",\"\"))","v":""},null,{"$f":"IF(H36=\"\",0,H36)","v":0}]
[null,"Subtotale Classi A e B e aziende forestali con superficie boscata > 100 ha max Euro 100.000",null,null,null,null,null,{"$f":"IF('classificazione imprese AZ_1'!$D$6=\"Z\",SUM('5_1.1 - QUADRO INTERVENTI 1.1'!H27:H34),\"\")","v":""},null,null,{"$f":"IF(H37=\"\",\"\",IF(H37>100000,\"Attenzione superato il limite finanziabile di 100.000 euro, l'eccedenza a tale limite sarà a carico del beneficiario\",\"\"))","v":""},null,{"$f":"IF(H37=\"\",0,H37)","v":0}]
[null,29,"A preventivo",{"$f":"IF(OR('classificazione imprese AZ_1'!D6=\"Z\",'classificazione imprese AZ_1'!D6=\"Z1\"),\"Processor (allestitrice)\",\"\")","v":""},"FATTISPECIE Z\nAttrezzature per gestione bosco, utilizzazioni forestali e biomasse legnose - Imprese delle Classi A e B con limite di spesa fino a 100.000 €, ed aziende forestali con superfici boscate > 50 ha, con limite di spesa fino a 75.000,00 Euro se con superfcie boscata < 100 ha, e fino a 100.000 Euro se con superfcie boscata > 100 ha. Non possono richiedere l'acquisto delle macchine/attrezzature dal n.29 al n.45: le Imprese della Classe C e della Classe D e le aziende forestali con superfici boscate da 0,2 a 50 Ha.",{"$f":"IF(K38=\"ATTENZIONE - SPESA NON AMMISSIBILE PER LA CATEGORIA DI IMPRESA\",\"ALLARME\",IF(AND(H38>0,OR(I38=\"\",J38=\"\")),\"COMPILARE COLONNE I E J\",\"numero\"))","v":"numero"},null,null,null,null,{"$f":"IF(AND(D38=\"\",H38<>\"\"),\"ATTENZIONE - SPESA NON AMMISSIBILE PER LA CATEGORIA DI IMPRESA\",\"\")","v":""},null,null,0,{"$f":"H38*N38","v":0}]
[null,30,"A preventivo",{"$f":"IF(OR('classificazione imprese AZ_1'!D6=\"Z\",'classificazione imprese AZ_1'!D6=\"Z1\"),\"Harvester (abbattitrice/allestitrice)\",\"\")","v":""},null,"numero",null,null,null,null,"",null,null,0,{"$f":"H39*N39","v":0}]
[null,31,"A preventivo",{"$f":"IF(OR('classificazione imprese AZ_1'!D6=\"Z\",'classificazione imprese AZ_1'!D6=\"Z1\"),\"Feller (abbattitrice; abbattitrice/esboscatrice)\",\"\")","v":""},null,"numero",null,null,null,null,"",null,null,0,0]
[null,32,"A preventivo",{"$f":"IF(OR('classificazione imprese AZ_1'!D6=\"Z\",'classificazione imprese AZ_1'!D6=\"Z1\"),\"Teste abbattitrici\",\"\")","v":""},null,"numero",null,null,null,null,"",null,null,0,0]
[null,33,"A preventivo",{"$f":"IF(OR('classificazione imprese AZ_1'!D6=\"Z\",'classificazione imprese AZ_1'!D6=\"Z1\"),\"Teste processor\",\"\")","v":""},null,"numero",null,null,null,null,"",null,null,0,0]
[null,34,"A preventivo",{"$f":"IF(OR('classificazione imprese AZ_1'!D6=\"Z\",'classificazione imprese AZ_1'!D6=\"Z1\"),\"Teste harvester\",\"\")","v":""},null,"numero",null,null,null,null,"",null,null,0,0]
[null,35,"A preventivo",{"$f":"IF(OR('classificazione imprese AZ_1'!D6=\"Z\",'classificazione imprese AZ_1'!D6=\"Z1\"),\"Skidder (trattore articolato)\",\"\")","v":""},null,"numero",null,null,null,null,"",null,null,0,0]
[null,36,"A preventivo",{"$f":"IF(OR('classificazione imprese AZ_1'!D6=\"Z\",'classificazione imprese AZ_1'!D6=\"Z1\"),\"Teleferiche con stazione motrice mobile e con motore indipendente o impianti tradizionali di caratteristiche medio grandi\",\"\")","v":""},null,"numero",null,null,null,null,"",null,null,0,0]
[null,37,"A preventivo",{"$f":"IF(OR('classificazione imprese AZ_1'!D6=\"Z\",'classificazione imprese AZ_1'!D6=\"Z1\"),\"Forwarder (trattore articolato portante)\",\"\")","v":""},null,"numero",null,null,null,null,"",null,null,0,0]
[null,38,"A preventivo",{"$f":"IF(OR('classificazione imprese AZ_1'!D6=\"Z\",'classificazione imprese AZ_1'!D6=\"Z1\"),\"Carrelli per il trasporto di macchine operatrici\",\"\")","v":""},null,"numero",null,null,null,null,"",null,null,0,0]
[null,39,"A preventivo",{"$f":"IF(OR('classificazione imprese AZ_1'!D6=\"Z\",'classificazione imprese AZ_1'!D6=\"Z1\"),\"Trattori forestali gommati di potenza superiore ai 125 kW\",\"\")","v":""},null,"numero",null,null,null,null,"",null,null,0,0]
[null,40,"A preventivo",{"$f":"IF(OR('classificazione imprese AZ_1'!D6=\"Z\",'classificazione imprese AZ_1'!D6=\"Z1\"),\"Semoventi idonei ai lavori forestali, con potenza compresa tra 31 e 50 kW\",\"\")","v":""},null,"numero",null,null,null,null,"",null,null,0,0]
[null,41,"A preventivo",{"$f":"IF(OR('classificazione imprese AZ_1'!D6=\"Z\",'classificazione imprese AZ_1'!D6=\"Z1\"),\"Escavatori tipo ragno di potenza fino a 100 kW\",\"\")","v":""},null,"numero",null,null,null,null,"",null,null,0,0]
[null,42,"A preventivo",{"$f":"IF(OR('classificazione imprese AZ_1'!D6=\"Z\",'classificazione imprese AZ_1'!D6=\"Z1\"),\"Semoventi idonei ai lavori forestali, con potenza compresa tra 51 e 75 kW\",\"\")","v":""},null,"numero",null,null,null,null,"",null,null,0,0]
[null,43,"A preventivo",{"$f":"IF(OR('classificazione imprese AZ_1'!D6=\"Z\",'classificazione imprese AZ_1'!D6=\"Z1\"),\"Escavatori tipo ragno di potenza superiore ai 100 kW \",\"\")","v":""},null,"numero",null,null,null,null,"",null,null,0,0]
[null,44,"A preventivo",{"$f":"IF(OR('classificazione imprese AZ_1'!D6=\"Z\",'classificazione imprese AZ_1'!D6=\"Z1\"),\"Autocarri e mezzi promiscui forestali a trazione integrale per trasporto su piste e strade forestali del legname e del personale\",\"\")","v":""},null,"numero",null,null,null,null,"",null,null,0,0]
[null,45,"A preventivo",{"$f":"IF(OR('classificazione imprese AZ_1'!D6=\"Z\",'classificazione imprese AZ_1'!D6=\"Z1\"),\"Attrezzature per la classificazione del legname\",\"\")","v":""},null,"numero",null,null,null,null,"",null,null,0,0]
[null,"Subtotale aziende forestali con superficie boscata > 50 e fino a 100 ha max Euro 75.000",null,null,null,null,null,{"$f":"IF('classificazione imprese AZ_1'!$D$6=\"Z1\",SUM('5_1.1 - QUADRO INTERVENTI 1.1'!H38:H54),\"\")","v":""},null,null,{"$f":"IF(H55=\"\",\"\",IF(H55>75000,\"Attenzione superato il limite finanziabile di 75.000 euro, l'eccedenza a tale limite sarà a carico del beneficiario\",\"\"))","v":""},null,{"$f":"IF(H55=\"\",0,H55)","v":0}]
[null,"Subtotale Classi A e B e aziende forestali con superficie boscata > 100 ha max Euro 100.000",null,null,null,null,null,{"$f":"IF('classificazione imprese AZ_1'!$D$6=\"Z\",SUM('5_1.1 - QUADRO INTERVENTI 1.1'!H38:H54),\"\")","v":""},null,null,{"$f":"IF(H56=\"\",\"\",IF(H56>100000,\"Attenzione superato il limite finanziabile di 100.000 euro, l'eccedenza a tale limite sarà a carico del beneficiario\",\"\"))","v":""},null,{"$f":"IF(H56=\"\",0,H56)","v":0}]
[null,46,"A preventivo",{"$f":"IF(AND('classificazione imprese AZ_1'!$A$9=\"SI\",'classificazione imprese AZ_1'!$A$5=\"NO\",'classificazione imprese AZ_1'!$B$7=0),\"\",\"Cippatrici piccole, con motore proprio o azionate da trattore o motrice, che per lavorare necessitano di potenze massime fino a 50 kW\")","v":"Cippatrici piccole, con motore proprio o azionate da trattore o motrice, che per lavorare necessitano di potenze massime fino a 50 kW"},"Lavorazioni preindustriali e/o seconda trasformazione su piccola scala - Imprese della Classe D, e aziende forestali con superfici boscate da 0,2 a 25 ha, con limite di spesa fino a 30.000,00 Euro. Possono, inoltre, richiedere l'acquisto delle attrezzature per lavorazione pre-industriale al n.46, le Imprese della Classe C e le aziende forestali con superfici boscate da 25 a 50 ha, con limite di spesa fino a 50.000,00 Euro;  le aziende forestali con superfici boscate > 50 Ha e fino ai 100 ha, con limite di spesa fino a 50.000,00 Euro, le aziende forestali con superfici boscate > 100 Ha e le Imprese delle Classi A e B  con limite di spesa fino a 200.000,00",{"$f":"IF(K57=\"ATTENZIONE - SPESA NON AMMISSIBILE PER LA CATEGORIA DI IMPRESA\",\"ALLARME\",IF(AND(H57>0,OR(I57=\"\",J57=\"\")),\"COMPILARE COLONNE I E J\",\"numero\"))","v":"numero"},null,null,null,null,{"$f":"IF(AND(D57=\"\",H57<>\"\"),\"ATTENZIONE - SPESA NON AMMISSIBILE PER LA CATEGORIA DI IMPRESA\",\"\")","v":""},null,null,0,{"$f":"H57*N57","v":0}]
[null,"Subtotale Classe D e aziende forestali con superficie boscata da 0,2 a 25 Ha max Euro 30.000",null,null,null,null,null,{"$f":"IF('classificazione imprese AZ_1'!$D$6=\"X\",H57,\"\")","v":""},null,null,{"$f":"IF(H58=\"\",\"\",IF(H58>30000,\"Attenzione superato il limite finanziabile di 30.000 euro, l'eccedenza a tale limite sarà a carico del beneficiario\",\"\"))","v":""},null,{"$f":"IF(H58=\"\",0,H58)","v":0}]
[null,"Subtotale Classe C e aziende forestali con superficie boscata > 25 e fino a 50 ha max Euro 50.000",null,null,null,null,null,{"$f":"IF('classificazione imprese AZ_1'!$D$6=\"Y\",H57,\"\")","v":""},null,null,{"$f":"IF(H59=\"\",\"\",IF(H59>50000,\"Attenzione superato il limite finanziabile di 50.000 euro, l'eccedenza a tale limite sarà a carico del beneficiario\",\"\"))","v":""},null,{"$f":"IF(H59=\"\",0,H59)","v":0}]
[null,"Subtotale aziende forestali con superficie boscata > 50 e fino a 100 ha max Euro 50.000",null,null,null,null,null,{"$f":"IF('classificazione imprese AZ_1'!$D$6=\"z1\",H57,\"\")","v":""},null,null,{"$f":"IF(H60=\"\",\"\",IF(H60>50000,\"Attenzione superato il limite finanziabile di 50.000 euro, l'eccedenza a tale limite sarà a carico del beneficiario\",\"\"))","v":""},null,{"$f":"IF(H60=\"\",0,H60)","v":0}]
[null,"Subtotale Classi A e B e aziende forestali con superficie boscata > 100 ha max Euro 200.000",null,null,null,{"$f":"IF(AND(SUM('classificazione imprese AZ_1'!B45:B48)>100000,H61<>\"\"),\"ATTENZIONE - per le cippatrici l'investimento massimo riconoscibile è pari € 100.000\",\"\")","v":""},null,{"$f":"IF('classificazione imprese AZ_1'!$D$6=\"Z\",H57,\"\")","v":""},{"$f":"IF(F61<>\"\",\"Valore dell'investimento non consentito dal bando\",\"\")","v":""},null,{"$f":"IF(H61=\"\",\"\",IF(H61>200000,\"Attenzione superato il limite finanziabile di 200.000 euro, l'eccedenza a tale limite sarà a carico del beneficiario\",\"\"))","v":""},null,{"$f":"IF(H61=\"\",0,H61)","v":0}]
[null,47,"A preventivo",{"$f":"IF(OR('classificazione imprese AZ_1'!D6=\"Z\",'classificazione imprese AZ_1'!D6=\"Y\",'classificazione imprese AZ_1'!D6=\"Z1\"),\"Sega o sega spacca\",\"\")","v":""},"Fattispecie Y\nLavorazioni preindustriali e/o seconda trasformazione su piccola scala- Imprese della Classe C, ed aziende forestali con superfici boscate > 25 ha e fino a 50 ha, con limite di spesa fino a 50.000,00 Euro. Possono, inoltre, richiedere l'acquisto delle attrezzature per lavorazione pre-industriale dal n.47 al n.55 le aziende forestali con superfici boscate > 50 Ha e fino ai 100 ha, con limite di spesa fino a 50.000,00 Euro e le aziende forestali con superfici boscate > 100 Ha, o le Imprese delle Classi A e B  con limite di spesa fino a 200.000,00 Euro . Non possono richiedere l'acquisto delle attrezzature per lavorazione pre-industriale dal n.47 al n.55 Imprese della Classe D, ed aziende forestali con superfici boscate da 0,2 a 25 ha.",{"$f":"IF(K62=\"ATTENZIONE - SPESA NON AMMISSIBILE PER LA CATEGORIA DI IMPRESA\",\"ALLARME\",IF(AND(H62>0,OR(I62=\"\",J62=\"\")),\"COMPILARE COLONNE I E J\",\"numero\"))","v":"numero"},null,null,null,null,{"$f":"IF(AND(D62=\"\",H62<>\"\"),\"ATTENZIONE - SPESA NON AMMISSIBILE PER LA CATEGORIA DI IMPRESA\",\"\")","v":""},null,null,0,{"$f":"H62*N62","v":0}]
[null,48,"A preventivo",{"$f":"IF(OR('classificazione imprese AZ_1'!D6=\"Z\",'classificazione imprese AZ_1'!D6=\"Y\",'classificazione imprese AZ_1'!D6=\"Z1\"),\"Spaccalegna\",\"\")","v":""},null,"numero",null,null,null,null,{"$f":"IF(AND(D63=\"\",H63<>\"\"),\"ATTENZIONE - SPESA NON AMMISSIBILE PER LA CATEGORIA DI IMPRESA\",\"\")","v":""},null,null,0,0]
[null,49,"A preventivo",{"$f":"IF(OR('classificazione imprese AZ_1'!D6=\"Z\",'classificazione imprese AZ_1'!D6=\"Y\",'classificazione imprese AZ_1'!D6=\"Z1\"),\"Scortecciatici\",\"\")","v":""},null,"numero",null,null,null,null,"",null,null,0,0]
[null,50,"A preventivo",{"$f":"IF(OR('classificazione imprese AZ_1'!D6=\"Z\",'classificazione imprese AZ_1'!D6=\"Y\",'classificazione imprese AZ_1'!D6=\"Z1\"),\"Sramatrici\",\"\")","v":""},null,"numero",null,null,null,null,"",null,null,0,0]
[null,51,"A preventivo",{"$f":"IF(OR('classificazione imprese AZ_1'!D6=\"Z\",'classificazione imprese AZ_1'!D6=\"Y\",'classificazione imprese AZ_1'!D6=\"Z1\"),\"Puntapali\",\"\")","v":""},null,"numero",null,null,null,null,"",null,null,0,0]
[null,52,"A preventivo",{"$f":"IF(OR('classificazione imprese AZ_1'!D6=\"Z\",'classificazione imprese AZ_1'!D6=\"Y\",'classificazione imprese AZ_1'!D6=\"Z1\"),\"Segherie mobili\",\"\")","v":""},null,"numero",null,null,null,null,"",null,null,0,0]
[null,53,"A preventivo",{"$f":"IF(OR('classificazione imprese AZ_1'!D6=\"Z\",'classificazione imprese AZ_1'!D6=\"Y\",'classificazione imprese AZ_1'!D6=\"Z1\"),\"Imballatrici\",\"\")","v":""},null,"numero",null,null,null,null,"",null,null,{"$f":"IF(H68=\"\",0,IF(AND(I68=\"SI\",J68=\"SI\"),1,IF(OR(I68=\"SI\",J68=\"SI\"),0.5,0)))","v":0},0]
[null,54,"A preventivo",{"$f":"IF(OR('classificazione imprese AZ_1'!D6=\"Z\",'classificazione imprese AZ_1'!D6=\"Y\",'classificazione imprese AZ_1'!D6=\"Z1\"),\"Piattaforme di pesa\",\"\")","v":""},null,"numero",null,null,null,null,"",null,null,0,0]
[null,55,"A preventivo",{"$f":"IF(OR('classificazione imprese AZ_1'!D6=\"Z\",'classificazione imprese AZ_1'!D6=\"Y\",'classificazione imprese AZ_1'!D6=\"Z1\"),\"Cippatrici medie, con motore proprio o azionate da trattore o motrice, che per lavorare necessitano di potenze massime fino a 100 kW - max 100.000 Euro\",\"\")","v":""},null,"numero",null,null,null,null,"",null,null,0,0]
[null,"Subtotale Classe C e aziende forestali con superficie boscata > 25 e fino a 50 ha max Euro 50.000",null,null,null,null,null,{"$f":"IF('classificazione imprese AZ_1'!$D$6=\"Y\",SUM('5_1.1 - QUADRO INTERVENTI 1.1'!H62:H70),\"\")","v":""},null,null,{"$f":"IF(H71=\"\",\"\",IF(H71>50000,\"Attenzione superato il limite finanziabile di 50.000 euro, l'eccedenza a tale limite sarà a carico del beneficiario\",\"\"))","v":""},null,{"$f":"IF(H71=\"\",0,H71)","v":0}]
[null,"Subtotale aziende forestali con superficie boscata > 50 e fino a 100 ha max Euro 50.000",null,null,null,null,null,{"$f":"IF('classificazione imprese AZ_1'!$D$6=\"Z1\",SUM('5_1.1 - QUADRO INTERVENTI 1.1'!H62:H70),\"\")","v":""},null,null,{"$f":"IF(H72=\"\",\"\",IF(H72>50000,\"Attenzione superato il limite finanziabile di 50.000 euro, l'eccedenza a tale limite sarà a carico del beneficiario\",\"\"))","v":""},null,{"$f":"IF(H72=\"\",0,H72)","v":0}]
[null,"Subtotale Classi A e B e aziende forestali con superficie boscata > 100 ha max Euro 200.000",null,null,null,{"$f":"IF(AND(SUM('classificazione imprese AZ_1'!B45:B48)>100000,H73<>\"\"),\"ATTENZIONE - per le cippatrici l'investimento massimo riconoscibile è pari € 100.000\",\"\")","v":""},null,{"$f":"IF('classificazione imprese AZ_1'!$D$6=\"Z\",SUM('5_1.1 - QUADRO INTERVENTI 1.1'!H62:H70),\"\")","v":""},{"$f":"IF(F73<>\"\",\"Valore dell'investimento non consentito dal bando\",\"\")","v":""},null,{"$f":"IF(H73=\"\",\"\",IF(H73>200000,\"Attenzione superato il limite finanziabile di 200.000 euro, l'eccedenza a tale limite sarà a carico del beneficiario\",\"\"))","v":""},null,{"$f":"IF(H73=\"\",0,H73)","v":0}]
[null,56,"A preventivo",{"$f":"IF(OR('classificazione imprese AZ_1'!D6=\"Z\",'classificazione imprese AZ_1'!D6=\"Z1\"),\"Cippatrici medio- grandi, con motore proprio o azionate da trattore o motrice , che per lavorare necessitano di potenze massime comprese tra i 101 - 130 kW - max 100.000 Euro per il totale delle voci 56, 57 e 58\",\"\")","v":""},"FATTISPECIE Z\nLavorazioni preindustriali e/o seconda trasformazione su piccola scala - Imprese delle Classi A e B con limite di spesa fino a 200.000 €, ed aziende forestali con superfici boscate > 50 ha, con limite di spesa fino a 50.000,00 Euro se con superfcie boscata < 100 ha, e fino a 200.000 Euro se con superfcie boscata > 100 ha. Non possono richiedere l'acquisto delle attrezzature per lavorazione pre-industriale dal n.56 al n.63: le Imprese della Classe C e della Classe D e le aziende forestali con superfici boscate da 0,2 a 50 Ha.",{"$f":"IF(K74=\"ATTENZIONE - SPESA NON AMMISSIBILE PER LA CATEGORIA DI IMPRESA\",\"ALLARME\",IF(AND(H74>0,OR(I74=\"\",J74=\"\")),\"COMPILARE COLONNE I E J\",\"numero\"))","v":"numero"},null,null,null,null,{"$f":"IF(AND(D74=\"\",H74<>\"\"),\"ATTENZIONE - SPESA NON AMMISSIBILE PER LA CATEGORIA DI IMPRESA\",\"\")","v":""},null,null,0,{"$f":"H74*N74","v":0}]
[null,57,"A preventivo",{"$f":"IF(OR('classificazione imprese AZ_1'!D6=\"Z\",'classificazione imprese AZ_1'!D6=\"Z1\"),\"Cippatrici grandi, con motore proprio o azionate da trattore o motrice , che per lavorare necessitano di potenze massime superiori ai 130 kW - max 100.000 Euro per il totale delle voci 56, 57 e 58\",\"\")","v":""},null,"numero",null,null,null,null,"",null,null,0,0]
[null,58,"A preventivo",{"$f":"IF(OR('classificazione imprese AZ_1'!D6=\"Z\",'classificazione imprese AZ_1'!D6=\"Z1\"),\"Macchine e attrezzature per la pellettizzazione - max 100.000 Euro per il totale delle voci 56, 57 e 58\",\"\")","v":""},null,"numero",null,null,null,null,"",null,null,0,0]
[null,59,"A preventivo",{"$f":"IF(OR('classificazione imprese AZ_1'!D6=\"Z\",'classificazione imprese AZ_1'!D6=\"Z1\"),\"Linee di profilatura\",\"\")","v":""},null,"numero",null,null,null,null,"",null,null,0,0]
[null,60,"A preventivo",{"$f":"IF(OR('classificazione imprese AZ_1'!D6=\"Z\",'classificazione imprese AZ_1'!D6=\"Z1\"),\"Refilatrici\",\"\")","v":""},null,"numero",null,null,null,null,"",null,null,0,0]
[null,61,"A preventivo",{"$f":"IF(OR('classificazione imprese AZ_1'!D6=\"Z\",'classificazione imprese AZ_1'!D6=\"Z1\"),\"Bricchettatrici\",\"\")","v":""},null,"numero",null,null,null,null,"",null,null,0,0]
[null,62,"A preventivo",{"$f":"IF(OR('classificazione imprese AZ_1'!D6=\"Z\",'classificazione imprese AZ_1'!D6=\"Z1\"),\"Strumenti per la misurazione del contenuto idrico della legna e del cippato\",\"\")","v":""},null,"numero",null,null,null,null,"",null,null,0,0]
[null,63,"A preventivo",{"$f":"IF(OR('classificazione imprese AZ_1'!D6=\"Z\",'classificazione imprese AZ_1'!D6=\"Z1\"),\"Nastri trasportatori\",\"\")","v":""},null,"numero",null,null,null,null,"",null,null,0,0]
[null,"Subtotale aziende forestali con superficie boscata > 50 e fino a 100 ha max Euro 50.000",null,null,null,null,null,{"$f":"IF('classificazione imprese AZ_1'!$D$6=\"Z1\",SUM('5_1.1 - QUADRO INTERVENTI 1.1'!H74:H81),\"\")","v":""},null,null,{"$f":"IF(H82=\"\",\"\",IF(H82>50000,\"Attenzione superato il limite finanziabile di 50.000 euro, l'eccedenza a tale limite sarà a carico del beneficiario\",\"\"))","v":""},null,{"$f":"IF(H82=\"\",0,H82)","v":0}]
[null,"Subtotale Classi A e B e aziende forestali con superficie boscata > 100 ha max Euro 200.000",null,null,null,{"$f":"IF(AND(SUM('classificazione imprese AZ_1'!B45:B48)>100000,H83<>\"\"),\"ATTENZIONE - per le cippatrici l'investimento massimo riconoscibile è pari € 100.000\",\"\")","v":""},null,{"$f":"IF('classificazione imprese AZ_1'!$D$6=\"Z\",SUM('5_1.1 - QUADRO INTERVENTI 1.1'!H74:H81),\"\")","v":""},{"$f":"IF(F83<>\"\",\"Valore dell'investimento non consentito dal bando\",\"\")","v":""},null,{"$f":"IF(H83=\"\",\"\",IF(H83>200000,\"Attenzione superato il limite finanziabile di 200.000 euro, l'eccedenza a tale limite sarà a carico del beneficiario\",\"\"))","v":""},null,{"$f":"IF(H83=\"\",0,H83)","v":0}]
[null,64,"A preventivo",{"$f":"IF('1 - ANAGRAFICA'!E14=\"PMI del legno\",\"Sega o sega spacca\",\"\")","v":""},"PMI - Attrezzature per lavorazione pre-industriali e/o seconda trasformazione, con limite di spesa fino a 200.000,00 Euro",{"$f":"IF(K84=\"ATTENZIONE - SPESA NON AMMISSIBILE PER LA CATEGORIA DI IMPRESA\",\"ALLARME\",IF(AND(H84>0,OR(I84=\"\",J84=\"\")),\"COMPILARE COLONNE I E J\",\"numero\"))","v":"numero"},null,null,null,null,{"$f":"IF(AND(D84=\"\",H84<>\"\"),\"ATTENZIONE - SPESA NON AMMISSIBILE PER LA CATEGORIA DI IMPRESA\",\"\")","v":""},null,null,0,{"$f":"H84*N84","v":0}]
[null,65,"A preventivo",{"$f":"IF('1 - ANAGRAFICA'!E14=\"PMI del legno\",\"Spaccalegna\",\"\")","v":""},null,"numero",null,null,null,null,{"$f":"IF(AND(D85=\"\",H85<>\"\"),\"ATTENZIONE - SPESA NON AMMISSIBILE PER LA CATEGORIA DI IMPRESA\",\"\")","v":""},null,null,0,{"$f":"H85*N85","v":0}]
[null,66,"A preventivo",{"$f":"IF('1 - ANAGRAFICA'!E14=\"PMI del legno\",\"Scortecciatrici\",\"\")","v":""},null,"numero",null,null,null,null,"",null,null,0,0]
[null,67,"A preventivo",{"$f":"IF('1 - ANAGRAFICA'!E14=\"PMI del legno\",\"Sramatrici\",\"\")","v":""},null,"numero",null,null,null,null,"",null,null,0,0]
[null,68,"A preventivo",{"$f":"IF('1 - ANAGRAFICA'!E14=\"PMI del legno\",\"Puntapali\",\"\")","v":""},null,"numero",null,null,null,null,"",null,null,0,0]
[null,69,"A preventivo",{"$f":"IF('1 - ANAGRAFICA'!E14=\"PMI del legno\",\"Segherie mobili\",\"\")","v":""},null,"numero",null,null,null,null,"",null,null,0,0]
[null,70,"A preventivo",{"$f":"IF('1 - ANAGRAFICA'!E14=\"PMI del legno\",\"Imballatrici\",\"\")","v":""},null,"numero",null,null,null,null,"",null,null,0,0]
[null,71,"A preventivo",{"$f":"IF('1 - ANAGRAFICA'!E14=\"PMI del legno\",\"Piattaforme di pesa\",\"\")","v":""},null,"numero",null,null,null,null,"",null,null,0,0]
[null,72,"A preventivo",{"$f":"IF('1 - ANAGRAFICA'!E14=\"PMI del legno\",\"Linee di profilatura\",\"\")","v":""},null,"numero",null,null,null,null,"",null,null,0,0]
[null,73,"A preventivo",{"$f":"IF('1 - ANAGRAFICA'!E14=\"PMI del legno\",\"Refilatrici\",\"\")","v":""},null,"numero",null,null,null,null,"",null,null,0,0]
[null,74,"A preventivo",{"$f":"IF('1 - ANAGRAFICA'!E14=\"PMI del legno\",\"Bricchettatrici\",\"\")","v":""},null,"numero",null,null,null,null,"",null,null,0,0]
[null,75,"A preventivo",{"$f":"IF('1 - ANAGRAFICA'!E14=\"PMI del legno\",\"Strumenti per la misurazione del contenuto idrico della legna e del cippato\",\"\")","v":""},null,"numero",null,null,null,null,"",null,null,0,0]
[null,76,"A preventivo",{"$f":"IF('1 - ANAGRAFICA'!E14=\"PMI del legno\",\"Nastri trasportatori\",\"\")","v":""},null,"numero",null,null,null,null,"",null,null,0,0]
[null,"PMI = 200.000 Euro",null,null,null,null,null,{"$f":"IF('1 - ANAGRAFICA'!E14=\"PMI del legno\",SUM('5_1.1 - QUADRO INTERVENTI 1.1'!H84:H96),\"\")","v":""},null,null,{"$f":"IF(H97=\"\",\"\",IF(H97>200000,\"Attenzione superato il limite finanziabile di 200.000 euro, l'eccedenza a tale limite sarà a carico del beneficiario\",\"\"))","v":""},null,{"$f":"IF(H97=\"\",0,H97)","v":0}]
[null,77,"A preventivo",{"$f":"IF('classificazione imprese AZ_1'!$B$7>0,\"Macchinari e attrezzature per la raccolta\",\"\")","v":""},"Attrezzature per produzioni NON LEGNOSE - Tutte le Aziende forestali e le imprese boschive con superfici boscate > 0,2 ha - con limite di spesa di 25.000,00 Euro per superfici boscate possedute da 0,2 a 25 ha; di 75.000,00 Euro per superfici boscate possedute > 25 ha e fino a 100 ha; di 100.000,00 Euro per superfici boscate possedute > 100 ha.","numero",null,null,null,null,"",null,null,0,{"$f":"H98*N98","v":0}]
[null,78,"A preventivo",{"$f":"IF('classificazione imprese AZ_1'!$B$7>0,\"Macchinari e attrezzature per il condizionamento\",\"\")","v":""},null,"numero",null,null,null,null,"",null,null,0,{"$f":"H99*N99","v":0}]
[null,79,"A preventivo",{"$f":"IF('classificazione imprese AZ_1'!$B$7>0,\"Macchinari e attrezzature per il confezionamento\",\"\")","v":""},null,"numero",null,null,null,null,"",null,null,0,0]
[null,80,"A preventivo",{"$f":"IF('classificazione imprese AZ_1'!$B$7>0,\"Macchinari e attrezzature per il magazzinaggio\",\"\")","v":""},null,"numero",null,null,null,null,"",null,null,0,0]
[null,81,"A preventivo",{"$f":"IF('classificazione imprese AZ_1'!$B$7>0,\"Macchinari, attrezzature e relativa impiantistica di collegamento per lavorazione, analisi, controllo, allarme\",\"\")","v":""},null,"numero",null,null,null,null,"",null,null,0,0]
[null,82,"A preventivo",{"$f":"IF('classificazione imprese AZ_1'!$B$7>0,\"Attrezzature per esecuzione di analisi e controllo di laboratorio\",\"\")","v":""},null,"numero",null,null,null,null,"",null,null,0,0]
[null,83,"A preventivo",{"$f":"IF('classificazione imprese AZ_1'!$B$7>0,\"Attrezzature e mezzi di movimentazione interna\",\"\")","v":""},null,"numero",null,null,null,null,"",null,null,0,0]
[null,"Subtotale aziende forestali con superficie boscata da 0,2 a 25 Ha max Euro 25.000",null,null,null,null,null,{"$f":"IF('classificazione imprese AZ_1'!$C$7=\"X\",SUM('5_1.1 - QUADRO INTERVENTI 1.1'!H$98:H$104),\"\")","v":""},null,null,{"$f":"IF(H105=\"\",\"\",IF(H105>25000,\"Attenzione superato il limite finanziabile di 25.000 euro, l'eccedenza a tale limite sarà a carico del beneficiario\",\"\"))","v":""},null,{"$f":"IF(H105=\"\",0,H105)","v":0}]
[null,"Subtotale aziende forestali con superficie boscata > 25 e fino a 50 ha max Euro 75.000",null,null,null,null,null,{"$f":"IF('classificazione imprese AZ_1'!$C$7=\"Y\",SUM('5_1.1 - QUADRO INTERVENTI 1.1'!H$98:H$104),\"\")","v":""},null,null,{"$f":"IF(H106=\"\",\"\",IF(H106>75000,\"Attenzione superato il limite finanziabile di 75.000 euro, l'eccedenza a tale limite sarà a carico del beneficiario\",\"\"))","v":""},null,{"$f":"IF(H106=\"\",0,H106)","v":0}]
[null,"Subtotale aziende forestali con superficie boscata > 50 e fino a 100 ha max Euro 75.000",null,null,null,null,null,{"$f":"IF('classificazione imprese AZ_1'!$C$7=\"Z1\",SUM('5_1.1 - QUADRO INTERVENTI 1.1'!H$98:H$104),\"\")","v":""},null,null,{"$f":"IF(H107=\"\",\"\",IF(H107>75000,\"Attenzione superato il limite finanziabile di 75.000 euro, l'eccedenza a tale limite sarà a carico del beneficiario\",\"\"))","v":""},null,{"$f":"IF(H107=\"\",0,H107)","v":0}]
[null,"Subtotale aziende forestali con superficie boscata > 100 ha max Euro 100.000",null,null,null,null,null,{"$f":"IF('classificazione imprese AZ_1'!$C$7=\"Z\",SUM('5_1.1 - QUADRO INTERVENTI 1.1'!H$98:H$104),\"\")","v":""},null,null,{"$f":"IF(H108=\"\",\"\",IF(H108>100000,\"Attenzione superato il limite finanziabile di 100.000 euro, l'eccedenza a tale limite sarà a carico del beneficiario\",\"\"))","v":""},null,{"$f":"IF(H108=\"\",0,H108)","v":0}]
[null,"SPESE GENERALI AZIONE 1 - Intervento 1.1"]
[null,84,"A preventivo","Spese generali - Onorario professionisti",null,null,null,0]
[null,85,"Forfettario","Spese generali - Altre a completamento del 6%",null,null,null,0]
[{"$f":"#REF!","v":{"$error":"#REF!"}},"A = (∑ 1:83)\n(solo per le voci pertinenti) ",null,null,null,"TOTALE SPESE MATERIALI",null,{"$f":"'classificazione imprese AZ_1'!B16","v":0},null,null,null,null,"Attenzione superati i massimimali per almeno una delle tre categorie di attrezzature di cui tabella 3 delle linee guida (DAG n. 348/2019): gestione del bosco (25.000 €), lavorazioni pre-industriali (30.000 €) produzioni NON LEGNOSE (25.000 €)"]
[{"$f":"#REF!","v":{"$error":"#REF!"}},"B = MAX (A x 0,06)",null,null,null,"SPESE GENERALI: AMMISSIBILI SU DICHIARATO",null,{"$f":"IF((H110+H111)<=H112*0.06,(H110+H111),H112*0.06)","v":0},null,null,null,null,"Attenzione superati i massimimali per almeno una delle tre categorie di attrezzature di cui tabella 3 delle linee guida (DAG n. 348/2019): gestione del bosco (75.000 €), lavorazioni pre-industriali (50.000 €) produzioni NON LEGNOSE (75.000 €)"]
[{"$f":"#REF!","v":{"$error":"#REF!"}},"C = (A+B)",null,null,null,"TOTALE SPESA RICHIESTA AMMISSIBILE",null,{"$f":"H112+H113","v":0},null,null,null,null,"Attenzione superati i massimimali per almeno una delle tre categorie di attrezzature di cui tabella 3 delle linee guida (DAG n. 348/2019): gestione del bosco (100.000 €), lavorazioni pre-industriali (200.000 €) produzioni NON LEGNOSE (100.000 €)"]
[null,{"$f":"IF(AND(H97<>\"\",H97>200000),\"Attenzione superato il limite totale finanziabile di 200.000 euro per le PMI, l'eccedenza a tale limite sarà a carico del beneficiario\",IF(H114>200000,\"Attenzione superato il limite totale finanziabile di 200.000 euro, l'eccedenza a tale limite sarà a carico del beneficiario\",IF(OR('classificazione imprese AZ_1'!C11>25000,'classificazione imprese AZ_1'!D11>30000,'classificazione imprese AZ_1'!E11>25000),$M$112&$M$115,IF(OR('classificazione imprese AZ_1'!C12>75000,'classificazione imprese AZ_1'!D12>50000,'classificazione imprese AZ_1'!E11>75000),$M$113&$M$115,IF(OR('classificazione imprese AZ_1'!C13>100000,'classificazione imprese AZ_1'!D13>200000,'classificazione imprese AZ_1'!E11>100000),$M$114&$M$115,IF(OR('classificazione imprese AZ_1'!C14>100000,'classificazione imprese AZ_1'!D14>200000,'classificazione imprese AZ_1'!E14>100000),$M$114&$M$115,\"\"))))))","v":""},null,null,null,null,null,null,null,null,{"$f":"IF(B115<>\"\",\"CONSULTA L'ALLEGATO 10\",\"\")","v":""},null,", l'eccedenza a tale limite sarà a carico del beneficiario\""]
[null,"Note: ","I costi si intendono IVA esclusa"]
[]
[null,null,null,"Il sottoscritto:"]
[]
[null,null,null,"(Denominazione Richiedente)"]
[null,null,null,"in qualità di titolare/legale rappresentante della DdS n.______________________________________a valere sul PSR Puglia 2014 - 2020 Sottomisura 8.6"]
[null,null,null,"E"]
[null,null,null,"Il tecnico incaricato:"]
[]
[null,null,null,"(Cognome e Nome)"]
[null,null,null,"DICHIARANO"]
[]
[null,null,null,"Di aver elaborato il presente quadro degli interventi sulla base di quanto previsto dal par. 3.2.1.1 delle Linee Guida per la progettazione e realizzazione degli interventi (DAG n. 348/2019, e ss. mm. ii.) e secondo le indicazioni e le limitazioni previste dalle specifiche tabelle 3 e 4 in esse contenute."]
[]
[]
[null,null,null,"Fatto a,           il "]
[]
[null,null,null,"Firma titolare/Legale Rappresentante"]
[]
[]
[null,null,null,"Firma del tecnico e Timbro Professionale dell'Ordine di Appartenenza"]

{"sheet":"5_1.2 - QUADRO INTERVENTI 1.2","index":5,"n_rows":44,"n_cols":8,"rows_kept":44,"cut":false,"hidden":false,"merged":[[22,1,22,5],[23,1,23,6],[43,3,43,5],[41,3,41,5],[40,3,40,5],[38,3,38,5],[26,3,26,5],[25,3,25,5],[35,3,36,5],[33,3,33,5],[31,3,31,5],[32,3,32,5],[30,3,30,5],[29,3,29,5],[28,3,28,5],[27,3,27,5],[17,4,17,6],[16,4,16,6],[19,1,19,3],[19,4,19,6],[13,1,13,7],[7,4,7,5],[1,1,1,7],[14,4,14,6],[15,4,15,6],[21,2,21,3],[18,4,18,6],[20,4,20,6],[8,4,8,5],[9,4,9,5],[10,4,10,5],[18,1,18,3],[20,1,20,3],[17,1,17,3],[16,1,16,3],[11,4,11,5],[12,4,12,5]]}
[null,"N. prog","Codice (D.G.R n.1468/2017)","Descrizione della voce di costo","Costo unitario","Unità di misura","Quantità ","Costo"]
[null,"INVESTIMENTO RICHIESTO  AZIONE 1 - INTERVENTO 1.2"]
[null,1,"(*) E 01.07","Fornitura e posa in opera di terreno vegetale idoneo per formazione di strato superficiale dei rinterri, esente da ciottoli, radici e materie rocciose in genere, compreso lo spargimento e la configurazione. ",26.25,"mc",null,{"$f":"IF(G3<>\"\",E3*G3,\"\")","v":""}]
[null,2,"(**) Inf 02.100","Telo pacciamante drenante in polipropilene da 110 gr/mq, fornitura e posa in opera, su terreno preparato per la messa a dimora di piante compreso l’ancoraggio al suolo con picchetti metallici",4.07,"mq",null,{"$f":"IF(G4<>\"\",E4*G4,\"\")","v":""}]
[null,3,"OF 04.12","Recinzione con rete metallica dell'altezza di m 2,00 (kg 3,2 al metro lineare) sorretta e tenuta in tensione da pali di castagno (Ø cm 15-20) della lunghezza di m 2,50, posti ad una distanza di m 2,50, compresi puntoni e tiranti nelle deviazioni di apertura (larghezza m 3,00) per l'accesso ai mezzi antincendio",17.11,"ml",null,""]
[null,4,"OF.04.17","Fornitura e posa in opera di tabella monitoria cm 60x90 a colori su palo di ferro tubolare, compreso getto per fondazione",191.35,"Cad.",null,""]
[null,5,"OF 04.18","Fornitura e posa in opera di cancello in ferro della lunghezza fino a m 5, con lucchetto, per la regolamentazione dell'accesso della viabilità forestale, compresi getto di strutture di fondazione contro terra o entro casserature e quant'altro necessario per dare l’opera finita a regola d'arte",1101.83,"Cad.",null,""]
[null,6,"A preventivo","Strutture di ombreggiamento","numero"]
[null,7,"A preventivo","Barriere anti vento (barriere morte costituite da teli molto resistenti, in tessuto di polietilene)","numero"]
[null,8,"A preventivo","Impianto di nebulizzazione ad alta pressione “fog system”","numero"]
[null,9,"A preventivo","Acquisto di bancali, carrelli ","numero"]
[null,10,"A preventivo","Macchine operatrici semoventi idonee ai lavori in vivaio, con potenza compresa tra 5 e10 KW","numero"]
[null,11,"A preventivo","Attrezzature collegate alle macchine operatrici, quali frese, muletti, ecc.","numero"]
[null,"SPESE GENERALI AZIONE 1"]
[null,12,"A preventivo","Spese generali - Onorario professionisti"]
[null,13,"Forfettario","Spese generali - Altre a completamento"]
[null,"A1 = (∑ 1:8) ",null,null,"SUBTOTALE SPESE MATERIALI DA PROG. 1 A 8",null,null,{"$f":"SUM(H3:H10)","v":0}]
[null,"A2 = (∑ 9:11) ",null,null,"SUBTOTALE SPESE MATERIALI DA PROG. 9 A 11",null,null,{"$f":"SUM(H11:H13)","v":0}]
[{"$f":"'1 - ANAGRAFICA'!$B$8","v":0},"A = (A1 + A2) ",null,null,"TOTALE SPESE MATERIALI",null,null,{"$f":"H17+H18","v":0}]
[null,"B = MAX (A1 x 0,12 + A2 x 0,06)",null,null,"TOTALE SPESE GENERALI: AMMISSIBILI SU DICHIARATO",null,null,{"$f":"IF((H15+H16)<=(H17*0.12+H18*0.06),(H15+H16),(H17*0.12+H18*0.06))","v":0}]
[{"$f":"'1 - ANAGRAFICA'!$B$8","v":0},"C = (A+B)",null,null,"TOTALE SPESA RICHIESTA AMMISSIBILE",null,null,{"$f":"H19+H20","v":0}]
[null,"Note: ","I costi si intendono IVA esclusa"]
[null,"(*) Codici e descrizioni riportate nel “Listino Prezzi della Regione Puglia – anno 2017” approvato con Deliberazione di Giunta Regionale n. 905 del 07 giugno 2017 "]
[null,"(**) Ulteriori Opere di ingegneria naturalistica da \"Linee guida e criteri per la progettazione delle opere di ingegneria naturalistica\" approvate con DGR n 1189 del 01/07/2013"]
[]
[null,null,null,"Il sottoscritto:"]
[]
[null,null,null,"(Denominazione Richiedente)"]
[null,null,null,"in qualità di titolare/legale rappresentante della DdS n.______________________________________a valere sul PSR Puglia 2014 - 2020 Sottomisura 8.6"]
[null,null,null,"E"]
[null,null,null,"Il tecnico incaricato:"]
[]
[null,null,null,"(Cognome e Nome)"]
[null,null,null,"DICHIARANO"]
[]
[null,null,null,"Di aver elaborato il presente quadro degli interventi sulla base di quanto previsto dal par. 3.2.1.2 delle Linee Guida per la progettazione e realizzazione degli interventi (DAG n. 348/2019, e ss. mm. ii.) e secondo le indicazioni e le limitazioni previste dalle specifica tabella 5 in esse contenuta."]
[]
[]
[null,null,null,"Fatto a_______________________, il_________"]
[]
[null,null,null,"Firma titolare/Legale Rappresentante"]
[]
[]
[null,null,null,"Firma del tecnico e Timbro Professionale dell'Ordine di Appartenenza"]

{"sheet":"5_2 - QUADRO INTERVENTI AZ 2","index":6,"n_rows":95,"n_cols":14,"rows_kept":95,"cut":false,"hidden":false,"merged":[[19,10,20,10],[1,1,1,3],[16,10,17,10],[8,4,8,5],[9,4,9,5],[10,1,10,3],[8,7,8,9],[9,7,9,9],[6,5,6,6],[5,5,5,6],[10,7,10,9],[1,7,1,8],[7,4,7,6],[7,7,7,8],[6,7,6,8],[5,7,5,8],[40,5,40,7],[42,5,42,7],[39,4,39,7],[55,5,55,7],[69,4,69,8],[58,5,58,7],[67,5,67,7],[59,5,59,7],[60,5,60,7],[61,5,61,7],[62,5,62,7],[63,5,63,7],[64,5,64,7],[65,5,65,7],[66,5,66,7],[71,4,71,8],[73,4,73,8],[72,4,72,8],[74,2,74,3],[39,1,39,3],[44,1,44,3],[47,1,47,3],[52,1,52,3],[68,1,68,9],[47,4,47,7],[44,4,44,7],[57,4,57,7],[54,1,54,3],[54,4,54,7],[53,5,53,7],[41,5,41,7],[4,5,4,6],[3,5,3,6],[2,5,2,6],[1,5,1,6],[51,5,51,7],[25,5,25,7],[4,7,4,8],[3,7,3,8],[2,7,2,8],[31,5,31,7],[35,5,35,7],[34,5,34,7],[33,5,33,7],[32,5,32,7],[26,5,26,7],[27,5,27,7],[0,1,0,9],[57,1,57,3],[15,1,15,3],[15,4,15,5],[7,1,7,3],[18,1,18,3],[18,4,18,5],[21,1,21,3],[24,1,24,3],[24,4,24,5],[21,4,21,5],[22,7,22,8],[10,4,10,5],[48,5,48,7],[49,5,49,7],[50,5,50,7],[28,5,28,7],[29,5,29,7],[30,5,30,7],[37,5,37,7],[36,5,36,7],[84,3,84,8],[86,3,87,8],[56,5,56,7],[38,5,38,7],[52,4,52,7],[43,5,43,7],[46,5,46,7],[45,5,45,7],[76,3,76,8],[77,3,77,8],[78,3,78,8],[79,3,79,8],[80,3,80,8],[81,3,81,8],[83,3,83,8],[70,4,70,8]]}
[null,"INVESTIMENTO RICHIESTO"]
[null,{"$f":"IF(AND(F2=0,J2=0),\"OBBLIGATORIO - INDICARE RIPARTIZIONE CLASSE DI PENDENZA SUPERFICI INTERVENTI AZIONE 2 →\",IF(M2<>'7 - RIEPILOGHI E PUNTEGGIO'!C5/10000,\"SOMMA SUPERFICI CLASSI DI PENDENZA NON CONFORME A QUANTO INDICATO IN QUADRO 4 - LOCALIZZAZIONE PER L'AZIONE 2\",\"RIPARTIZIONE CLASSI DI PENDENZA SUPERFICI INTERVENTI AZIONE 2 →\"))","v":"OBBLIGATORIO - INDICARE RIPARTIZIONE CLASSE DI PENDENZA SUPERFICI INTERVENTI AZIONE 2 →"},null,null,"ETTARI PER PRIMA CLASSE DI PENDENZA\nha →",0,null,"ETTARI PER SECONDA CLASSE DI PENDENZA\nha →",null,0,null,null,{"$f":"F2+J2","v":0}]
[null,"N. prog","Codice (D.G.R n.1468/2017)","Descrizione della voce di costo","Costo unitario","Unità di misura",null,"Quantità ",null,"Costo"]
[null,1," OF  02.01a","Eliminazione selettiva in bosco della vegetazione infestante con attrezzature portatili (motoseghe, decespugliatori), solo se ritenuta necessaria e limitatamente alle specie invadenti, rilasciando le specie tipiche del sottobosco. Compresa ripulitura, accumulo, allontanamento e/o distruzione in spazi non pregiudizievoli del materiale vegetale di risulta. In condizioni di forte infestazione (oltre il 50% della superficie) – PRIMA CLASSE DI PENDENZA",1071.18,{"$f":"IF($B$2<>\"RIPARTIZIONE CLASSI DI PENDENZA SUPERFICI INTERVENTI AZIONE 2 →\",\"COMPILARE LA PRIMA RIGA DEL QUADRO - E' OBBLIGATORIO\",\"ha\")","v":"COMPILARE LA PRIMA RIGA DEL QUADRO - E' OBBLIGATORIO"},null,null,null,{"$f":"E4*H4","v":0},null,{"$f":"IF(H4=\"\",\"\",\"-\")","v":""}]
[null,2," OF  02.01b","Eliminazione selettiva in bosco della vegetazione infestante con attrezzature portatili (motoseghe, decespugliatori), solo se ritenuta necessaria e limitatamente alle specie invadenti, rilasciando le specie tipiche del sottobosco. Compresa ripulitura, accumulo, allontanamento e/o distruzione in spazi non pregiudizievoli del materiale vegetale di risulta. In condizioni di forte infestazione (oltre il 50% della superficie) – SECONDA CLASSE DI PENDENZA",1285.42,{"$f":"IF($B$2<>\"RIPARTIZIONE CLASSI DI PENDENZA SUPERFICI INTERVENTI AZIONE 2 →\",\"COMPILARE LA PRIMA RIGA DEL QUADRO - E' OBBLIGATORIO\",\"ha\")","v":"COMPILARE LA PRIMA RIGA DEL QUADRO - E' OBBLIGATORIO"},null,null,null,{"$f":"E5*H5","v":0},null,{"$f":"IF(H5=\"\",\"\",\"-\")","v":""}]
[{"$f":"'1 - ANAGRAFICA'!$B$8","v":0},3,"OF 02.02a","Eliminazione selettiva in bosco della vegetazione infestante, come sopra (1), ma in condizioni di debole infestazione (meno del 50% della superficie) - PRIMA CLASSE DI PENDENZA. (1) Come sopra si intende la voce OF 02.01 del prezziario  (D.G.R n.1468/2017)",667.58,{"$f":"IF($B$2<>\"RIPARTIZIONE CLASSI DI PENDENZA SUPERFICI INTERVENTI AZIONE 2 →\",\"COMPILARE LA PRIMA RIGA DEL QUADRO - E' OBBLIGATORIO\",\"ha\")","v":"COMPILARE LA PRIMA RIGA DEL QUADRO - E' OBBLIGATORIO"},null,null,null,0,null,""]
[{"$f":"'1 - ANAGRAFICA'!$B$8","v":0},4,"OF 02.02b","Eliminazione selettiva in bosco della vegetazione infestante, come sopra(1), ma in condizioni di debole infestazione (meno del 50% della superficie) - SECONDA CLASSE DI PENDENZA. (1) Come sopra si intende la voce OF 02.01 del prezziario  (D.G.R n.1468/2017)",801.1,{"$f":"IF($B$2<>\"RIPARTIZIONE CLASSI DI PENDENZA SUPERFICI INTERVENTI AZIONE 2 →\",\"COMPILARE LA PRIMA RIGA DEL QUADRO - E' OBBLIGATORIO\",\"ha\")","v":"COMPILARE LA PRIMA RIGA DEL QUADRO - E' OBBLIGATORIO"},null,null,null,0,null,""]
[null,{"$f":"IF(AND(J8>0,J40=0),\"ELIMINAZIONE SELETTIVA BOSCO: Ammissibile solo se associati ad operazioni di rinfittimento e diradamento e relativi interventi selvi-colturali\",\"ELIMINAZIONE SELETTIVA BOSCO\")","v":"ELIMINAZIONE SELETTIVA BOSCO"},null,null,{"$f":"IF(H8>'7 - RIEPILOGHI E PUNTEGGIO'!C$5/10000,\"SUPERATA SUPERFICIE DICHIARATA IN QUADRO 4 LOCALIZZAZIONE PER L'AZIONE 2\",IF((H4+H6)>$F$2,\"SUPERATA SUPERFICIE DICHIARATA COME PRIMA CLASSE DI PENDENZA\",IF((H5+H7)>$J$2,\"SUPERATA SUPERFICIE DICHIARATA COME SECONDA CLASSE DI PENDENZA\",\"SUBTOTALE\")))","v":"SUBTOTALE"},null,null,{"$f":"IF(SUM(H4:I7)>0,SUM(H4:I7),0)","v":0},null,{"$f":"IF(E8=\"SUBTOTALE\",SUM(J4:J7),\"DATI IMMESSI NON VALIDI\")","v":0},null,{"$f":"IF(H8=0,\"\",\"-\")","v":""}]
[null,5,"OF 02.03a","Rinfoltimento nelle radure e negli spazi vuoti esistenti. Applicare una maggiorazione del 20 % alle voci di spesa inerenti ai lavori di cui alla categoria capitolo OF 01 PRIMA CLASSE DI PENDENZA\nNota: la maggiorazione non si applica ai codici OF 01.29 e 01.30. Tale distinzione perchè la maggiorazione si applica soltanto ai lavori e non alle forniture.",{"$f":"IF($B$2<>\"RIPARTIZIONE CLASSI DI PENDENZA SUPERFICI INTERVENTI AZIONE 2 →\",\"COMPILARE LA PRIMA RIGA DEL QUADRO - E' OBBLIGATORIO\",\"(+ 20% capitolo OF 01)**\nIndicare numero di piante →\")","v":"COMPILARE LA PRIMA RIGA DEL QUADRO - E' OBBLIGATORIO"},null,null,"Voce calcolata automaticamente nelle voci OF 01.22 - OF 01.23 - OF 01.24 - OF 01.25 - OF 01.27 - OF 01.28 - OF 01.39",null,null,null,{"$f":"IF(G9=0,\"\",\"-\")","v":""}]
[null,6,"OF 02.03b","Rinfoltimento nelle radure e negli spazi vuoti esistenti. Applicare una maggiorazione del 20 % alle voci di spesa inerenti ai lavori di cui alla categoria capitolo OF 01 SECONDA CLASSE DI PENDENZA RISPETTO ALLA PRIMA CLASSE DI PENDENZA\nNota: la maggiorazione non si applica ai codici OF 01.29 e 01.30. Tale distinzione perchè la maggiorazione si applica soltanto ai lavori e non alle forniture.",{"$f":"IF($B$2<>\"RIPARTIZIONE CLASSI DI PENDENZA SUPERFICI INTERVENTI AZIONE 2 →\",\"COMPILARE LA PRIMA RIGA DEL QUADRO - E' OBBLIGATORIO\",\"(+ 20% capitolo OF 01)**\nIndicare numero di piante →\")","v":"COMPILARE LA PRIMA RIGA DEL QUADRO - E' OBBLIGATORIO"},null,null,"Voce calcolata automaticamente nelle voci OF 01.22 - OF 01.23 - OF 01.24 - OF 01.25 - OF 01.27 - OF 01.28 - OF 01.39",null,null,null,{"$f":"IF(G10=0,\"\",\"-\")","v":""}]
[null,"MAGGIORAZIONE PER LE RADURE E SPAZI VUOTI",null,null,{"$f":"IF(G9>F2*300,\"LIMITE MASSIMO DI 300 PIANTE AD ETTARO SUPERATO PER LA PRIMA CLASSE DI PENDENZA\",IF(G10>J2*300,\"LIMITE MASSIMO DI 300 PIANTE AD ETTARO SUPERATO PER LA SECONDA CLASSE DI PENDENZA\",\"SUBTOTALE\"))","v":"SUBTOTALE"},null,{"$f":"IF(SUM(G9:G10)>0,SUM(G9:G10),\"\")","v":""},null,null,null,{"$f":"IF(AND(G11>0,G11<>\"\"),\"ATTENZIONE COMPILARE IL QUADRO 8 - ELENCO SPECIE AUTOCTONE\",\"\")","v":""},{"$f":"IF(G11=\"\",\"\",\"-\")","v":""}]
[null,7,"OF 01.22","Apertura manuale di buche in terreno precedentemente lavorato, cm 40x40x40",1.37,"Cad.",null,{"$f":"IF(I12>G12,\"INDICATO NUMERO PIANTE IN PRIMA CLASSE DI PENDENZA, MAGGIORE DI QUELLO TOTALE PER LA VOCE DI RIFERIMENTO\",IF(OR(I12=0,I12=\"\"),\"di cui in 1° Classe Pendenza**:\",IF(I12>G$9,\"Quantità diversa da voce di costo OF 02.03a→\",\"di cui in 1° Classe Pendenza**:\")))","v":"di cui in 1° Classe Pendenza**:"},null,{"$f":"(E12*I12*1.2)+(E12*(G12-I12)*1.44)","v":0},null,{"$f":"IF(G12=0,\"\",\"-\")","v":""}]
[null,8,"OF 01.23","Apertura manuale buche in terreno compatto",3.07,"Cad.",null,{"$f":"IF(I13>G13,\"INDICATO NUMERO PIANTE IN PRIMA CLASSE DI PENDENZA, MAGGIORE DI QUELLO TOTALE PER LA VOCE DI RIFERIMENTO\",IF(OR(I13=0,I13=\"\"),\"di cui in 1° Classe Pendenza**:\",IF(I13>G$9,\"Quantità diversa da voce di costo OF 02.03a→\",\"di cui in 1° Classe Pendenza**:\")))","v":"di cui in 1° Classe Pendenza**:"},null,{"$f":"(E13*I13*1.2)+(E13*(G13-I13)*1.44)","v":0},null,{"$f":"IF(G13=0,\"\",\"-\")","v":""}]
[null,9,"OF 01.24","Apertura buca con trivella meccanica (diametro cm 40, profondità cm 40)",2.0699999999999998,"Cad.",null,{"$f":"IF(I14>G14,\"INDICATO NUMERO PIANTE IN PRIMA CLASSE DI PENDENZA, MAGGIORE DI QUELLO TOTALE PER LA VOCE DI RIFERIMENTO\",IF(OR(I14=0,I14=\"\"),\"di cui in 1° Classe Pendenza**:\",IF(I14>G$9,\"Quantità diversa da voce di costo OF 02.03a→\",\"di cui in 1° Classe Pendenza**:\")))","v":"di cui in 1° Classe Pendenza**:"},null,0,null,""]
[null,10,"OF 01.25","Apertura di buche, con trivella meccanica, in terreno di qualsiasi natura e consistenza, compreso ogni altro onere accessorio",2.58,"Cad.",null,{"$f":"IF(I15>G15,\"INDICATO NUMERO PIANTE IN PRIMA CLASSE DI PENDENZA, MAGGIORE DI QUELLO TOTALE PER LA VOCE DI RIFERIMENTO\",IF(OR(I15=0,I15=\"\"),\"di cui in 1° Classe Pendenza**:\",IF(I15>G$9,\"Quantità diversa da voce di costo OF 02.03a→\",\"di cui in 1° Classe Pendenza**:\")))","v":"di cui in 1° Classe Pendenza**:"},null,0,null,""]
[null,"APERTURA BUCHE",null,null,{"$f":"IF(AND(G16=\"\",G11<>\"\"),\"NON RAGGIUNTO NUMERO DI PIANTE INDICATE PER LA VOCE OF 02.03\",IF(G16>G$11,\"SUPERATO NUMERO DI PIANTE INDICATE PER LA VOCE OF 02.03\",IF(G16<G$11,\"ALLINEARE CON IL NUMERO DI PIANTE INDICATE PER LA VOCE OF 02.03\",IF(H16<>\"di cui in 1° Classe Pendenza*:\",\"\",\"SUBTOTALE\"))))","v":"SUBTOTALE"},null,{"$f":"IF(SUM(G12:G15)>0,SUM(G12:G15),\"\")","v":""},{"$f":"IF(I16<>G9,\"Quantità diversa da voce di costo OF 02.03a→\",\"di cui in 1° Classe Pendenza*:\")","v":"di cui in 1° Classe Pendenza*:"},{"$f":"IF(SUM(I12:I15)>0,SUM(I12:I15),0)","v":0},{"$f":"IF(E16=\"SUBTOTALE\",SUM(J12:J15),\"DATI IMMESSI NON VALIDI\")","v":0},null,{"$f":"IF(G16=\"\",\"\",\"-\")","v":""}]
[null,11,"OF 01.27","Collocamento a dimora di piantina resinosa e latifoglia a radice nuda, comprese la ricolmatura con compressione del terreno adiacente le radici delle piante, la razionale posa in tagliola, l'imbozzimatura, la spuntatura delle radici ed ogni altra operazione necessaria a dare l'opera eseguita a regola d'arte (escluso la fornitura della pianta)",1.48,"Cad.",null,{"$f":"IF(I17>G17,\"INDICATO NUMERO PIANTE IN PRIMA CLASSE DI PENDENZA, MAGGIORE DI QUELLO TOTALE PER LA VOCE DI RIFERIMENTO\",IF(OR(I17=0,I17=\"\"),\"di cui in 1° Classe Pendenza**:\",IF(I17>G$9,\"Quantità diversa da voce di costo OF 02.03a→\",\"di cui in 1° Classe Pendenza**:\")))","v":"di cui in 1° Classe Pendenza**:"},null,{"$f":"(E17*I17*1.2)+(E17*(G17-I17)*1.44)","v":0},{"$f":"IF(AND($I$16>0,$I$16<>I19),\"← INDICARE LA MODALITA' PER IL COLLOCAMENTO A DIMORA DELLE PIANTE - IL NUMERO DEVE COINCIDERE CON IL NUMERO DI BUCHE PREVISTE\",\"\")","v":""},""]
[null,12,"OF 01.28","Collocamento a dimora di latifoglia in contenitore, compresa la ricolmatura con compressione del terreno (escluso la fornitura della pianta)",1.86,"Cad.",null,{"$f":"IF(I18>G18,\"INDICATO NUMERO PIANTE IN PRIMA CLASSE DI PENDENZA, MAGGIORE DI QUELLO TOTALE PER LA VOCE DI RIFERIMENTO\",IF(OR(I18=0,I18=\"\"),\"di cui in 1° Classe Pendenza**:\",IF(I18>G$9,\"Quantità diversa da voce di costo OF 02.03a→\",\"di cui in 1° Classe Pendenza**:\")))","v":"di cui in 1° Classe Pendenza**:"},null,{"$f":"(E18*I18*1.2)+(E18*(G18-I18)*1.44)","v":0},null,""]
[null,"MESSA A DIMORA",null,null,{"$f":"IF(AND(G19=\"\",G$11<>\"\"),\"NON RAGGIUNTO NUMERO DI PIANTE INDICATE PER LA VOCE OF 02.03\",IF(G19>G$11,\"SUPERATO NUMERO DI PIANTE INDICATE PER LA VOCE OF 02.03\",IF(G19<G$11,\"ALLINEARE CON IL NUMERO DI PIANTE INDICATE PER LA VOCE OF 02.03\",\"SUBTOTALE\")))","v":"SUBTOTALE"},null,{"$f":"IF(SUM(G17:G18)>0,SUM(G17:G18),\"\")","v":""},{"$f":"IF(OR(I19>G$9,I19<G$9),\"Quantità diversa da voce di costo OF 02.03a→\",\"di cui in 1° Classe Pendenza**:\")","v":"di cui in 1° Classe Pendenza**:"},{"$f":"IF(SUM(I17:I18)>0,SUM(I17:I18),\"\")","v":""},{"$f":"IF(E19=\"SUBTOTALE\",SUM(J17:J18),\"DATI IMMESSI NON VALIDI\")","v":0},null,{"$f":"IF(G19=\"\",\"\",\"-\")","v":""}]
[null,13,"OF 01.29","Fornitura di piantina di latifoglia o conifera a radice nuda \nconfrontare elenco specie riportato al successivo quadro 9)",1.01,"Cad.",null,{"$f":"IF(I20>G20,\"INDICATO NUMERO PIANTE IN PRIMA CLASSE DI PENDENZA, MAGGIORE DI QUELLO TOTALE PER LA VOCE DI RIFERIMENTO\",IF(OR(I20=0,I20=\"\"),\"di cui in 1° Classe Pendenza**:\",IF(I20>G$9,\"Quantità diversa da voce di costo OF 02.03a→\",\"di cui in 1° Classe Pendenza**:\")))","v":"di cui in 1° Classe Pendenza**:"},null,{"$f":"(E20*I20*1.2)+(E20*(G20-I20)*1.44)","v":0},{"$f":"IF(AND($I$16>0,$I$16<>I22),\"← INDICARE LA MODALITA' DI FORNITURA DI PIANTINE - IL NUMERO DEVE COINCIDERE CON IL NUMERO DI BUCHE PREVISTE\",\"\")","v":""},""]
[null,14,"OF 01.30","Fornitura di piantina di latifoglia o conifera in fitocella\n(confrontare elenco specie riportato al successivo quadro 9)",2.2799999999999998,"Cad.",null,{"$f":"IF(I21>G21,\"INDICATO NUMERO PIANTE IN PRIMA CLASSE DI PENDENZA, MAGGIORE DI QUELLO TOTALE PER LA VOCE DI RIFERIMENTO\",IF(OR(I21=0,I21=\"\"),\"di cui in 1° Classe Pendenza**:\",IF(I21>G$9,\"Quantità diversa da voce di costo OF 02.03a→\",\"di cui in 1° Classe Pendenza**:\")))","v":"di cui in 1° Classe Pendenza**:"},null,{"$f":"(E21*I21*1.2)+(E21*(G21-I21)*1.44)","v":0},null,""]
[null,"FORNITURA DI PIANTINE",null,null,{"$f":"IF(AND(G22=\"\",G$11<>\"\"),\"NON RAGGIUNTO NUMERO DI PIANTE INDICATE PER LA VOCE OF 02.03\",IF(G22>G$11,\"SUPERATO NUMERO DI PIANTE INDICATE PER LA VOCE OF 02.03\",IF(G22<G$11,\"ALLINEARE CON IL NUMERO DI PIANTE INDICATE PER LA VOCE OF 02.03\",\"SUBTOTALE\")))","v":"SUBTOTALE"},null,{"$f":"IF(SUM(G20:G21)>0,SUM(G20:G21),\"\")","v":""},{"$f":"IF(OR(I22>G$9,I22<G$9),\"Quantità diversa da voce di costo OF 02.03a→\",\"di cui in 1° Classe Pendenza**:\")","v":"di cui in 1° Classe Pendenza**:"},{"$f":"IF(SUM(I20:I21)>0,SUM(I20:I21),\"\")","v":""},{"$f":"IF(AND(E22=\"SUBTOTALE\",H22<>\"Quantità diversa da voce di costo OF 02.03a→\"),SUM(J20:J21),\"DATI IMMESSI NON VALIDI\")","v":0},null,{"$f":"IF(G22=\"\",\"\",\"-\")","v":""}]
[{"$f":"'1 - ANAGRAFICA'!$B$8","v":0},15,"OF 01.38","Cannucce in bambù per sostegno piantine e/o protezioni individuali (lunghezza 1,5 m)",0.2,"Cad.",null,null,null,{"$f":"G23*E23","v":0},null,"",{"$f":"IF(H23<>\"\",H23,0)","v":0}]
[null,16,"OF 01.39","Messa in opera di canne di bambù, compresa legatura alla protezione individuale",0.82,"Cad.",null,{"$f":"IF(OR(I24=0,I24=\"\"),\"di cui in 1° Classe Pendenza**:\",IF(I24>G9,\"SUPERATO NUMERO DI PIANTE INDICATE PER LA VOCE OF 02.03a\",IF(I24>G$23,\"Le voci 01.38 e 01.39 dovrebbero coincidere\",\"di cui in 1° Classe Pendenza**:\")))","v":"di cui in 1° Classe Pendenza**:"},null,{"$f":"(E24*I24*1.2)+(E24*(G24-I24)*1.44)","v":0},null,"",{"$f":"ROUNDUP('7 - RIEPILOGHI E PUNTEGGIO'!$C$6/10000*1,0)","v":0}]
[null,"SISTEMI DI PROTEZIONE INDIVIDUALE PER LE PIANTE",null,null,{"$f":"IF(I24<(G24-G10),\"ERRORE - NUMERO DI CANNUCCE PER PRIMACLASSE DI PENDENZA TROPPO BASSO\",IF(I24>G9,\"SUPERATO NUMERO DI PIANTE RICHIESTO NELLA CELLA G9\",IF(OR(G23>G11,G24>G11),\"SUPERATO NUMERO DI PIANTE RICHIESTO NELLA CELLA G11\",IF(G23>G24,\"LA VOCE OF 01.39 DEVE ESSERE ALMENO PARI ALLA VOCE OF 01.38\",IF(G23<>G24,\"Le voci 01.38 e 01.39 dovrebbero coincidere\",\"SUBTOTALE\")))))","v":"SUBTOTALE"},null,{"$f":"IF(I24=\"\",0,\"\")","v":0},"di cui in 1° Classe Pendenza**:",{"$f":"I24","v":0},{"$f":"IF(I24>G24,\"DATI IMMESSI NON VALIDI\",IF(OR(E25=\"SUBTOTALE\",E25=\"Le voci 01.38 e 01.39 dovrebbero coincidere\"),SUM(J23:J24),\"DATI IMMESSI NON VALIDI\"))","v":0},null,{"$f":"IF(G25=0,\"\",\"-\")","v":""}]
[null,17,"OF 02.04a","Taglio di preparazione all’avviamento all’alto fusto di bosco ceduo di età di circa 1,5 turni, eseguito con motosega e mezzi manuali mediante l’eliminazione dei polloni sottomessi, malformati e in sovrannumero, con il rilascio di 1-3 polloni a ceppaia, scelti tra i migliori per conformazione, sviluppo e capacità di affrancamento. Lavori comprensivi di sramatura, raccolta e trasporto o accumulo in luogo idoneo del materiale di risulta (ramaglia) PRIMA CLASSE DI PENDENZA",3201.16,{"$f":"IF($B$2<>\"RIPARTIZIONE CLASSI DI PENDENZA SUPERFICI INTERVENTI AZIONE 2 →\",\"COMPILARE LA PRIMA RIGA DEL QUADRO - E' OBBLIGATORIO\",\"ha\")","v":"COMPILARE LA PRIMA RIGA DEL QUADRO - E' OBBLIGATORIO"},null,null,null,{"$f":"E26*I26","v":0},null,{"$f":"IF(I26=0,\"\",\"-\")","v":""}]
[null,18,"OF 02.04b","Taglio di preparazione all’avviamento all’alto fusto di bosco ceduo di età di circa 1,5 turni, eseguito con motosega e mezzi manuali mediante l’eliminazione dei polloni sottomessi, malformati e in sovrannumero, con il rilascio di 1-3 polloni a ceppaia, scelti tra i migliori per conformazione, sviluppo e capacità di affrancamento. Lavori comprensivi di sramatura, raccolta e trasporto o accumulo in luogo idoneo del materiale di risulta (ramaglia) SECONDA CLASSE DI PENDENZA",3841.39,"COMPILARE LA PRIMA RIGA DEL QUADRO - E' OBBLIGATORIO",null,null,null,{"$f":"E27*I27","v":0},null,{"$f":"IF(I27=0,\"\",\"-\")","v":""}]
[null,19,"OF 02.05a","Taglio di conversione all'alto fusto di bosco ceduo da effettuare almeno 10 anni dopo il taglio di preparazione mediante taglio selettivo sui polloni soprannumerari. Lavori comprensivi di sramatura, raccolta e trasporto o accumulo in luogo idoneo del materiale di risulta (ramaglia) PRIMA CLASSE DI PENDENZA",2761.63,"COMPILARE LA PRIMA RIGA DEL QUADRO - E' OBBLIGATORIO",null,null,null,0,null,"",{"$f":"ROUNDUP('7 - RIEPILOGHI E PUNTEGGIO'!$C$6/10000*2,0)","v":0}]
[null,20,"OF 02.05b","Taglio di conversione all'alto fusto di bosco ceduo da effettuare almeno 10 anni dopo il taglio di preparazione mediante taglio selettivo sui polloni soprannumerari. Lavori comprensivi di sramatura, raccolta e trasporto o accumulo in luogo idoneo del materiale di risulta (ramaglia) SECONDA CLASSE DI PENDENZA",3313.96,"COMPILARE LA PRIMA RIGA DEL QUADRO - E' OBBLIGATORIO",null,null,null,0,null,""]
[null,21,"OF 02.06a","Taglio di diradamento in fustaia transitoria di latifoglie miste, da effettuare almeno 15 anni dopo il primo intervento di conversione, consistente nella eliminazione delle piante e/o polloni soprannumerari, malformati, deperiti, sottomessi o eccessivamente aduggiati. Lavori comprensivi di sramatura, raccolta e trasporto o accumulo in luogo idoneo del materiale di risulta (ramaglia) – PRIMA CLASSE DI PENDENZA",2704.32,"COMPILARE LA PRIMA RIGA DEL QUADRO - E' OBBLIGATORIO",null,null,null,0,null,""]
[null,22,"OF 02.06b","Taglio di diradamento in fustaia transitoria di latifoglie miste, da effettuare almeno 15 anni dopo il primo intervento di conversione, consistente nella eliminazione delle piante e/o polloni soprannumerari, malformati, deperiti, sottomessi o eccessivamente aduggiati. Lavori comprensivi di sramatura, raccolta e trasporto o accumulo in luogo idoneo del materiale di risulta (ramaglia) – SECONDA CLASSE DI PENDENZA",3245.18,"COMPILARE LA PRIMA RIGA DEL QUADRO - E' OBBLIGATORIO",null,null,null,0,null,""]
[null,23,"OF 02.07a","Taglio di diradamento fitosanitario in fustaia di latifoglie miste consistente nell'eliminazione delle piante e/o dei polloni danneggiati, inclinati, ribaltati, stroncati, deperienti o secchi - PRIMA CLASSE DI PENDENZA * moltiplicare la voce con la superficie realmente occupata dalle specie da tagliare",2404.6799999999998,"COMPILARE LA PRIMA RIGA DEL QUADRO - E' OBBLIGATORIO",null,null,null,0,null,""]
[null,24,"OF 02.07b","Taglio di diradamento fitosanitario in fustaia di latifoglie miste consistente nell'eliminazione delle piante e/o dei polloni danneggiati, inclinati, ribaltati, stroncati, deperienti o secchi - SECONDA CLASSE DI PENDENZA * moltiplicare la voce con la superficie realmente occupata dalle specie da tagliare",2885.62,"COMPILARE LA PRIMA RIGA DEL QUADRO - E' OBBLIGATORIO",null,null,null,0,null,""]
[null,25,"OF 02.08a","Diradamento selettivo da eseguirsi su giovane fustaia di resinose di età variabile avente diametro (a m 1,30 dal suolo) di cm 10-20 mediante il taglio alla base. Lavori comprensivi di sramatura, raccolta e trasporto o accumulo in luogo idoneo del materiale di risulta (ramaglia) - PRIMA CLASSE DI PENDENZA * moltiplicare la voce con la superficie realmente occupata dalle specie da tagliare",1968.23,"COMPILARE LA PRIMA RIGA DEL QUADRO - E' OBBLIGATORIO",null,null,null,0,null,""]
[null,26,"OF 02.08b","Diradamento selettivo da eseguirsi su giovane fustaia di resinose di età variabile avente diametro (a m 1,30 dal suolo) di cm 10-20 mediante il taglio alla base. Lavori comprensivi di sramatura, raccolta e trasporto o accumulo in luogo idoneo del materiale di risulta (ramaglia) - SECONDA CLASSE DI PENDENZA * moltiplicare la voce con la superficie realmente occupata dalle specie da tagliare",2361.88,"COMPILARE LA PRIMA RIGA DEL QUADRO - E' OBBLIGATORIO",null,null,null,0,null,""]
[null,27,"OF 02.09a","Diradamento selettivo da eseguirsi su giovane fustaia di resinose di età variabile avente diametro (a m 1,30 dal suolo) di cm 20-30 mediante il taglio alla base. Lavori comprensivi di sramatura, raccolta e trasporto o accumulo in luogo idoneo del materiale di risulta (ramaglia) – PRIMA CLASSE DI PENDENZA * moltiplicare la voce con la superficie realmente occupata dalle specie da tagliare",2433.86,"COMPILARE LA PRIMA RIGA DEL QUADRO - E' OBBLIGATORIO",null,null,null,0,null,""]
[null,28,"OF 02.09b","Diradamento selettivo da eseguirsi su giovane fustaia di resinose di età variabile avente diametro (a m 1,30 dal suolo) di cm 20-30 mediante il taglio alla base. Lavori comprensivi di sramatura, raccolta e trasporto o accumulo in luogo idoneo del materiale di risulta (ramaglia) – SECONDA CLASSE DI PENDENZA * moltiplicare la voce con la superficie realmente occupata dalle specie da tagliare",2920.63,"COMPILARE LA PRIMA RIGA DEL QUADRO - E' OBBLIGATORIO",null,null,null,0,null,""]
[null,29,"OF 02.12","Diradamento dal basso in bosco ceduo a carico delle piante del piano dominato con criterio di determinazione del diametro massimo asportabile o del numero di polloni da rilasciare, allo scopo di costituire un soprasuolo monoplano, compresa sramatura, depezzatura della ramaglia, concentramento dei fusti per il successivo esbosco. Con designazione dei candidati. Parametri di riferimento: densità iniziale 1.500 polloni/ha, prelievo medio 30% dei polloni.",2008,"COMPILARE LA PRIMA RIGA DEL QUADRO - E' OBBLIGATORIO",null,null,null,0,null,""]
[null,30,"OF 02.13","Diradamenti schematico/geometrici ovvero riduzione della biomassa legnosa allo scopo di diminuire la competizione all’interno del popolamento ed aumentare la stabilità fisica degli alberi rimasti. Tale operazione viene usualmente svolta in popolamenti artificiali a sesto regolare e impianti di arboricoltura da legno. Sono comprese anche la sramatura, la sminuzzatura della ramaglia, l’esbosco e il concentramento a bordo strada carrabile per il successivo e definitivo allontanamento. Parametri di riferimento: densità iniziale 400 piante/Ha, eliminazione geometrica del 50% sul numero, diametro piante eliminate medio piccolo",2400,"COMPILARE LA PRIMA RIGA DEL QUADRO - E' OBBLIGATORIO",null,null,null,{"$f":"E39*I39","v":0},null,""]
[null,{"$f":"IF(AND(J8=0,J40>0),\"DIRADAMENTI E TAGLI DI RINATURALIZZAZIONE: Ammissibile solo se associati ad operazioni di sfolli, diradamenti nelle compagini più dense e rinfoltimenti con latifoglie nelle compagini più rade dei boschi di conifere e relativi interventi selvi-colturali\",\"DIRADAMENTI E TAGLI DI RINATURALIZZAZIONE\")","v":"DIRADAMENTI E TAGLI DI RINATURALIZZAZIONE"},null,null,{"$f":"IF(SUM(I26:I39)>$M$2,\"SUPERATA SUPERFICIE DICHIARATA PER L'AZIONE 2\",IF((I26+I28+I30+I32+I34+I36)>$F$2,\"SUPERATA SUPERFICIE DICHIARATA COME PRIMA CLASSE DI PENDENZA\",IF((I27+I29+I31+I33+I35+I37)>$J$2,\"SUPERATA SUPERFICIE DICHIARATA COME SECONDA CLASSE DI PENDENZA\",\"SUBTOTALE\")))","v":"SUBTOTALE"},null,null,null,{"$f":"IF(SUM(I26:I39)>0,SUM(I26:I39),\"\")","v":""},{"$f":"IF(E40=\"SUBTOTALE\",SUM(J26:J39),\"DATI IMMESSI NON VALIDI\")","v":0},{"$f":"IF(AND(M40<>\"\",M53=\"\",M48=\"\"),\"AVVISO - E' CONSIGLIABILE ASSOCIARE INTERVENTI DI ESBOSCO, CIPPATURA E/O TRINCIATURA\",\"\")","v":""},{"$f":"IF(I40=\"\",\"\",\"-\")","v":""},{"$f":"IF(I40=\"\",0,I40)","v":0}]
[null,31,"OF 02.14a","Intervento selvicolturale di ricostituzione boschiva in bosco ceduo degradato mediante taglio di tramarratura e succisione delle ceppaie intristite e deperienti, taglio dei polloni sovrannumerari, riceppatura, ed eventuale decespugliamento, ove necessario, attraverso l’eliminazione di specie indesiderate, compreso l’allontanamento e distruzione del materiale di risulta, anche in terreni rocciosi e scoscesi. Lavori comprensivi di sramatura, raccolta e trasporto o accumulo in luogo idoneo del materiale di risulta (ramaglia)– PRIMA CLASSE DI PENDENZA",2285.44,{"$f":"IF($B$2<>\"RIPARTIZIONE CLASSI DI PENDENZA SUPERFICI INTERVENTI AZIONE 2 →\",\"COMPILARE LA PRIMA RIGA DEL QUADRO - E' OBBLIGATORIO\",\"ha\")","v":"COMPILARE LA PRIMA RIGA DEL QUADRO - E' OBBLIGATORIO"},null,null,null,{"$f":"E41*I41","v":0},null,{"$f":"IF(I41=0,\"\",\"-\")","v":""}]
[null,32,"OF 02.14b","Intervento selvicolturale di ricostituzione boschiva in bosco ceduo degradato mediante taglio di tramarratura e succisione delle ceppaie intristite e deperienti, taglio dei polloni sovrannumerari, riceppatura, ed eventuale decespugliamento, ove necessario, attraverso l’eliminazione di specie indesiderate, compreso l’allontanamento e distruzione del materiale di risulta, anche in terreni rocciosi e scoscesi. Lavori comprensivi di sramatura, raccolta e trasporto o accumulo in luogo idoneo del materiale di risulta (ramaglia)– SECONDA CLASSE DI PENDENZA",2742.53,{"$f":"IF($B$2<>\"RIPARTIZIONE CLASSI DI PENDENZA SUPERFICI INTERVENTI AZIONE 2 →\",\"COMPILARE LA PRIMA RIGA DEL QUADRO - E' OBBLIGATORIO\",\"ha\")","v":"COMPILARE LA PRIMA RIGA DEL QUADRO - E' OBBLIGATORIO"},null,null,null,{"$f":"E42*I42","v":0},null,{"$f":"IF(I42=0,\"\",\"-\")","v":""}]
[null,33,"OF 02.16a","Intervento di spalcatura eseguita su rimboschimento o giovane fustaia di resinose mediante il taglio dei rami ripartiti su diversi palchi e fino a petto d’uomo secondo la conformazione, età e stato vegetativo del soprassuolo (fino ad 1/3 dell’altezza della pianta e comunque non superiore a m 2); compreso l’eventuale taglio delle piante morte o gravemente danneggiate. Lavoro compreso di raccolta e trasporto o accumulo in luogo idoneo del materiale di risulta (ramaglia e materiale morto) – PRIMA CLASSE DI PENDENZA",1612.76,{"$f":"IF($B$2<>\"RIPARTIZIONE CLASSI DI PENDENZA SUPERFICI INTERVENTI AZIONE 2 →\",\"COMPILARE LA PRIMA RIGA DEL QUADRO - E' OBBLIGATORIO\",\"ha\")","v":"COMPILARE LA PRIMA RIGA DEL QUADRO - E' OBBLIGATORIO"},null,null,null,{"$f":"E43*I43","v":0},null,""]
[null,34,"OF 02.16b","Intervento di spalcatura eseguita su rimboschimento o giovane fustaia di resinose mediante il taglio dei rami ripartiti su diversi palchi e fino a petto d’uomo secondo la conformazione, età e stato vegetativo del soprassuolo (fino ad 1/3 dell’altezza della pianta e comunque non superiore a m 2); compreso l’eventuale taglio delle piante morte o gravemente danneggiate. Lavoro compreso di raccolta e trasporto o accumulo in luogo idoneo del materiale di risulta (ramaglia e materiale morto) – SECONDA CLASSE DI PENDENZA",1935.31,{"$f":"IF($B$2<>\"RIPARTIZIONE CLASSI DI PENDENZA SUPERFICI INTERVENTI AZIONE 2 →\",\"COMPILARE LA PRIMA RIGA DEL QUADRO - E' OBBLIGATORIO\",\"ha\")","v":"COMPILARE LA PRIMA RIGA DEL QUADRO - E' OBBLIGATORIO"},null,null,null,{"$f":"E44*I44","v":0},null,"",{"$f":"SUM(I42:I44)","v":0}]
[null,"SPALCATURA",null,null,{"$f":"IF((I41+I43)>$F$2,\"SUPERATA SUPERFICIE DICHIARATA COME PRIMA CLASSE DI PENDENZA\",IF((I42+I44)>$J$2,\"SUPERATA SUPERFICIE DICHIARATA COME SECONDA CLASSE DI PENDENZA\",\"SUBTOTALE\"))","v":"SUBTOTALE"},null,null,null,{"$f":"IF(SUM(I41:I44)>0,SUM(I41:I44),\"\")","v":""},{"$f":"IF(E45=\"SUBTOTALE\",SUM(J41:J44),\"DATI IMMESSI NON VALIDI\")","v":0},null,{"$f":"IF(I45=\"\",\"\",\"-\")","v":""}]
[null,35,"OF 02.17a","Allestimento, concentramento ed esbosco del materiale legnoso utilizzabile con l’intervento di taglio boschivo (diametro superiore ai 5 cm), compresa la ripulitura del terreno. Lavori compresi di raccolta e trasporto del materiale legnoso all’imposto (in bosco) fino alla strada camionabile – PRIMA CLASSE DI PENDENZA",43.8,{"$f":"IF($B$2<>\"RIPARTIZIONE CLASSI DI PENDENZA SUPERFICI INTERVENTI AZIONE 2 →\",\"COMPILARE LA PRIMA RIGA DEL QUADRO - E' OBBLIGATORIO\",\"mc\")","v":"COMPILARE LA PRIMA RIGA DEL QUADRO - E' OBBLIGATORIO"},null,null,null,{"$f":"E46*I46","v":0},null,{"$f":"IF(I46=0,\"\",\"-\")","v":""},{"$f":"IF(I46=\"\",0,I46*6)","v":0},{"$f":"IF(I46=\"\",0,I46*10)","v":0}]
[null,36,"OF 02.17b","Allestimento, concentramento ed esbosco del materiale legnoso utilizzabile con l’intervento di taglio boschivo (diametro superiore ai 5 cm), compresa la ripulitura del terreno. Lavori compresi di raccolta e trasporto del materiale legnoso all’imposto (in bosco) fino alla strada camionabile – SECONDA CLASSE DI PENDENZA",52.56,{"$f":"IF($B$2<>\"RIPARTIZIONE CLASSI DI PENDENZA SUPERFICI INTERVENTI AZIONE 2 →\",\"COMPILARE LA PRIMA RIGA DEL QUADRO - E' OBBLIGATORIO\",\"mc\")","v":"COMPILARE LA PRIMA RIGA DEL QUADRO - E' OBBLIGATORIO"},null,null,null,{"$f":"E47*I47","v":0},null,{"$f":"IF(I47=0,\"\",\"-\")","v":""},{"$f":"IF(I47=\"\",0,I47*6)","v":0},{"$f":"IF(I47=\"\",0,I47*10)","v":0}]
[null,"ESBOSCO MATERIALE LEGNOSO",null,null,"SUBTOTALE",null,null,null,{"$f":"IF(SUM(I46:I47)>0,SUM(I46:I47),\"\")","v":""},{"$f":"IF(E48=\"SUBTOTALE\",SUM(J46:J47),\"DATI IMMESSI NON VALIDI\")","v":0},null,{"$f":"IF(I48=\"\",\"\",\"-\")","v":""},{"$f":"IF(I48=\"\",0,I48*6)","v":0},{"$f":"IF(I48=\"\",0,I48*10)","v":0}]
[null,37,"OF 02.18a","Cippatura in bosco della ramaglia e dei tronchi (Ø inferiore cm10) in fustaie di resinose oggetto di spalcatura e/o diradamento ai fini della prevenzione degli incendi o per motivazioni di carattere turistico-fruitivo, compresa la distribuzione nel terreno di intervento dei residui vegetali macinati (il materiale dovrà essere distribuito ad una distanza di m 10-15 lungo il perimetro del bosco e sui lati delle eventuali strade interne) 100 - PRIMA CLASSE DI PENDENZA",10.96,{"$f":"IF($B$2<>\"RIPARTIZIONE CLASSI DI PENDENZA SUPERFICI INTERVENTI AZIONE 2 →\",\"COMPILARE LA PRIMA RIGA DEL QUADRO - E' OBBLIGATORIO\",\"Q.li\")","v":"COMPILARE LA PRIMA RIGA DEL QUADRO - E' OBBLIGATORIO"},null,null,null,{"$f":"E49*I49","v":0},{"$f":"IF(N51>N46/100*20,\"VALORE INDICATO ELEVATO PER PRIMA CLASSE DI PENDENZA - NON CONSENTITO\",IF(N51>M46/100*20,\"SUBTOTALE-Dato da verificare\",\"\"))","v":""},{"$f":"IF(I49=0,\"\",\"-\")","v":""},{"$f":"IF(I49=\"\",0,I49)","v":0}]
[null,38,"OF 02.18b","Cippatura in bosco della ramaglia e dei tronchi (Ø inferiore cm10) in fustaie di resinose oggetto di spalcatura e/o diradamento ai fini della prevenzione degli incendi o per motivazioni di carattere turistico-fruitivo, compresa la distribuzione nel terreno di intervento dei residui vegetali macinati (il materiale dovrà essere distribuito ad una distanza di m 10-15 lungo il perimetro del bosco e sui lati delle eventuali strade interne) 100 - SECONDA CLASSE DI PENDENZA",13.15,{"$f":"IF($B$2<>\"RIPARTIZIONE CLASSI DI PENDENZA SUPERFICI INTERVENTI AZIONE 2 →\",\"COMPILARE LA PRIMA RIGA DEL QUADRO - E' OBBLIGATORIO\",\"Q.li\")","v":"COMPILARE LA PRIMA RIGA DEL QUADRO - E' OBBLIGATORIO"},null,null,null,{"$f":"E50*I50","v":0},{"$f":"IF(N52>N47/100*20,\"VALORE INDICATO ELEVATO PER SECONDA CLASSE DI PENDENZA - NON CONSENTITO\",IF(N52>M47/100*20,\"SUBTOTALE-Dato da verificare\",\"\"))","v":""},{"$f":"IF(I50=0,\"\",\"-\")","v":""},{"$f":"IF(I50=\"\",0,I50)","v":0}]
[null,39,"OF 02.19a","Trinciatura in bosco della ramaglia e dei tronchi (Ø inferiore cm. 10) da posizionare lungo piste forestali in fustaie di resinose oggetto di spalcatura e/o diradamento ai fini della prevenzione degli incendi - PRIMA CLASSE DI PENDENZA",7.67,{"$f":"IF($B$2<>\"RIPARTIZIONE CLASSI DI PENDENZA SUPERFICI INTERVENTI AZIONE 2 →\",\"COMPILARE LA PRIMA RIGA DEL QUADRO - E' OBBLIGATORIO\",\"Q.li\")","v":"COMPILARE LA PRIMA RIGA DEL QUADRO - E' OBBLIGATORIO"},null,null,null,{"$f":"E51*I51","v":0},{"$f":"IF(N51>N46/100*20,\"VALORE INDICATO ELEVATO PER PRIMA CLASSE DI PENDENZA - NON CONSENTITO\",IF(N51>M46/100*20,\"SUBTOTALE-Dato da verificare\",\"\"))","v":""},{"$f":"IF(I51=0,\"\",\"-\")","v":""},{"$f":"IF(I51=\"\",0,I51)","v":0},{"$f":"M49+M51","v":0}]
[null,40,"OF 02.19b","Trinciatura in bosco della ramaglia e dei tronchi (Ø inferiore cm. 10) da posizionare lungo piste forestali in fustaie di resinose oggetto di spalcatura e/o diradamento ai fini della prevenzione degli incendi - SECONDA CLASSE DI PENDENZA",9.2100000000000009,{"$f":"IF($B$2<>\"RIPARTIZIONE CLASSI DI PENDENZA SUPERFICI INTERVENTI AZIONE 2 →\",\"COMPILARE LA PRIMA RIGA DEL QUADRO - E' OBBLIGATORIO\",\"Q.li\")","v":"COMPILARE LA PRIMA RIGA DEL QUADRO - E' OBBLIGATORIO"},null,null,null,{"$f":"E52*I52","v":0},{"$f":"IF(N52>N47/100*20,\"VALORE INDICATO ELEVATO PER SECONDA CLASSE DI PENDENZA - NON CONSENTITO\",IF(N52>M47/100*20,\"SUBTOTALE-Dato da verificare\",\"\"))","v":""},{"$f":"IF(I52=0,\"\",\"-\")","v":""},{"$f":"IF(I52=\"\",0,I52)","v":0},{"$f":"M50+M52","v":0}]
[null,"CIPPATURE E TRINCIATURA\n* ATTENZIONE - NON SUPERARE IL 20% DEL PESO DEL LEGNAME ESBOSCATO AL NETTO DELLA RAMAGLIA",null,null,{"$f":"IF(N51>N46/100*20,\"VALORE INDICATO ELEVATO PER PRIMA CLASSE DI PENDENZA - NON CONSENTITO\",IF(N51>M46/100*20,\"SUBTOTALE-Dato da verificare\",IF(N52>N47/100*20,\"VALORE INDICATO ELEVATO PER SECONDA CLASSE DI PENDENZA - NON CONSENTITO\",IF(N52>M47/100*20,\"SUBTOTALE-Dato da verificare\",\"SUBTOTALE\"))))","v":"SUBTOTALE"},null,null,null,{"$f":"IF(SUM(I49:I52)>0,SUM(I49:I52),\"\")","v":""},{"$f":"IF(OR(E53=\"SUBTOTALE\",E53=\"SUBTOTALE-Dato da verificare\"),SUM(J49:J52),\"DATI IMMESSI NON VALIDI\")","v":0},null,{"$f":"IF(I53=\"\",\"\",\"-\")","v":""},{"$f":"IF(I53=\"\",0,I53)","v":0}]
[null,41,"OF 03.10","Sfoltimento andante su ceduo per favorire lo sviluppo del novellame diffuso e consentirne l’ulteriore insediamento, consistente nel taglio a carico del piano dominante con rilascio delle piante di miglior sviluppo delle specie pregiate e l’eliminazione piante deperienti degli arbusti ingombranti, compreso accatastamento della ramaglia e concentramento del materiale legnoso utilizzabile. Ipotesi di prelievo: 500 polloni/ha – diametro medio 15 cm.",1376,{"$f":"IF($B$2<>\"RIPARTIZIONE CLASSI DI PENDENZA SUPERFICI INTERVENTI AZIONE 2 →\",\"COMPILARE LA PRIMA RIGA DEL QUADRO - E' OBBLIGATORIO\",\"ha\")","v":"COMPILARE LA PRIMA RIGA DEL QUADRO - E' OBBLIGATORIO"},null,null,null,{"$f":"E54*I54","v":0},null,""]
[null,"SFOLTIMENTO ANDANTE",null,null,{"$f":"IF($I$54>$M$2,\"SUPERATA SUPERFICIE DICHIARATA PER L'AZIONE 2\",\"SUBTOTALE\")","v":"SUBTOTALE"},null,null,null,{"$f":"IF(I54>0,I54,\"\")","v":""},{"$f":"IF(E55=\"SUBTOTALE\",SUM(J54),\"DATI IMMESSI NON VALIDI\")","v":0},null,{"$f":"IF(I55=\"\",\"\",\"-\")","v":""}]
[null,42,"OF 03.11","Intervento di sfollo mediante taglio di selezione in giovani popolamenti non ancora differenziati (spessine) ad elevata densità, al fine di migliorare la stabilità del soprassuolo e regolarne la distribuzione, attraverso taglio selettivo delle piante in eccesso, compresa una leggera potatura con raccolta del materiale utilizzabile ed eliminazione del materiale di risulta con interventi di elevata intensità oltre 800 soggetti.",0.34,{"$f":"IF($B$2<>\"RIPARTIZIONE CLASSI DI PENDENZA SUPERFICI INTERVENTI AZIONE 2 →\",\"COMPILARE LA PRIMA RIGA DEL QUADRO - E' OBBLIGATORIO\",\"Cad.\")","v":"COMPILARE LA PRIMA RIGA DEL QUADRO - E' OBBLIGATORIO"},null,null,null,{"$f":"E56*I56","v":0},null,""]
[null,43,"OF 03.12","Sfoltimento su ceduo per favorire lo sviluppo del novellame esistente e favorirne l'ulteriore insediamento, attraverso il taglio del piano dominante e l'eliminazione delle piante deperite e seccaginose, con rilascio delle piante di migliore pregio compreso la concentrazione del materiale legnoso sui bordi dei percorsi carrabili e l'eliminazione del materiale di risulta. Riferimento ipotesi di prelievo di 500 polloni/ha di diametro medio cm 15.",1.31,{"$f":"IF($B$2<>\"RIPARTIZIONE CLASSI DI PENDENZA SUPERFICI INTERVENTI AZIONE 2 →\",\"COMPILARE LA PRIMA RIGA DEL QUADRO - E' OBBLIGATORIO\",\"Cad.\")","v":"COMPILARE LA PRIMA RIGA DEL QUADRO - E' OBBLIGATORIO"},null,null,null,{"$f":"E57*I57","v":0},null,""]
[null,"SFOLLI",null,null,"SUBTOTALE",null,null,null,{"$f":"IF(SUM(I56:I57)>0,SUM(I54:I57),\"\")","v":""},{"$f":"IF(E58=\"SUBTOTALE\",SUM(J56:J57),\"DATI IMMESSI NON VALIDI\")","v":0},null,{"$f":"IF(I58=\"\",\"\",\"-\")","v":""}]
[null,44,"OF   09.01","Valore commerciale della legna di latifoglia all’imposto nella provincia di Foggia",6.9,{"$f":"IF($B$2<>\"RIPARTIZIONE CLASSI DI PENDENZA SUPERFICI INTERVENTI AZIONE 2 →\",\"COMPILARE LA PRIMA RIGA DEL QUADRO - E' OBBLIGATORIO\",\"Q.li\")","v":"COMPILARE LA PRIMA RIGA DEL QUADRO - E' OBBLIGATORIO"},null,null,null,{"$f":"E59*I59","v":0},null,""]
[null,45,"OF   09.02","Valore commerciale della legna di resinose all’imposto nella provincia di Foggia.",3.45,"COMPILARE LA PRIMA RIGA DEL QUADRO - E' OBBLIGATORIO",null,null,null,{"$f":"E60*I60","v":0},null,""]
[null,46,"OF   09.03","Valore commerciale della legna di latifoglia all’imposto nella provincia di Bari",8.0500000000000007,"COMPILARE LA PRIMA RIGA DEL QUADRO - E' OBBLIGATORIO",null,null,null,{"$f":"E61*I61","v":0},null,""]
[null,47,"OF   09.04","Valore commerciale della legna di resinose all’imposto nella provincia di Bari",3.45,"COMPILARE LA PRIMA RIGA DEL QUADRO - E' OBBLIGATORIO",null,null,null,{"$f":"E62*I62","v":0},null,""]
[null,48,"OF   09.05","Valore commerciale della legna di latifoglia all’imposto nella provincia di Brindisi",8.0500000000000007,"COMPILARE LA PRIMA RIGA DEL QUADRO - E' OBBLIGATORIO",null,null,null,0,null,""]
[null,49,"OF   09.06","Valore commerciale della legna di resinose all’imposto nella provincia di Brindisi",3.45,"COMPILARE LA PRIMA RIGA DEL QUADRO - E' OBBLIGATORIO",null,null,null,{"$f":"E64*I64","v":0},null,""]
[null,50,"OF   09.07","Valore commerciale della legna di latifoglia all’imposto nella provincia di Taranto",8.0500000000000007,"COMPILARE LA PRIMA RIGA DEL QUADRO - E' OBBLIGATORIO",null,null,null,{"$f":"E65*I65","v":0},null,""]
[null,51,"OF   09.08","Valore commerciale della legna di resinose all’imposto nella provincia di Taranto",3.45,"COMPILARE LA PRIMA RIGA DEL QUADRO - E' OBBLIGATORIO",null,null,null,0,null,""]
[null,52,"OF   09.09","Valore commerciale della legna di latifoglia all’imposto nella provincia di Lecce",8.0500000000000007,"COMPILARE LA PRIMA RIGA DEL QUADRO - E' OBBLIGATORIO",null,null,null,0,null,""]
[null,53,"OF   09.10","Valore commerciale della legna di resinose all’imposto nella provincia di Lecce",3.45,"COMPILARE LA PRIMA RIGA DEL QUADRO - E' OBBLIGATORIO",null,null,null,0,null,{"$f":"IF(H68=\"\",\"\",\"-\")","v":""}]
[null,"SPESE GENERALI AZIONE 3"]
[{"$f":"'1 - ANAGRAFICA'!$B$8","v":0},54,"A preventivo","Spese generali - Onorario professionisti"]
[null,55,"Forfettario","Spese generali - Altre a completamento del 12%"]
[{"$f":"'1 - ANAGRAFICA'!$B$8","v":0},null,null,"A = (∑ 1:43 - ∑ 44:53)","TOTALE SPESE MATERIALI",null,null,null,null,{"$f":"SUM(J8,J16,J19,J22,J25,J40,J45,J48,J53,J55,J58)-SUM(J59:J68)","v":0}]
[{"$f":"'1 - ANAGRAFICA'!$B$8","v":0},null,null,"C = MAX (B x 0,12)","SPESE GENERALI: AMMISSIBILI SU DICHIARATO",null,null,null,null,{"$f":"IF((J70+J71)<=J72*0.12,(J70+J71),J72*0.12)","v":0}]
[{"$f":"'1 - ANAGRAFICA'!$B$8","v":0},null,null,"D = (B+C)","TOTALE SPESA RICHIESTA AMMISSIBILE",null,null,null,null,{"$f":"J72+J73","v":0}]
[null,"Note: ","I costi si intendono IVA esclusa\nLe Voci dalla n. 44 alla n. 53, vengono DETRATTE al TOTALE DELLE SPESE MATERIALI "]
[]
[null,null,null,"Il sottoscritto:"]
[]
[null,null,null,"(Denominazione Richiedente)"]
[null,null,null,"in qualità di titolare/legale rappresentante della DdS n.______________________________________a valere sul PSR Puglia 2014 - 2020 Sottomisura 8.6"]
[null,null,null,"E"]
[null,null,null,"Il tecnico incaricato:"]
[]
[null,null,null,"(Cognome e Nome)"]
[null,null,null,"DICHIARANO"]
[]
[null,null,null,"Di aver elaborato il presente quadro degli interventi sulla base di quanto previsto dal par. 3.3.2 delle Linee Guida per la progettazione e realizzazione degli interventi (DAG n. 348/2019 e ss. mm. ii.) e secondo le indicazioni e le limitazioni previste dalle specifica tabella 6 in esse contenuta."]
[]
[]
[null,null,null,"Fatto a_______________________, il_________"]
[]
[null,null,null,"Firma titolare/Legale Rappresentante"]
[]
[]
[null,null,null,"Firma del tecnico e Timbro Professionale dell'Ordine di Appartenenza"]

{"sheet":"5_3 - QUADRO INTERVENTI AZ 3","index":7,"n_rows":34,"n_cols":13,"rows_kept":34,"cut":false,"hidden":false,"merged":[[15,3,15,5],[14,3,14,5],[33,3,33,5],[31,3,31,5],[30,3,30,5],[28,3,28,5],[24,3,26,5],[22,3,22,5],[21,3,21,5],[20,3,20,5],[19,3,19,5],[18,3,18,5],[17,3,17,5],[16,3,16,5],[9,7,10,7],[12,2,12,3],[1,1,1,6],[8,4,8,5],[7,4,7,5],[9,4,9,5],[11,4,11,5],[10,4,10,5],[2,2,5,2],[6,1,6,6]]}
[null,"N. prog","Par.3.4.2 Spese ammissibili DAG. 207/2018 Linee Guida","Descrizione della voce di costo","Unità di misura","Quantità ","Costo"]
[null,"INVESTIMENTO RICHIESTO"]
[{"$f":"'1 - ANAGRAFICA'!$B$8","v":0},1,"A preventivo e/o da CCNL","Studi ed indagini preliminari tematiche"]
[{"$f":"'1 - ANAGRAFICA'!$B$8","v":0},2,null,"Redazione del PGF (stesura preliminare, acquisizione pareri, revisioni e stesura finale)"]
[{"$f":"'1 - ANAGRAFICA'!$B$8","v":0},3,null,"Attività legate alle procedure di acquisizione pareri/autorizzazioni",null,null,null,{"$f":"IF(G5>2840,\"ATTENZIONE - superato il limite di € 2.840. L'eccedenza sarà a carico del beneficiario →\",\"\")","v":""},{"$f":"IF(H5<>\"\",G5-2840,0)","v":0},null,null,null,{"$f":"IF(I5>0,I5*0.12,0)","v":0}]
[{"$f":"'1 - ANAGRAFICA'!$B$8","v":0},4,null,"Attività di comunicazione ed informazione del PGF "]
[null,"SPESE GENERALI AZIONE 3"]
[{"$f":"'1 - ANAGRAFICA'!$B$8","v":0},5,"A preventivo","Spese generali - Onorario professionisti"]
[{"$f":"'1 - ANAGRAFICA'!$B$8","v":0},6,"Forfettario","Spese generali - Altre a completamento del 12%",null,null,0,null,{"$f":"IF(H10<>\"\",\"IMPORTO ECCEDENTE ↓\",\"\")","v":""}]
[{"$f":"'1 - ANAGRAFICA'!$B$8","v":0},null,null,"A = (∑ 1:4) ","TOTALE SPESE MATERIALI",null,{"$f":"SUM(G3:G6)","v":0},{"$f":"IF(((G3+G6)>G10*0.3),\"ATTENZIONE LA SOMMA DEGLI IMPORTI RICHIESTI AI PUNTI 1 E 4, E' MAGGIORE DEL 30% DEL TOTALE. L'ECCEDENZA SARA' A CARICO DEL BENEFICIARIO\",\"\")","v":""},{"$f":"IF(I9<>\"\",(G3+G6)-G10*0.3,0)","v":0}]
[{"$f":"'1 - ANAGRAFICA'!$B$8","v":0},null,null,"B = MAX (A x 0,12)","SPESE GENERALI: AMMISSIBILI SU DICHIARATO",null,{"$f":"IF((G8+G9)<=G10*0.12,(G8+G9),G10*0.12)","v":0},null,{"$f":"IF(G11<(G10-I10-I5)*0.12,0,IF(I10<=0,\"\",IF(I10>0,G11-'classificazione imprese AZ_1'!D29)))","v":""}]
[{"$f":"'1 - ANAGRAFICA'!$B$8","v":0},null,null,"C = (A+B)","TOTALE SPESA RICHIESTA AMMISSIBILE",null,{"$f":"G10+G11","v":0}]
[null,"Note: ","I costi si intendono IVA esclusa"]
[]
[null,null,null,"Il sottoscritto:"]
[]
[null,null,null,"(Denominazione Richiedente)"]
[null,null,null,"in qualità di titolare/legale rappresentante della DdS n.______________________________________a valere sul PSR Puglia 2014 - 2020 Sottomisura 8.6"]
[null,null,null,"E"]
[null,null,null,"Il tecnico incaricato:"]
[]
[null,null,null,"(Cognome e Nome)"]
[null,null,null,"DICHIARANO"]
[]
[null,null,null,"Di aver elaborato il presente quadro degli interventi sulla base di quanto previsto dal par. 3.4.2 delle Linee Guida per la progettazione e realizzazione degli interventi (DAG n. 348/2019, e ss.mm.ii.) e secondo le indicazione e le limitazioni previste dalle specifiche tabelle 8, 9, 10 e 11 in esse contenute."]
[]
[]
[]
[null,null,null,"Fatto a_______________________, il_________"]
[]
[null,null,null,"Firma titolare/Legale Rappresentante"]
[]
[]
[null,null,null,"Firma del tecnico e Timbro Professionale dell'Ordine di Appartenenza"]

{"sheet":"6 - RIEPILOGO DI SPESA","index":8,"n_rows":15,"n_cols":7,"rows_kept":15,"cut":false,"hidden":false,"merged":[[9,6,11,6],[15,5,16,5],[1,1,2,1],[15,4,16,4],[14,1,14,3],[15,1,16,3],[12,1,12,4],[9,1,9,2],[11,1,11,2],[10,1,10,2],[13,1,13,5],[8,1,8,5]]}
[]
[null,"AZIONE","SUPERFICIE AZIONE\n(ha)","SPESE MATERIALI RICHIESTE AMMISSIBILI","SPESE GENERALI RICHIESTE AMMISSIBILI SUL DICHIARATO","TOTALE SPESE RICHIESTE"]
[null,null,"(a)","(b)","(c)","(e) = (b) + (c)"]
[{"$f":"'1 - ANAGRAFICA'!$B$8","v":0},"AZIONE_1_INT.1.1",{"$f":"'7 - RIEPILOGHI E PUNTEGGIO'!C3/10000","v":0},{"$f":"IF(OR($C$4>0,'classificazione imprese AZ_1'!A5=\"SI\",'classificazione imprese AZ_1'!A9=\"SI\"),'5_1.1 - QUADRO INTERVENTI 1.1'!$H$112,0)","v":0},{"$f":"IF(OR($C$4>0,'classificazione imprese AZ_1'!A5=\"SI\",'classificazione imprese AZ_1'!A9=\"SI\"),'5_1.1 - QUADRO INTERVENTI 1.1'!$H$113,0)","v":0},{"$f":"D4+E4","v":0}]
[null,"AZIONE_1_INT.1.2",{"$f":"'7 - RIEPILOGHI E PUNTEGGIO'!C4/10000","v":0},{"$f":"IF($C$5>0,'5_1.2 - QUADRO INTERVENTI 1.2'!$H$19,0)","v":0},{"$f":"IF($C$5>0,'5_1.2 - QUADRO INTERVENTI 1.2'!$H$20,0)","v":0},{"$f":"D5+E5","v":0}]
[{"$f":"'1 - ANAGRAFICA'!$B$8","v":0},"AZIONE_2",{"$f":"('7 - RIEPILOGHI E PUNTEGGIO'!C5/10000)","v":0},{"$f":"IF($C$6>0,'5_2 - QUADRO INTERVENTI AZ 2'!$J$72,0)","v":0},{"$f":"IF($C$6>0,'5_2 - QUADRO INTERVENTI AZ 2'!$J$73,0)","v":0},{"$f":"D6+E6","v":0}]
[{"$f":"'1 - ANAGRAFICA'!$B$8","v":0},"AZIONE_3",{"$f":"'7 - RIEPILOGHI E PUNTEGGIO'!C6/10000","v":0},{"$f":"IF($C$7>0,'5_3 - QUADRO INTERVENTI AZ 3'!$G$10,0)","v":0},{"$f":"IF($C$7>0,'5_3 - QUADRO INTERVENTI AZ 3'!$G$11,0)","v":0},{"$f":"D7+E7","v":0},{"$f":"IF('5_3 - QUADRO INTERVENTI AZ 3'!I10>0,\"ATTENZIONE - LA SOMMA DEGLI IMPORTI RICHIESTI AI PUNTI 1 E 4 DEL QUADRO 5_3, E' MAGGIORE DEL 30% DEL TOTALE. LA PARTE ECCEDENTE E' A CARICO DEL BENEFICIARIO\",\"\")","v":""}]
[{"$f":"'1 - ANAGRAFICA'!$B$8","v":0},"TOTALE",{"$f":"'7 - RIEPILOGHI E PUNTEGGIO'!C7/10000","v":0},{"$f":"SUM(D4:D7)","v":0},{"$f":"SUM(E4:E7)","v":0},{"$f":"SUM(F4:F7)","v":0},{"$f":"IF(SUM(F4:F7)>200000,\"ATTENZIONE SUPERATO IL LIMITE MASSIMO DEL SOSTEGNO DI 200.000 €. LA PARTE ECCEDENTE E' A CARICO DEL BENEFICIARIO\",\"\")","v":""}]
[null,{"$f":"IF(OR('2 - INFORMAZIONI GENERALI SM'!E9<>\"\",'2 - INFORMAZIONI GENERALI SM'!E2<>\"\"),\"SPEGNERE ANOMALIE AL QUADRO 2\",IF(D8>300000,\"ATTENZIONE - IL VALORE TOTALE DELL'INVESTIMENTO E' SUPERIORE AD € 300.000 - CIO' NON E' CONSENTITO DALL'AVVISO PUBBLICO\",IF(OR(F13<>\"-\",SUM('classificazione imprese AZ_1'!B45:B48)>100000),\"ATTENZIONE - QUADRO DI RIEPILOGO E FORMULARIO NON VALIDI. SPEGNERE TUTTE LE ANOMALIE\",\"\")))","v":"SPEGNERE ANOMALIE AL QUADRO 2"}]
[null,"CONTROLLO SPESE MATERIALI AMMISSIBILI \nf1 =∑b (al netto del superamento dei limiti di spesa di cui alla tabella 3 delle linee guida)",null,{"$f":"IF('classificazione imprese AZ_1'!B39>'classificazione imprese AZ_1'!D37,'classificazione imprese AZ_1'!D37,'classificazione imprese AZ_1'!B39)","v":{"$error":"#DIV/0!"}},"MASSIMALE DEL SOSTEGNO\ng1=f1*0,65",{"$f":"IF(B9<>\"\",\"DATI NON VALIDI - SPEGNERE TUTTE LE ANOMALIE\",D10*0.65)","v":"DATI NON VALIDI - SPEGNERE TUTTE LE ANOMALIE"},{"$f":"IF(F12>200000,\"Attenzione:  superato il limite di spesa di € 200.000, la differenza tra le spese richieste e quelle finanziabili sarà a carico del beneficiario\",IF(D12<F8,\"Attenzione:  Non tutte le spese richieste sono finanziabili, la differenza tra le spese richieste e quelle finanziabili sarà completamente a carico del beneficiario\",\"\"))","v":"Attenzione:  superato il limite di spesa di € 200.000, la differenza tra le spese richieste e quelle finanziabili sarà a carico del beneficiario"}]
[null,"CONTROLLO SPESE GENERALI AMMISSIBILI\nf2 =∑c (al netto del superamento dei limiti di spesa di cui alla tabella 3 delle linee guida)",null,{"$f":"IF('classificazione imprese AZ_1'!B42>'classificazione imprese AZ_1'!E37,'classificazione imprese AZ_1'!E37,'classificazione imprese AZ_1'!B42)","v":{"$error":"#DIV/0!"}},"MASSIMALE DEL SOSTEGNO\ng2=f2*0,65",{"$f":"IF(B9<>\"\",\"DATI NON VALIDI - SPEGNERE TUTTE LE ANOMALIE\",D11*0.65)","v":"DATI NON VALIDI - SPEGNERE TUTTE LE ANOMALIE"}]
[null,"CONTROLLO TOTALE SPESE AMMISSIBILI\nft=f1+f2",null,{"$f":"D10+D11","v":{"$error":"#DIV/0!"}},"MASSIMALE DEL SOSTEGNO\ngt=ft*0,65",{"$f":"IF(B9<>\"\",\"DATI NON VALIDI - SPEGNERE TUTTE LE ANOMALIE\",D12*0.65)","v":"DATI NON VALIDI - SPEGNERE TUTTE LE ANOMALIE"}]
[null,"Nota:\n1. Nel caso non si acquistino macchinari/impianti/attrezzature, le spese generali ammissibili non potranno essere superiori al 12% di 178.571,43 €, pari a 21.428,57 €, per concorrere al massimale di 200.000 €. Nel caso di acquisto di soli macchinari/impianti/attrezzature le spese generali ammissibili non potranno essere superiori al 6% di 188.679,25€, pari a 11.320,75€, per concorrere al massimale di 200.000 €. Nel caso di progetto che preveda voci di costo con aliquote di spese generali differenti (6% e 12%) i massimali verrano calcolati in maniera proporzionale agli importi richiesti per le due tipologie di voci di costo (6% e 12%).\n",null,null,null,{"$f":"IF(OR(D10>D8,'7 - RIEPILOGHI E PUNTEGGIO'!B8<>\"-\",'2 - INFORMAZIONI GENERALI SM'!E2<>\"\"),\"ATTENZIONE IL FORMULARIO CONTIENE DATI INESATTI. GLI IMPORTI CALCOLATI NON SONO AL MOMENTO ATTENDIBILI\",IF(AND(C4>0,D4=0),\"QUADRO 5 INT 1.1 - NON COMPILATO\",IF(AND(C5>0,D5=0),\"QUADRO 5 INT 1.2 - NON COMPILATO\",IF(AND(C6>0,D6=0),\"QUADRO 5 Az 2 - NON COMPILATO\",IF(AND(C7>0,D7=0),\"QUADRO 5 Az 3 - NON COMPILATO\",\"-\")))))","v":{"$error":"#DIV/0!"}}]
[null,"2 . Per totale superficie si intende la somma delle superficie boscata, condotta dall'azienda, calcolata sulla base di quanto dichiarato nel Quadro 3 Localizzazione Interventi\nNota: Il massimale di sostegno (gt) è determinato nella misura del 65% della spesa massima ammissibile (f)"]
[null,"LUOGO E DATA",null,null,"FIRMA DEL RICHIEDENTE","FIRMA E TIMBRO DEL TECNICO"]

{"sheet":"7 - RIEPILOGHI E PUNTEGGIO","index":9,"n_rows":10,"n_cols":14,"rows_kept":10,"cut":false,"hidden":false,"merged":[[0,8,0,9],[0,2,1,2],[2,10,5,10],[3,3,5,3],[6,6,6,7],[9,1,9,9],[0,1,1,1],[2,5,5,5],[2,9,5,9],[2,8,5,8],[2,7,5,7],[2,6,5,6],[8,1,8,9],[7,1,7,10],[0,10,1,10],[0,4,1,4],[0,3,1,3],[0,5,0,7]]}
[null,"AZIONI","SOMMA SUPERFICI PER AZIONE\nm2","PUNTEGGIO PONDERATO\nPrincipio 1 - Ambito territoriale","IMPORTI DI PROGETTO \nRIFERITI ALLE SPESE MATERIALI AL NETTO DEI LIMITI DI SPESA DI CUI ALLA TABELLA 3 DELLE LINEE GUIDA","PUNTEGGIO\nPrincipio 2 - Tipologia dell'intervento",null,null,"PUNTEGGIO\nPrincipio 3 - Qualifica del beneficiario",null,"PUNTEGGIO PONDERATO COMPLESSIVO\nSomma Principio 1, 2 e 3"]
[null,null,null,null,null,"Maggior contenuto dell'innovazione\n\"Punteggio ponderato\"","Estensione delle superfici forestali interessate dagli interventi nelle disponibilità dei beneficiari","Presenza del Piano di Gestione Forestale","Qualifica del beneficiario:\ngrado di aggregazione tra più beneficiari","Qualifica del beneficiario:\nIAP",null,null,"SOMMA SUP DA LOCALIZZAZIONE","DIFFERENZA CON ANAGRAFICA"]
[{"$f":"'1 - ANAGRAFICA'!$B$8","v":0},"AZIONE_1_INT. 1.1",{"$f":"'1 - ANAGRAFICA'!E17","v":0},{"$f":"'classificazione imprese AZ_1'!E2","v":0},{"$f":"IF(OR(C3>0,'classificazione imprese AZ_1'!A5=\"SI\",'classificazione imprese AZ_1'!$A$9=\"SI\"),SUM('classificazione imprese AZ_1'!B18:B22,0))","v":false},{"$f":"IF(E3=0,0,IF(AND('2 - INFORMAZIONI GENERALI SM'!C3=\"SI\",'5_1.1 - QUADRO INTERVENTI 1.1'!H112>0),'classificazione imprese AZ_1'!$B$34))","v":false},{"$f":"IF(C7>400000,18,IF(C7>300000,15,IF(C7>200000,12,IF(C7>100000,9,0))))","v":0},{"$f":"IF(C6=0,0,IF(AND('2 - INFORMAZIONI GENERALI SM'!$C$8=\"SI\",'2 - INFORMAZIONI GENERALI SM'!$C$9=\"SI\",'6 - RIEPILOGO DI SPESA'!D7>0,'7 - RIEPILOGHI E PUNTEGGIO'!C6<500000),15,0))","v":0},{"$f":"IF('1 - ANAGRAFICA'!L12=\"Partecipazione in forma aggregata da 2 a 5 beneficiari\",15,IF('1 - ANAGRAFICA'!L12=\"Partecipazione in forma aggregata più di 5 beneficiari\",20,0))","v":0},{"$f":"IF('1 - ANAGRAFICA'!$E$14=\"Imprenditore Agricolo Professionale (IAP)\",10,0)","v":0},{"$f":"IF(B8<>\"-\",\"IL FORMULARIO CONTIENE DATI CONTRADDITTORI - COMPLETARE TUTTI I QUADRI E SPEGNERE LE ANOMALIE\",IF(D4=0,D3+G7+J7,D4+G7+J7))","v":0},null,{"$f":"SUMIF('4 - QUADRO LOCALIZZAZIONE'!$L$3:$L$102,\"Intervento_1.1\",'4 - QUADRO LOCALIZZAZIONE'!$G$3:$G$102)","v":0},{"$f":"M3-C3","v":0}]
[null,"AZIONE_1_INT. 1.2",{"$f":"'1 - ANAGRAFICA'!E18","v":0},{"$f":"IF(D3>0,0,IF(SUM('4 - QUADRO LOCALIZZAZIONE'!U:U)=0,0,SUM('4 - QUADRO LOCALIZZAZIONE'!U:U)/C7))","v":0},{"$f":"IF(C4>0,'6 - RIEPILOGO DI SPESA'!$D5,0)","v":0},null,null,null,null,null,null,null,{"$f":"SUMIF('4 - QUADRO LOCALIZZAZIONE'!$L$3:$L$102,\"Intervento_1.2\",'4 - QUADRO LOCALIZZAZIONE'!$G$3:$G$102)","v":0},{"$f":"M4-C4","v":0}]
[{"$f":"'1 - ANAGRAFICA'!$B$8","v":0},"AZIONE_2",{"$f":"'1 - ANAGRAFICA'!L17","v":0},null,{"$f":"IF(C5>0,'6 - RIEPILOGO DI SPESA'!$D6,0)","v":0},null,null,null,null,null,null,null,{"$f":"SUMIF('4 - QUADRO LOCALIZZAZIONE'!$L$3:$L$102,\"AZIONE_2\",'4 - QUADRO LOCALIZZAZIONE'!$G$3:$G$102)","v":0},{"$f":"M5-C5","v":0}]
[{"$f":"'1 - ANAGRAFICA'!$B$8","v":0},"AZIONE_3",{"$f":"'1 - ANAGRAFICA'!S17","v":0},null,{"$f":"IF(AND(C6>0,'5_3 - QUADRO INTERVENTI AZ 3'!I10>0),('5_3 - QUADRO INTERVENTI AZ 3'!G10-'5_3 - QUADRO INTERVENTI AZ 3'!I10),IF('7 - RIEPILOGHI E PUNTEGGIO'!C6>0,'5_3 - QUADRO INTERVENTI AZ 3'!G10,0))","v":0},null,null,null,null,null,null,null,{"$f":"SUMIF('4 - QUADRO LOCALIZZAZIONE'!$L$3:$L$102,\"AZIONE_3\",'4 - QUADRO LOCALIZZAZIONE'!$G$3:$G$102)","v":0},{"$f":"M6-C6","v":0}]
[{"$f":"'1 - ANAGRAFICA'!$B$8","v":0},"TOTALE",{"$f":"SUM('4 - QUADRO LOCALIZZAZIONE'!T:T)","v":0},null,{"$f":"SUM(E3:E6)","v":0},"SUBTOTALE PUNTEGGIO Principio 2 →",{"$f":"SUM(F3:H6)","v":0},null,"SUBTOTALE PUNTEGGIO Principio 3 →",{"$f":"SUM(I3:J6)","v":0},{"$f":"IF(K3<12,\"ATTENZIONE - PUNTEGGIO MINIMO NON RAGGIUNTO\",\"\")","v":"ATTENZIONE - PUNTEGGIO MINIMO NON RAGGIUNTO"},null,{"$f":"MAX(C4:C6)","v":0}]
[null,{"$f":"IF(SUM(C3:C6)<C7,\"ATTENZIONE: LA SOMMA TOTALE DI SUPERFICIE CON ALMENO UN INTERVENTO INDICATA NEL QUADRO 4 - LOCALIZZAZIONE INTERVENTI, E' MAGGIORE DELLA SOMMA DELLE SUPERFICI PER AZIONI INDICATA IN ANAGRAFICA\",IF(C7<M7,\"ATTENZIONE: LA SOMMA TOTALE DI SUPERFICIE CON ALMENO UN INTERVENTO INDICATA NEL QUADRO 4 - LOCALIZZAZIONE INTERVENTI, E' MINORE DELLA SUPERFICIE DELL'AZIONE CON SUPERFICIE MAGGIORE\",IF(N3<>0,\"SUPERFICIE DICHIARATA IN QUADRO 4 LOCALIZZAZIONE DIVERSA DA SUPERFICIE DICHIARATA IN ANAGRAFICA - Intervento_1.1\",IF(N4<>0,\"SUPERFICIE DICHIARATA IN QUADRO 4 LOCALIZZAZIONE DIVERSA DA SUPERFICIE DICHIARATA IN ANAGRAFICA - Intervento_1.2\",IF(N5<>0,\"SUPERFICIE DICHIARATA IN QUADRO 4 LOCALIZZAZIONE DIVERSA DA SUPERFICIE DICHIARATA IN ANAGRAFICA - AZIONE_2\",IF(N6<>0,\"SUPERFICIE DICHIARATA IN QUADRO 4 LOCALIZZAZIONE DIVERSA DA SUPERFICIE DICHIARATA IN ANAGRAFICA - AZIONE_3\",IF(AND(C6=0,'2 - INFORMAZIONI GENERALI SM'!C8=\"SI\"),\"ATTIVATA AZIONE 3 AL QUADRO 2 INFORMAZIONI GENERALI, MA NON INDICATA ALCUNA SUPERFICIE - ALLINEARE LE INFORMAZIONI\",IF(AND(C5=0,OR('2 - INFORMAZIONI GENERALI SM'!C6=\"SI\",'2 - INFORMAZIONI GENERALI SM'!C7=\"SI\")),\"ATTIVATA AZIONE 2 AL QUADRO 2 INFORMAZIONI GENERALI, MA NON INDICATA ALCUNA SUPERFICIE - ALLINEARE LE INFORMAZIONI\",IF(AND(C4=0,'2 - INFORMAZIONI GENERALI SM'!C5=\"SI\"),\"ATTIVATO INTERVENTO 1.2 AL QUADRO 2 INFORMAZIONI GENERALI, MA NON INDICATA ALCUNA SUPERFICIE - ALLINEARE LE INFORMAZIONI\",\"-\")))))))))","v":"-"}]
[null,"Nota: La sottomisura 8.6 prevede un punteggio minimo di accesso pari a 12 punti. Il punteggio elaborato nel seguente quadro dovrà essere riportato con analoghi valori nell'apposito quadro della domanda di sostegno."]
[null,"ATTENZIONE: IL QUADRO NON SI COMPLETA SE NON SONO STATI CORRETTAMENTE COMPLETATI TUTTI I QUADRI PRECEDENTI, PERTINENTI CON IL PROGETTO DELLA DITTA RICHIEDENTE GLI AIUTI"]

{"sheet":"8 - ELENCO SPECIE AUTOCTONE","index":10,"n_rows":51,"n_cols":5,"rows_kept":51,"cut":false,"hidden":false,"merged":[[29,0,29,2],[33,0,33,3],[1,0,1,3],[0,4,0,6],[0,0,0,3],[32,0,32,3],[31,0,31,1],[31,2,31,3],[51,0,51,3],[50,0,50,3],[49,0,49,3],[39,0,39,3],[40,0,40,3],[41,0,41,3],[42,0,42,3],[43,0,43,3],[44,0,44,3],[48,0,48,3],[47,0,47,3],[46,0,46,3],[34,0,34,3],[35,0,35,3],[36,0,36,3],[37,0,37,3],[38,0,38,3]]}
[{"$f":"IF(AND('5_2 - QUADRO INTERVENTI AZ 2'!$G$11<>\"\",'5_2 - QUADRO INTERVENTI AZ 2'!$G$11>0,$C$32<>'5_2 - QUADRO INTERVENTI AZ 2'!G11),\"INDICARE SPECIE E NUMERO DI PIANTE CHE SI INTENDE METTERE A DIMORA\",IF(C32='5_2 - QUADRO INTERVENTI AZ 2'!G11,\"ELENCO SPECIE AUTOCTONE\",\"NON PERTINENTE SE NON SI ATTIVA L'AZIONE 2 - NON STAMPARE\"))","v":"NON PERTINENTE SE NON SI ATTIVA L'AZIONE 2 - NON STAMPARE"},null,null,null,"VERIFICA IL NUMERO INDICATO AL QUADRO 5_2_AZIONE_2"]
["ELENCO SPECIE ALLEGATO 1 AVVISO PUBBLICO D.A.G. 316/2019 e ss. mm. ii."]
[" Acer campestre L., Acero campestre",null," Phyllirea latifolia L, Fillirea"]
[" Acer monspessulanum L., Acero minore",null," Pinus halepensis Mill., Pino d’Aleppo"]
[" Acer obtusatum L., Acero opalo WK",null," Pistacia lentiscus L., Lentisco"]
[" Arbutus unedo L., Corbezzolo",null," Pistacia terebinthus L., Terebinto"]
[" Carpinus betulus L., Carpino bianco",null," Populos tremula, Pioppo tremulo "]
[" Carpinus orientalis Mill., Carpinella",null," Populus alba, Pioppo bianco"]
[" Ceratonia siliqua L., Carrubo",null," Prunus spinosa L., Prugnolo o Strozzapreti"]
[" Cistus incanus L., Cisto rosso",null," Quercus cerris L., Cerro"]
[" Cistus salvifolius L., Cisto salvifoglio",null," Quercus coccifera L., Quercia spinosa"]
[" Cornus mas L., Corniolo",null," Quercus frainetto Ten., Farnetto"]
[" Cornus sanguinea L., Sanguinello",null," Quercus ilex L., Leccio"]
[" Coronilla emerus L., Coronilla",null," Quercus macrolepis Kotchy, Vallonea"]
[" Corylus avellanae L., Nocciolo",null," Quercus pubescens Mill., Roverella"]
[" Crataegus monogyna Jacq., Biancospino",null," Quercus suber L., Sughera"]
[" Erica arborea L., Erica",null," Quercus trojana Webb, Fragno"]
[" Euonymus europaeus L., Fusaggine o Berretta da prete",null," Rhamnus alaternus L., Alaterno"]
[" Fagus sylvatica L., Faggio",null," Rosa canina L., Rosa selvatica"]
[" Fraxinus excelsior L., Frassino maggiore",null," Ruscus aculeatus L., Pungitopo"]
[" Fraxinus ornus L., Orniello",null," Salix alba L., Salice bianco"]
[" Fraxinus oxycarpa Bieb., Frassino meridionale",null," Sambucus nigra L., Sambuco nero"]
[" Ilex aquifolium L., Agrifoglio",null," Sorbus domestica L., Sorbo domestico"]
[" Juniperus oxycedrus L., Ginepro coccolone",null," Sorbus torminalis Crantz., Ciavardello"]
[" Juniperus phoenicea L., Ginepro fenicio",null," Tilia cordata Miller, Tiglio selvatico"]
[" Laurus nobilis L. Alloro",null," Tilia platyphillos Scop., Tiglio nostrale"]
[" Ligustrum vulgare L., Ligustro",null,"Cercis siliquastrum L., Albero di Giuda"]
[" Mirtus communis L., Mirto",null," Ulmus minor L., Olmo minore"]
[" Ostrya carpinifolia Scop., Carpino nero",null," Viburnus tinus L., Viburno"]
["SUBTOTALE 1",null,null,{"$f":"SUM(B3:B29)+SUM(D3:D29)","v":0}]
["ALTRE*",null,"SUBTOTALE 2",{"$f":"B31","v":0}]
[{"$f":"IF($C$32<>'5_2 - QUADRO INTERVENTI AZ 2'!$G$11,\"IL TOTALE DELLE PIANTE INDICATE E' DIVERSO DA QUANTO DICHIARATO AL QUADRO 5_2_AZ_2, CELLA G12\",\"TOTALE PIANTE PREVISTE PER LA MESSA A DIMORA\")","v":"IL TOTALE DELLE PIANTE INDICATE E' DIVERSO DA QUANTO DICHIARATO AL QUADRO 5_2_AZ_2, CELLA G12"},null,{"$f":"D30+D31","v":0}]
["SI RICORDA CHE LE SPECIE AMMISSIBILI VARIANO A SECONDA DEGLI AMBITI TERRITORIALI IN CUI RICADE IL PROGETTO, COSI' COME DEFINITI DALLE TABELLA 7 DELLE LINEE GUIDA PER LA PROGETTAZIONE E REALIZZAZIONE DEGLI INTERVENTI (DAG n. 348/2019 e ss. mm. ii.)"]
["* riferimento alla D.G.R. n. 1177 del 18/07/2017 ed alla Determinazione della Sezione Gestione Sostenibile e Tutela delle Risorse Forestali e Naturali n.58 del 20/02/2018 come da ALLEGATO 1 alla DAG n. 316/2019"]
["Il sottoscritto:"]
[]
["(Denominazione Richiedente)"]
["in qualità di titolare/legale rappresentante della DdS n.______________________________________a valere sul PSR Puglia 2014 - 2020 Sottomisura 8.6"]
["E"]
["Il tecnico incaricato:"]
[]
["(Cognome e Nome)"]
["DICHIARANO"]
["Di aver elaborato il presente quadro sulla base di quanto previsto dal par. 3.3.3 delle Linee Guida per la progettazione e realizzazione degli interventi (DAG n. 348/2019 e ss. mm. ii.) e secondo le indicazione e le limitazioni previste dalla specifica tabella 7 in esse contenuta, nonchè dall'allegato 1 al bando (DAG n. 316/2019 e ss.mm.ii)"]
[]
["Fatto a_______________________, il_________"]
[]
["Firma titolare/Legale Rappresentante"]
[]
[]
["Firma del tecnico e Timbro Professionale dell'Ordine di Appartenenza"]

{"sheet":"9 - DICHIARAZIONI","index":11,"n_rows":58,"n_cols":3,"rows_kept":58,"cut":false,"hidden":false,"merged":[[5,2,6,2]]}
[null,"Il sottoscritto:"]
[null,"(Denominazione Richiedente)"]
[null,"in qualità di titolare/legale rappresentante della DdS n.             a valere sul PSR Puglia 2014 - 2020 Sottomisura 8.6"]
[null,"E"]
[null,"Il tecnico incaricato: "]
[null,"(Cognome e Nome)","SI/Non Pertinente"]
[null,"DICHIARANO"]
[null,"Ai sensi degli artt. 46 e 47, D.P.R. 28 Dicembre 2000 n.445, consapevole delle sanzioni penali nel caso di dichiarazioni non veritiere, di formazione o uso di atti falsi, richiamate dall’art. 76 del D.P.R. medesimo"]
["1)","Che le superfici oggetto di intervento possiedono i requisiti di ammissibilità previsti al paragrafo 10 dell’Allegato A alla DAG n. 316 del 30/09/2019 relativa all'Avviso Pubblico per la presentazione delle DdS relative alla Sottomisura 8.6;"]
["2)","Che il Progetto degli interventi proposto ai sensi della Sottomisura 8.6 possiede i requisiti di ammissibilità previsti dal paragrafo 10 dell'Avviso Pubblico per la presentazione delle DdS ;"]
["3)","Che le superfici oggetto di DdS sono in possesso dei requisiti per l'attribuzione dei punteggi previsti dal macrocriterio \"Ambiti territoriali\", ove previsti;"]
["4)","Che gli interventi oggetto di DdS sono in possesso dei requisiti per l'attribuzione dei punteggi previsti dal macrocriterio  di valutazione \"Tipologia delle operazioni attivate\";"]
["5)","Di essere in possesso di un Piano di Gestione Forestale per le fattispecie di cui di cui alla lettera d) paragrafo 10.1 dell'Avviso Pubblico per la presentazione delle DdS;"]
["6)","La veridicità delle informazioni e dei dati riportati nel Formulario degli Interventi e la loro corrispondenza alla effettiva situazione aziendale rilevata con sopralluogo preliminare alla redazione del Formulario, nonché mediante consultazione degli atti relativi;"]
["7)","La piena corrispondenza fra quanto riportato nel foglio di lavoro n. 4 quadro di localizzazione degli interventi con quanto presente nel Fascicolo aziendale del soggetto richiedente, ove pertinente;"]
["8)","Di essere a conoscenza di quanto previsto dall'Avviso Pubblico per la presentazione delle DdS della sottomisura 8.6 del PSR Puglia 2014-2020;"]
["9)","Con riferimento all'art. 69 par. 3 lett. c), del Reg.(UE) n. 1303/2013 e alla normativa nazionale sull'IVA, regolata dal DPR n. 633/1972, di  avere diritto all'ammissibilità a finanziamento FEASR di tale imposta;"]
["10)","Di non essere un'impresa in difficoltà, così come definite dall’Art. 2, punto (14), del Regolamento (UE) n. 702/2014 della Commissione del 25 giugno 2014;"]
["11)","Di non essere in stato di fallimento, di liquidazione coatta, di concordato preventivo, di amministrazione straordinaria o con procedimenti pendenti per la dichiarazione di tali situazioni;"]
["12)","Di non essere nella condizione di “richiedente inaffidabile”, in applicazione del Regolamento di esecuzione (UE) n. 809/2014, Art. 48;"]
["13)","Di essere a conoscenza del limite in \"regime de minimis\" con massimale di aiuto pari a 200.000 euro nell‘arco di tre esercizi finanziari;"]
["14)","Nel caso di interventi della tipologia 1.1, che i macchinari acquistati saranno destinate a servizio di più aziende forestali;"]
["15)","Che il soggetto richiedente gli aiuti è un fornitore di soli servizi, che, con i macchinari e le attrezzature da acquistarsi per gli interventi 1.1, potrà fornire servizi di gestione delle foreste ad altri imprenditori forestali;"]
["16)","Che il tecnico incaricato è autorizzato dal titolare/legale rappresentante alla trasmissione della documentazione prevista dai procedimenti correlati al bando per il tramite della propria casella PEC, manlevando la Regione Puglia da qualsiavoglia responsabilità."]
[]
[null,"Inoltre, nei casi di Enti Pubblici e Privati o Consorzi:"]
["17)","Che il Soggetto richiedente non è in stato di dissesto finanziario o di amministrazione controllata o in liquidazione, né sono in corso procedimenti per la dichiarazione di una di tali condizioni;"]
["18)","Che sono stati preventivamente emessi gli atti amministrativi previsti dal paragrafo 14 dell'Avviso Pubblico per la presentazione delle DdS sottomisura 8.6 del PSR Puglia 2014-2020."]
[]
[null,"DICHIARANO, INOLTRE DI IMPEGNARSI A:"]
["a)       ","Mantenere i Requisiti di Ammissibilità di cui al paragrafo 10 dell'Avviso Pubblico per tutta la durata della concessione;"]
["b)       ","Rispettare i termini e le modalità di esecuzione degli interventi stabiliti nell'Avviso Pubblico, nonché nel provvedimento di concessione e da eventuali atti correlati, e nel rispetto della normativa urbanistica, ambientale, paesaggistica vigente e dei vincoli di altra natura eventualmente esistenti;"]
["c)       ","Osservare le modalità di rendicontazione delle spese relative agli investimenti ammissibili dalla Sottomisura 8.6 secondo quanto previsto dal provvedimento di concessione e da eventuali atti correlati;"]
["d)       ","Attivare, prima dell'avvio degli interventi ammessi ai benefici o della presentazione della prima DdP, un conto corrente dedicato intestato al soggetto beneficiario. Su tale conto dovranno transitare tutte le risorse finanziarie necessarie per la completa realizzazione dell'investimento, sia di natura pubblica (contributo in conto capitale/conto interesse) che privata (mezzi propri o derivanti da linee di finanziamento bancario). Il conto corrente dedicato dovrà restare attivo per l'intera durata dell'investimento e di erogazione dei relativi aiuti. Sullo stesso conto non potranno risultare operazioni non riferibili agli interventi ammessi all'aiuto pubblico. Le entrate del conto saranno costituite esclusivamente dal contributo pubblico erogato dall'OP AGEA, dai mezzi propri immessi dal beneficiario e dall'eventuale finanziamento bancario; le uscite saranno costituite solo dal pagamento delle spese sostenute per l'esecuzione degli interventi ammessi ai benefici dalla Sottomisura 8.6;"]
["e)       ","Non richiedere né percepire altri contributi pubblici per gli interventi ammessi a finanziamento;"]
["f)        ","Di impegnarsi a rispettare il limite del \"regime de minimis\" con massimale di aiuto pari a 200.000 euro nell‘arco di tre esercizi finanziari e comunicare al Dipartimento Agricoltura, Sviluppo Rurale ed Ambientale gli eventuali ulteriori contributi percepiti in \"regime de minimis\" nel periodo riferimento;"]
["g)       ","Di impegnarsi a rispettare gli obblighi in materia di \"periodo di inalienabilità\" e \"vincolo di destinazione d'uso\" per gli investimenti finanziati;"]
["h)       ","Impiegare materiale di propagazione di specie autoctone, compatibili con le condizioni pedoclimatiche dell'area interessata, secondo le prescrizioni previste dalla normativa europea in materia di commercializzazione di semi o piante forestali e ai sensi e per gli effetti del D. lvo 386/2003. Per la normativa regionale si fa riferimento alle Determine Dirigenziali del Settore Foreste della Regione Puglia del 07.07.2006 n. 889, del 21.12.2009 n.757, del 16.12.2009 n. 2461, e del 26.03.2010 n. 65;"]
["i)        ","Dare adeguata pubblicità all’investimento;"]
["j)        ","In caso di richiedente conduttore di superfici forestali che aderisce all'intervento 1.1, di impegnarsi ad acquisire il requisito di iscrizione all'Albo delle Imprese Boschive prima della chiusura del programma di investimenti e della relativa domanda di pagamento del saldo."]
[]
[null,"Fatto a , il "]
[]
[null,"Firma titolare/Legale Rappresentante"]
[]
[]
[null,"Firma del tecnico e Timbro Professionale dell'Ordine di Appartenenza"]
[]
[null,"DICHIARANO INOLTRE"]
["l)","Di prendere atto ed accettare le regole relative alla tempistica, alle modalità ed alle procedure di partecipazione stabilite dall'Avviso Pubblico di cui alla DAG n. 316 del 30/09/2019 e ss.mm.ii. E delle conseguenze derivanti dall'inosservanza delle stesse."]
["m)","Di prendere atto ed accettare quanto disposto dalla Determina dell' Autorità di Gestione di approvazione del formulario degli interventi e delle procedure di utilizzo."]
[]
[null,"Fatto a , il "]
[]
[null,"Firma titolare/Legale Rappresentante"]
[]
[]
[null,"Firma del tecnico e Timbro Professionale dell'Ordine di Appartenenza"]

{"sheet":"10 LIMITAZIONI MACCHINE ATTREZ","index":12,"n_rows":10,"n_cols":5,"rows_kept":10,"cut":false,"hidden":false,"merged":[[0,4,0,6],[8,0,9,0],[8,1,9,1],[8,3,9,3],[0,0,0,3]]}
["LIMITAZIONI ADEGUAMENTI DELLE DOTAZIONI TECNICHE DI MACCHINARI ED ATTREZZATURE (cfr. Tabella 3 - par. 3.2.1.1 Linee Guida Sottomisura 8.6)",null,null,null,"TORNA AL QUADRO 2"]
["Classe Impresa boschiva/ Superf. forestale (ha)","Attrezzature per gestione bosco (max €)","Attrezzature per lavorazione pre-industriale (max €)","Attrezzature per produzioni NON legnose (max €)"]
["Impresa boschiva - Classe D",25000,30000,"Attrezzature NON PREVISTE"]
["Aziende forestali > 0,2 Ha e fino a  25 ha",25000,30000,"SI – max € 25.000 "]
["Impresa boschiva  - Classe C",75000,50000,"Attrezzature NON PREVISTE"]
["Aziende forestali  > 25 ha ≤ 100 ha",75000,50000,"SI - max € 75.000"]
["Impresa boschiva Classe A e B",100000,200000,"Attrezzature NON PREVISTE"]
["Aziende forestali  > 100 ha",100000,200000,"SI - max € 100.000"]
["PMI del legno","Attrezzature NON PREVISTE",200000,"Attrezzature NON PREVISTE"]
[null,null,"NO Cippato e pellets"]

{"sheet":"11 COMBINAZIONI E PUNTEGGI","index":13,"n_rows":20,"n_cols":16,"rows_kept":20,"cut":false,"hidden":false,"merged":[[0,15,0,17],[1,4,2,4],[1,5,2,5],[1,0,2,0],[1,13,2,13],[0,6,0,10],[1,11,1,12],[0,11,0,13],[0,1,0,3],[1,1,2,1],[1,2,2,2],[1,3,2,3],[0,4,0,5]]}
[null,"Localizzazione",null,null,"Innovazione",null,"Estensione superfici boscate ed eventuale PGF",null,null,null,null,"Qualifica beneficiario",null,null,"Punteggio","TORNA AL QUADRO 3"]
["Interventi","Collina","Montagna","Altre aree ","riduz. Emissioni","migl. Sicurezza","ha","ha","ha","ha","ha","Aggregazione",null,"IAP","Max"]
[null,null,null,null,null,null,"0,2 - 9,99","10 - 20","20,01 - 30","30,01 - 40","> 40,0","2-5 beneficiari","> 5 beneficiari",null,"conseguibile"]
[null,"a","b","c","d","e","f","g","h","i","l","m","n","o","p=∑(b+d+e+l+n+o)"]
["1.1 senza boschi (attribuzione punteggi per l'Impresa Boschiva in base alla sede legale e/o operativa)",12.5,25,0,6,6,0,0,0,0,0,15,20,10,{"$f":"C5+E5+F5+K5+M5+N5","v":67}]
["1.1 con superfici boscate (attribuzione punteggi in base alla localizzazione delle superfici boscate)",12.5,25,0,6,6,0,9,12,15,18,15,20,10,{"$f":"C6+E6+F6+K6+M6+N6","v":85}]
["1.1 + 1.2 (attribuzione punteggi in base alla localizzazione delle superfici boscate)",12.5,25,0,6,6,0,9,12,15,18,15,20,10,85]
["1.1 + interventi azione 2 (attribuzione punteggi in base alla localizzazione delle superfici boscate)",12.5,25,0,6,6,0,9,12,15,18,15,20,10,85]
["1.1 +1.2 + interventi azione 2 (attribuzione punteggi in base alla localizzazione delle superfici boscate)",12.5,25,0,6,6,0,9,12,15,18,15,20,10,85]
["1.1 + interventi azione 2 + interventi azione 3 (attribuzione punteggi in base alla localizzazione delle superfici boscate) fino a 50 ha",12.5,25,0,6,6,{"$f":"0+15","v":15},{"$f":"9+15","v":24},{"$f":"12+15","v":27},{"$f":"15+15","v":30},{"$f":"18+15","v":33},15,20,10,100]
["1.1 + interventi azione 2 + interventi azione 3 (attribuzione punteggi in base alla localizzazione delle superfici boscate) > 50 ha",12.5,25,0,6,6,0,9,12,15,18,15,20,10,85]
["Interventi azione 2 + interventi azione 3 (attribuzione punteggi in base alla localizzazione delle superfici boscate) fino a 50 ha",12.5,25,0,0,0,{"$f":"0+15","v":15},{"$f":"9+15","v":24},{"$f":"12+15","v":27},{"$f":"15+15","v":30},{"$f":"18+15","v":33},15,20,10,88]
["Interventi azione 2 + interventi azione 3 (attribuzione punteggi in base alla localizzazione delle superfici boscate) > 50 ha",12.5,25,0,0,0,0,9,12,15,18,15,20,10,73]
["1.1 + interventi azione 3 (attribuzione punteggi in base alla localizzazione delle superfici boscate) fino a 50 ha",12.5,25,0,6,6,{"$f":"0+15","v":15},{"$f":"9+15","v":24},{"$f":"12+15","v":27},{"$f":"15+15","v":30},{"$f":"18+15","v":33},15,20,10,100]
["1.1 + interventi azione 3 (attribuzione punteggi in base alla localizzazione delle superfici boscate) > 50 ha",12.5,25,0,6,6,0,9,12,15,18,15,20,10,85]
["1.1 +1.2+ interventi azione 3 (attribuzione punteggi in base alla localizzazione delle superfici boscate) fino a 50 ha",12.5,25,0,6,6,{"$f":"0+15","v":15},{"$f":"9+15","v":24},{"$f":"12+15","v":27},{"$f":"15+15","v":30},{"$f":"18+15","v":33},15,20,10,100]
["1.1 + 1.2 + interventi azione 3 (attribuzione punteggi in base alla localizzazione delle superfici boscate) > 50 ha",12.5,25,0,6,6,0,9,12,15,18,15,20,10,85]
["interventi azione 2 (attribuzione punteggi in base alla localizzazione delle superfici boscate)",12.5,25,0,0,0,0,9,12,15,18,15,20,10,73]
["interventi azione 3 (attribuzione punteggi in base alla localizzazione delle superfici boscate) fino a 50 ha",12.5,25,0,0,0,{"$f":"0+15","v":15},{"$f":"9+15","v":24},{"$f":"12+15","v":27},{"$f":"15+15","v":30},{"$f":"18+15","v":33},15,20,10,88]
["interventi azione 2 + interventi azione 3 (attribuzione punteggi in base alla localizzazione delle superfici boscate) > 50 ha",12.5,25,0,0,0,0,9,12,15,18,15,20,10,73]

{"sheet":"classificazione imprese AZ_1","index":14,"n_rows":70,"n_cols":10,"rows_kept":70,"cut":false,"hidden":true,"merged":[]}
["Impresa boschiva SI/NO","Categoria","punteggio localizzazione","comune","punteggio",null,null,null,"AREE COLLINARI","AREE MONTAGNA"]
[{"$f":"IF('1 - ANAGRAFICA'!L14=\"SI\",\"SI\",\"NO\")","v":"NO"},{"$f":"IF(A2=\"SI\",'1 - ANAGRAFICA'!T15,\"\")","v":""},{"$f":"IF(AND(A2=\"SI\",'1 - ANAGRAFICA'!I16=\"COMUNE sede legale/operativa\",'7 - RIEPILOGHI E PUNTEGGIO'!C7=0),\"da attribuire\",\"NON ATTRIBUIBILE\")","v":"NON ATTRIBUIBILE"},{"$f":"IF(C2=\"da attribuire\",'1 - ANAGRAFICA'!L16,\"non pertinente\")","v":"non pertinente"},{"$f":"IF(F2=1,12.5,IF(G2=1,25,0))","v":0},{"$f":"COUNTIF($I$2:$I$70,$D2)","v":0},{"$f":"COUNTIF($J$2:$J$9,$D2)","v":0},null,"Acquaviva delle Fonti","Accadia"]
[null,null,null,null,null,null,null,null,"Alberobello","Anzano di Puglia"]
["Impresa boschiva pura SI/NO","Categoria","Fattispecie per attivaz. Interventi",null,null,null,null,null,"Alberona","Celle di San Vito"]
[{"$f":"IF(AND(C2=\"da attribuire\",'1 - ANAGRAFICA'!L14=\"SI\"),\"SI\",\"NO\")","v":"NO"},{"$f":"IF(A5=\"SI\",'1 - ANAGRAFICA'!T15,\"\")","v":""},{"$f":"IF(A5=\"NO\",\"/\",IF(OR(B5=\"CAT. A\",B5=\"CAT. B\"),\"Z\",IF(B5=\"CAT. C\",\"Y\",IF(B5=\"CAT. D\",\"X\"))))","v":"/"},"Fattispecie azienda",null,null,null,null,"Altamura","Faeto"]
["azienda forestale o boschiva con terra SI/NO","Superf interventi",null,{"$f":"IF(OR('1 - ANAGRAFICA'!T15=\"CAT. A\",'1 - ANAGRAFICA'!T15=\"CAT. B\"),\"Z\",IF(AND('1 - ANAGRAFICA'!T15=\"CAT. C\",C7<>\"Z\",C7<>\"Z1\"),\"Y\",IF(C5=\"/\",C7,C5)))","v":false},null,null,null,null,"Andria","Monteleone di Puglia"]
[{"$f":"IF(AND(C2=\"NON ATTRIBUIBILE\"),\"SI\",\"NO\")","v":"SI"},{"$f":"IF(A7=\"SI\",'7 - RIEPILOGHI E PUNTEGGIO'!C7,0)","v":0},{"$f":"IF(A7=\"NO\",\"/\",IF(B7>1000000,\"Z\",IF(B7>500000,\"Z1\",IF(B7>250000,\"Y\",IF(B7>=2000,\"X\")))))","v":false},null,null,null,null,null,"Ascoli Satriano","Orsara di Puglia"]
["PMI senza superfici",null,null,null,null,null,null,null,"Biccari","Panni"]
[{"$f":"IF(AND($B$7=0,'1 - ANAGRAFICA'!E14=\"PMI del legno\"),\"SI\",\"NO\")","v":"NO"},null,null,null,null,null,null,null,"Bitonto","Roseto Valfortore"]
["Richiesta economica","IMPORTI TOTALI","IMPORTI PARZIALI GESTIONE BOSCO","IMPORTI PARZIALI LAVORAZIONE PRE INDUSTRIALE","IMPORTI PARZIALI PRODUZIONI NON LEGNOSE",null,null,null,"Bovino"]
["X",{"$f":"SUM(C11:E11)","v":0},{"$f":"IF($D$6=\"X\",'5_1.1 - QUADRO INTERVENTI 1.1'!$M$23,0)","v":0},{"$f":"IF('classificazione imprese AZ_1'!$D$6=\"X\",'5_1.1 - QUADRO INTERVENTI 1.1'!$M$58,0)","v":0},{"$f":"IF('classificazione imprese AZ_1'!$C$7=\"X\",'5_1.1 - QUADRO INTERVENTI 1.1'!$M$105,0)","v":0},null,null,null,"Cagnano Varano"]
["Y",{"$f":"SUM(C12:E12)","v":0},{"$f":"IF($D$6=\"Y\",('5_1.1 - QUADRO INTERVENTI 1.1'!$M$24+'5_1.1 - QUADRO INTERVENTI 1.1'!$M$35),0)","v":0},{"$f":"IF($D$6=\"Y\",('5_1.1 - QUADRO INTERVENTI 1.1'!$M$59+'5_1.1 - QUADRO INTERVENTI 1.1'!$M$71),0)","v":0},{"$f":"IF('classificazione imprese AZ_1'!C7=\"Y\",'5_1.1 - QUADRO INTERVENTI 1.1'!M106,0)","v":0},null,null,null,"Candela"]
["Z1",0,{"$f":"IF($C$7=\"Z1\",('5_1.1 - QUADRO INTERVENTI 1.1'!$M$25+'5_1.1 - QUADRO INTERVENTI 1.1'!$M$36+'5_1.1 - QUADRO INTERVENTI 1.1'!$M$55),IF('classificazione imprese AZ_1'!$C$5=\"Z1\",('5_1.1 - QUADRO INTERVENTI 1.1'!$M$25+'5_1.1 - QUADRO INTERVENTI 1.1'!$M$36+'5_1.1 - QUADRO INTERVENTI 1.1'!$M$55),IF(AND($C$7=\"Z1\",D5=\"Z\"),('5_1.1 - QUADRO INTERVENTI 1.1'!$M$25+'5_1.1 - QUADRO INTERVENTI 1.1'!$M$36+'5_1.1 - QUADRO INTERVENTI 1.1'!$M$55),0)))","v":0},{"$f":"IF($C$7=\"Z1\",('5_1.1 - QUADRO INTERVENTI 1.1'!$M$60+'5_1.1 - QUADRO INTERVENTI 1.1'!$M$72+'5_1.1 - QUADRO INTERVENTI 1.1'!$M$82),IF($C$5=\"Z1\",('5_1.1 - QUADRO INTERVENTI 1.1'!$M$60+'5_1.1 - QUADRO INTERVENTI 1.1'!$M$72+'5_1.1 - QUADRO INTERVENTI 1.1'!$M$82),0))","v":0},{"$f":"IF(C7=\"Z1\",'5_1.1 - QUADRO INTERVENTI 1.1'!M107,0)","v":0},null,null,null,"Canosa di Puglia"]
["Z",0,{"$f":"IF($D$6=\"Z\",('5_1.1 - QUADRO INTERVENTI 1.1'!$M$26+'5_1.1 - QUADRO INTERVENTI 1.1'!$M$37+'5_1.1 - QUADRO INTERVENTI 1.1'!$M$56),0)","v":0},{"$f":"IF($D$6=\"Z\",('5_1.1 - QUADRO INTERVENTI 1.1'!$M$61+'5_1.1 - QUADRO INTERVENTI 1.1'!$M$73+'5_1.1 - QUADRO INTERVENTI 1.1'!H83),0)","v":0},{"$f":"IF('classificazione imprese AZ_1'!$C$7=\"Z\",'5_1.1 - QUADRO INTERVENTI 1.1'!P83+'5_1.1 - QUADRO INTERVENTI 1.1'!M108,0)","v":0},null,null,null,"Carlantino"]
["PMI",{"$f":"IF('1 - ANAGRAFICA'!E14=\"PMI del legno\",'5_1.1 - QUADRO INTERVENTI 1.1'!$M$97,0)","v":0},null,null,null,null,null,null,"Carpino"]
["SOMMA",{"$f":"SUM(B11:B15)","v":0},null,null,null,null,null,null,"Casalnuovo Monterotaro"]
["Limite economico_1.1","IMPORTI TOTALI\nammissibili","IMPORTI PARZIALI GESTIONE BOSCO","IMPORTI PARZIALI LAVORAZIONE PRE INDUSTRIALE","IMPORTI PARZIALI PRODUZIONI NON LEGNOSE","SPESE GENERALI\nammissibili","SOMMA SPESE GENERALI 1",null,"Casalvecchio di Puglia"]
["X",{"$f":"SUM(C18:E18)","v":0},{"$f":"IF(C11>25000,25000,C11)","v":0},{"$f":"IF(D11>30000,30000,D11)","v":0},{"$f":"IF(E11>25000,25000,E11)","v":0},{"$f":"IF((B18*0.06)>'5_1.1 - QUADRO INTERVENTI 1.1'!H$113,'5_1.1 - QUADRO INTERVENTI 1.1'!H$113,B18*0.06)","v":0},{"$f":"IF((G19*0.06)>'5_1.1 - QUADRO INTERVENTI 1.1'!H$113,'5_1.1 - QUADRO INTERVENTI 1.1'!H$113,G19*0.06)","v":0},null,"Casamassima"]
["Y",{"$f":"SUM(C19:E19)","v":0},{"$f":"IF(C12>75000,75000,C12)","v":0},{"$f":"IF(D12>50000,50000,D12)","v":0},{"$f":"IF(E12>75000,75000,E12)","v":0},{"$f":"IF((B19*0.06)>'5_1.1 - QUADRO INTERVENTI 1.1'!H$113,'5_1.1 - QUADRO INTERVENTI 1.1'!H$113,B19*0.06)","v":0},{"$f":"SUM(B18:B22)","v":0},null,"Cassano delle Murge"]
["Z1",0,{"$f":"IF(C13>75000,75000,C13)","v":0},{"$f":"IF(D13>50000,50000,D13)","v":0},{"$f":"IF(E13>75000,75000,E13)","v":0},{"$f":"IF((B20*0.06)>'5_1.1 - QUADRO INTERVENTI 1.1'!H$113,'5_1.1 - QUADRO INTERVENTI 1.1'!H$113,B20*0.06)","v":0},null,null,"Castellana Grotte"]
["Z",{"$f":"SUM(C21:E21)","v":0},{"$f":"IF(C14>100000,100000,C14)","v":0},{"$f":"IF(D6=\"Z\",B49,0)","v":0},{"$f":"IF(E14>100000,100000,E14)","v":0},{"$f":"IF((B21*0.06)>'5_1.1 - QUADRO INTERVENTI 1.1'!H$113,'5_1.1 - QUADRO INTERVENTI 1.1'!H$113,B21*0.06)","v":0},null,null,"Castellaneta "]
["PMI",{"$f":"IF(B15>200000,200000,B15)","v":0},null,null,null,{"$f":"IF((B22*0.06)>'5_1.1 - QUADRO INTERVENTI 1.1'!H$113,'5_1.1 - QUADRO INTERVENTI 1.1'!H$113,B22*0.06)","v":0},null,null,"Castelluccio dei Sauri"]
[null,null,null,null,null,null,null,null,"Castelluccio Valmaggiore"]
["Limite economico_TOTALE","IMPORTI TOTALI\nammissibili","SPESE GENERALI\nammissibili",null,null,null,null,null,"Castelnuovo della Daunia"]
[null,{"$f":"IF(AND(A5=\"SI\",SUM(B18:B22)>188679.25),188679.25,IF(AND(A5=\"SI\",SUM(B18:B22)>0),SUM(B18:B22),IF(SUM(B18:B22)>188679.25,188679.25,IF((SUM(B18:B22)+$E$28)>188679.25,188679.25,(SUM(B18:B22)+$E$28)))))","v":0},{"$f":"G18","v":0},null,null,null,null,null,"Ceglie Messapica"]
[null,null,null,null,null,null,null,null,"Celenza Valfortore"]
["PERTINENZA IMPORTI INTERVENTI <>1.1","INT 1.2","AZ 2","AZ 3","SUBTOTALE",null,null,null,"Cisternino"]
["SPESE MATERIALI",{"$f":"IF(AND('7 - RIEPILOGHI E PUNTEGGIO'!$B$8=\"-\",'7 - RIEPILOGHI E PUNTEGGIO'!$C4>0),'5_1.2 - QUADRO INTERVENTI 1.2'!H$19,0)","v":0},{"$f":"IF(AND('7 - RIEPILOGHI E PUNTEGGIO'!$B$8=\"-\",'7 - RIEPILOGHI E PUNTEGGIO'!$C5>0),'5_2 - QUADRO INTERVENTI AZ 2'!$J$72,0)","v":0},{"$f":"IF(AND('5_3 - QUADRO INTERVENTI AZ 3'!I10>0,'7 - RIEPILOGHI E PUNTEGGIO'!$B$8=\"-\",'7 - RIEPILOGHI E PUNTEGGIO'!$C6>0),('5_3 - QUADRO INTERVENTI AZ 3'!$G$10-'5_3 - QUADRO INTERVENTI AZ 3'!I10-'5_3 - QUADRO INTERVENTI AZ 3'!I5),IF(AND('7 - RIEPILOGHI E PUNTEGGIO'!$B$8=\"-\",'7 - RIEPILOGHI E PUNTEGGIO'!$C6>0,'5_3 - QUADRO INTERVENTI AZ 3'!$I$10=0),'5_3 - QUADRO INTERVENTI AZ 3'!$G$10-'5_3 - QUADRO INTERVENTI AZ 3'!I5,0))","v":0},{"$f":"SUM(B28:D28)","v":0},null,null,null,"Conversano"]
["SPESE GENERALI",{"$f":"IF(AND('7 - RIEPILOGHI E PUNTEGGIO'!$B$8=\"-\",'7 - RIEPILOGHI E PUNTEGGIO'!$C4>0),'5_1.2 - QUADRO INTERVENTI 1.2'!H$20,0)","v":0},{"$f":"IF(AND('7 - RIEPILOGHI E PUNTEGGIO'!$B$8=\"-\",'7 - RIEPILOGHI E PUNTEGGIO'!$C5>0),'5_2 - QUADRO INTERVENTI AZ 2'!$J$73,0)","v":0},{"$f":"IF(D30>'5_3 - QUADRO INTERVENTI AZ 3'!G11,'5_3 - QUADRO INTERVENTI AZ 3'!G11-'5_3 - QUADRO INTERVENTI AZ 3'!M5,'classificazione imprese AZ_1'!D30)","v":0},{"$f":"SUM(B29:D29)","v":0},null,null,null,"Corato"]
[null,null,null,{"$f":"IF(AND('7 - RIEPILOGHI E PUNTEGGIO'!$B$8=\"-\",'7 - RIEPILOGHI E PUNTEGGIO'!$C6>0,'5_3 - QUADRO INTERVENTI AZ 3'!$I$10=0),D28*0.12,IF(AND('7 - RIEPILOGHI E PUNTEGGIO'!$B$8=\"-\",'7 - RIEPILOGHI E PUNTEGGIO'!$C6>0,'5_3 - QUADRO INTERVENTI AZ 3'!I10>0),D28*0.12,0))","v":0},null,null,null,null,"Deliceto"]
["PUNTEGGI MAGGIOR CONTENUTO INNOVAZIONE",null,null,null,"spese generali INT1.2",null,null,null,"Fasano"]
["MASSIMALE PUNTEGGIO→",{"$f":"IF(B25=0,0,IF(SUM(B18:B22)>=B25*0.8,12,12*SUM(B18:B22)/B25))","v":0},null,null,{"$f":"SUM('5_1.2 - QUADRO INTERVENTI 1.2'!H11:H13)","v":0},null,null,null,"Ginosa"]
["SOMMATORIA IMPORTI A PUNTEGGIO→",{"$f":"SUM('5_1.1 - QUADRO INTERVENTI 1.1'!O3:O104)","v":0},null,null,null,null,null,null,"Gioia del Colle"]
["PUNTEGGIO PONDERATO→",{"$f":"('classificazione imprese AZ_1'!$B$33*'classificazione imprese AZ_1'!$B$32)/B16","v":{"$error":"#DIV/0!"}},null,null,null,null,null,null,"Gravina in Puglia"]
[null,null,null,null,null,null,null,null,"Grumo Appula"]
["CALCOLO DEL LIMITE PONDERATO MASSIMALE DI PROGETTO",null,"PERCENTUALE DI SPESA TRA LE DUE VOCI","Limite spese materiali","Limite spese generali",null,null,null,"Ischitella"]
["SOMMA VOCI AL 12%",{"$f":"$C$28+$D$28+'5_1.2 - QUADRO INTERVENTI 1.2'!$H$17","v":0},{"$f":"(B37*0.12+B38*0.06)/(B37+B38)","v":{"$error":"#DIV/0!"}},{"$f":"200000/(1+C37)","v":{"$error":"#DIV/0!"}},{"$f":"200000-D37","v":{"$error":"#DIV/0!"}},null,null,null,"Laterza"]
["SOMMA VOCI AL 6%",{"$f":"SUM(B18:B22)+'5_1.2 - QUADRO INTERVENTI 1.2'!$H$18","v":0},null,null,null,null,null,null,"Locorotondo"]
["TOTALE",{"$f":"SUM(B37:B38)","v":0},null,null,null,null,null,null,"Martina Franca"]
["SPESE GENERALI AMMESSE AL 12%",{"$f":"B37*0.12","v":0},{"$f":"IF(SUM(B29:D29)>B40,B40,SUM(B29:D29))","v":0},null,null,null,null,null,"Mattinata"]
["SPESE GENERALI AMMESSE AL 6%",{"$f":"B38*0.06","v":0},{"$f":"IF(G18+E32>B41,B41,G18+E32)","v":0},null,null,null,null,null,"Minervino Murge"]
["TOTALE SPESE GENERALI",{"$f":"SUM(C40:C41)","v":0},null,null,null,null,null,null,"Monte Sant'Angelo"]
[null,null,"SOMMA LAVORAZIONI LEGNO ECCETTO CIPPATRICI",null,null,null,null,null,"Motta Montecorvino"]
["limite cippatrici + ALTRE SPESE",{"$f":"C44+B50","v":0},{"$f":"SUM('5_1.1 - QUADRO INTERVENTI 1.1'!H62:H69)+SUM('5_1.1 - QUADRO INTERVENTI 1.1'!H76:H81)","v":0},null,null,null,null,null,"Mottola"]
["CIPPATRICE 1",{"$f":"'5_1.1 - QUADRO INTERVENTI 1.1'!H57","v":0},{"$f":"IF(B45>100000,100000,B45)","v":0},null,null,null,null,null,"Noci"]
["CIPPATRICE 2",{"$f":"'5_1.1 - QUADRO INTERVENTI 1.1'!H70","v":0},{"$f":"IF(B46>100000,100000,B46)","v":0},null,null,null,null,null,"Ostuni"]
["CIPPATRICE 3",{"$f":"'5_1.1 - QUADRO INTERVENTI 1.1'!H74","v":0},0,null,null,null,null,null,"Palo del Colle"]
["CIPPATRICE 4",{"$f":"'5_1.1 - QUADRO INTERVENTI 1.1'!H75","v":0},0,null,null,null,null,null,"Peschici"]
["LIMITE LAVORAZIONI PREINDUSTRIALI",{"$f":"IF(B44>200000,200000,B44)","v":0},null,null,null,null,null,null,"Pietramontecorvino"]
["LIMITE CIPPATRICI",{"$f":"IF(SUM(B45:B48)>100000,100000,SUM(B45:B48))","v":0},null,null,null,null,null,null,"Putignano"]
[null,null,null,null,null,null,null,null,"Rignano Garganico"]
[null,null,null,null,null,null,null,null,"Rocchetta Sant'Antonio"]
[null,null,null,null,null,null,null,null,"Rodi Garganico"]
[null,null,null,null,null,null,null,null,"Ruvo di Puglia"]
[null,null,null,null,null,null,null,null,"Sammichele di Bari"]
[null,null,null,null,null,null,null,null,"San Giovanni Rotondo"]
[null,null,null,null,null,null,null,null,"San Marco in Lamis"]
[null,null,null,null,null,null,null,null,"San Marco la Catola"]
[null,null,null,null,null,null,null,null,"Sannicandro di Bari"]
[null,null,null,null,null,null,null,null,"Sant'Agata di Puglia"]
[null,null,null,null,null,null,null,null,"Santeramo in Colle"]
[null,null,null,null,null,null,null,null,"Spinazzola"]
[null,null,null,null,null,null,null,null,"Terlizzi"]
[null,null,null,null,null,null,null,null,"Toritto"]
[null,null,null,null,null,null,null,null,"Turi"]
[null,null,null,null,null,null,null,null,"Vico del Gargano"]
[null,null,null,null,null,null,null,null,"Vieste"]
[null,null,null,null,null,null,null,null,"Villa Castelli"]
[null,null,null,null,null,null,null,null,"Volturara Appula"]
[null,null,null,null,null,null,null,null,"Volturino"]